BODY NAME,SERVICE LABEL ,SERVICE CODE,EXPENDITURE CATEGORY,DATE,TRANSACTION NUMBER, NET AMOUNT ,SUPPLIER NAME,SUPPLIER ID
NEWARK AND SHERWOOD DISTRICT COUNCIL,CORPORATE,G998,CTAX PRECEPT TO COUNTY,17/04/2023,417404,7203340.6,NOTTINGHAMSHIRE COUNTY COUNCIL,100393
NEWARK AND SHERWOOD DISTRICT COUNCIL,CORPORATE,G998,CTAX PRECEPT TO COUNTY,23/05/2023,420419,7203340.6,NOTTINGHAMSHIRE COUNTY COUNCIL,100393
NEWARK AND SHERWOOD DISTRICT COUNCIL,CORPORATE,G998,CTAX PRECEPT TO COUNTY,28/06/2023,423430,7203340.6,NOTTINGHAMSHIRE COUNTY COUNCIL,100393
NEWARK AND SHERWOOD DISTRICT COUNCIL,CAPITAL,G997,CONSTRUCTION,30/06/2023,423705,4513374.21,URBAN & CIVIC MIDDLEBECK,107838
NEWARK AND SHERWOOD DISTRICT COUNCIL,CORPORATE,G998,CTAX PRECEPT TO POLICE,17/04/2023,417405,1124970,NOTTS POLICE AND CRIME COMMISSIONER,101784
NEWARK AND SHERWOOD DISTRICT COUNCIL,CORPORATE,G998,CTAX PRECEPT TO POLICE,23/05/2023,420420,1124970,NOTTS POLICE AND CRIME COMMISSIONER,101784
NEWARK AND SHERWOOD DISTRICT COUNCIL,CORPORATE,G998,CTAX PRECEPT TO POLICE,28/06/2023,423431,1124970,NOTTS POLICE AND CRIME COMMISSIONER,101784
NEWARK AND SHERWOOD DISTRICT COUNCIL,CAPITAL,G997,CONSTRUCTION,14/04/2023,417319,1016379.58,LINCOLN COLLEGE,101765
NEWARK AND SHERWOOD DISTRICT COUNCIL,CAPITAL,G997,CONSTRUCTION,05/05/2023,419125,807312.67,URBAN & CIVIC MIDDLEBECK,107838
NEWARK AND SHERWOOD DISTRICT COUNCIL,CAPITAL,G997,CONSTRUCTION,16/06/2023,422234,787196.81,LINCOLN COLLEGE,101765
NEWARK AND SHERWOOD DISTRICT COUNCIL,CAPITAL,G997,CONSTRUCTION,26/05/2023,420975,644296.12,LINCOLN COLLEGE,101765
NEWARK AND SHERWOOD DISTRICT COUNCIL,CAPITAL,G997,CONSTRUCTION,14/06/2023,422162,573220.4,URBAN & CIVIC MIDDLEBECK,107838
NEWARK AND SHERWOOD DISTRICT COUNCIL,POLICY & FINANCE,G450,CTAX NSDC PARISH PRECEPT PYMTS,08/04/2023,417297,546679.35,NEWARK TOWN COUNCIL,100374
NEWARK AND SHERWOOD DISTRICT COUNCIL,LEISURE & ENVIRONMENT,G440,ACTIVE4TODAY MANAGEMENT FEE,28/04/2023,418308,500000,ACTIVE4TODAY LTD,105072
NEWARK AND SHERWOOD DISTRICT COUNCIL,CAPITAL,G997,CONSTRUCTION,09/06/2023,421808,400719.65,OAKWORTH CONSTRUCTION LIMITED,107726
NEWARK AND SHERWOOD DISTRICT COUNCIL,CORPORATE,G998,CTAX PRECEPT TO FIRE,23/05/2023,420421,374322,NOTTINGHAMSHIRE FIRE AUTHORITY,101572
NEWARK AND SHERWOOD DISTRICT COUNCIL,CORPORATE,G998,CTAX PRECEPT TO FIRE,28/06/2023,423432,374322,NOTTINGHAMSHIRE FIRE AUTHORITY,101572
NEWARK AND SHERWOOD DISTRICT COUNCIL,CORPORATE,G998,CTAX PRECEPT TO FIRE,17/04/2023,417406,374318,NOTTINGHAMSHIRE FIRE AUTHORITY,101572
NEWARK AND SHERWOOD DISTRICT COUNCIL,HOUSING REVENUE ACCOUNT,G410,INSURANCE,16/06/2023,422478,253132.85,ARTHUR J GALLAGHER INSURANCE BROKERS LIMITED,106423
NEWARK AND SHERWOOD DISTRICT COUNCIL,POLICY & FINANCE,G450,CTAX NSDC PARISH PRECEPT PYMTS,08/04/2023,417298,235532,OLLERTON & BOUGHTON TOWN COUNCIL,100968
NEWARK AND SHERWOOD DISTRICT COUNCIL,POLICY & FINANCE,G450,CTAX NSDC PARISH PRECEPT PYMTS,08/04/2023,417251,175779,BALDERTON PARISH COUNCIL,100029
NEWARK AND SHERWOOD DISTRICT COUNCIL,HOUSING REVENUE ACCOUNT,G410,INSURANCE,16/06/2023,422467,159217.63,ARTHUR J GALLAGHER INSURANCE BROKERS LIMITED,106423
NEWARK AND SHERWOOD DISTRICT COUNCIL,CAPITAL,G997,CONSTRUCTION,30/05/2023,420981,148215.14,PHOENIX GAS SERVICES LTD,107576
NEWARK AND SHERWOOD DISTRICT COUNCIL,CAPITAL,G997,CONSTRUCTION,09/06/2023,421836,142750.97,NOVUS PROPERTY SOLUTIONS LTD,107362
NEWARK AND SHERWOOD DISTRICT COUNCIL,CAPITAL,G997,ICT HARDWARE AQUISITION,05/05/2023,414150,134436.53,SPECIALIST COMPUTER CENTRES PLC,100773
NEWARK AND SHERWOOD DISTRICT COUNCIL,CAPITAL,G997,CONSTRUCTION,26/04/2023,417950,131221,PHOENIX GAS SERVICES LTD,107576
NEWARK AND SHERWOOD DISTRICT COUNCIL,POLICY & FINANCE,G450,CTAX NSDC PARISH PRECEPT PYMTS,08/04/2023,417299,129187,SOUTHWELL TOWN COUNCIL,100515
NEWARK AND SHERWOOD DISTRICT COUNCIL,CAPITAL,G997,CONSTRUCTION,26/05/2023,417970,128126.2,NOVUS PROPERTY SOLUTIONS LTD,107362
NEWARK AND SHERWOOD DISTRICT COUNCIL,POLICY & FINANCE,G450,INSURANCE,16/06/2023,422461,106145.09,ARTHUR J GALLAGHER INSURANCE BROKERS LIMITED,106423
NEWARK AND SHERWOOD DISTRICT COUNCIL,POLICY & FINANCE,G450,CTAX NSDC PARISH PRECEPT PYMTS,08/04/2023,417266,92500,EDWINSTOWE PARISH COUNCIL,100143
NEWARK AND SHERWOOD DISTRICT COUNCIL,POLICY & FINANCE,G450,CTAX NSDC PARISH PRECEPT PYMTS,08/04/2023,417261,85001.5,CLIPSTONE PARISH COUNCIL,100097
NEWARK AND SHERWOOD DISTRICT COUNCIL,CAPITAL,G997,CONSTRUCTION,12/05/2023,419394,80330.66,HODGSON SAYERS LIMITED,107773
NEWARK AND SHERWOOD DISTRICT COUNCIL,LEISURE & ENVIRONMENT,G440,INSURANCE,16/06/2023,422502,80288.1,ARTHUR J GALLAGHER INSURANCE BROKERS LIMITED,106423
NEWARK AND SHERWOOD DISTRICT COUNCIL,CAPITAL,G997,CONSTRUCTION,19/05/2023,419838,79323.37,NOVUS PROPERTY SOLUTIONS LTD,107362
NEWARK AND SHERWOOD DISTRICT COUNCIL,LEISURE & ENVIRONMENT,G440,PAYMENTS TO NOTTS COUNTY CNCL,16/06/2023,422173,75285.87,NOTTINGHAMSHIRE COUNTY COUNCIL,100393
NEWARK AND SHERWOOD DISTRICT COUNCIL,POLICY & FINANCE,G450,INSURANCE,16/06/2023,422479,69216.12,ARTHUR J GALLAGHER INSURANCE BROKERS LIMITED,106423
NEWARK AND SHERWOOD DISTRICT COUNCIL,CAPITAL,G997,CONSTRUCTION,06/04/2023,416914,64012.08,OAKWORTH CONSTRUCTION LIMITED,107726
NEWARK AND SHERWOOD DISTRICT COUNCIL,HOUSING REVENUE ACCOUNT,G410,APPLIANCE SERVICING,19/05/2023,419832,47988.75,PHOENIX GAS SERVICES LTD,107576
NEWARK AND SHERWOOD DISTRICT COUNCIL,HOUSING REVENUE ACCOUNT,G410,APPLIANCE SERVICING,09/06/2023,421699,47988.75,PHOENIX GAS SERVICES LTD,107576
NEWARK AND SHERWOOD DISTRICT COUNCIL,CAPITAL,G997,CONSTRUCTION,06/04/2023,416684,47564.41,IMPART LINKS LIMITED,107690
NEWARK AND SHERWOOD DISTRICT COUNCIL,CAPITAL,G997,CONSTRUCTION,12/05/2023,419359,47338.89,MATTHEWS & TANNERT LTD,101312
NEWARK AND SHERWOOD DISTRICT COUNCIL,HOUSING REVENUE ACCOUNT,G410,INSURANCE,16/06/2023,422501,46066.94,ARTHUR J GALLAGHER INSURANCE BROKERS LIMITED,106423
NEWARK AND SHERWOOD DISTRICT COUNCIL,POLICY & FINANCE,G450,COMPUTER SOFTWARE,19/05/2023,419704,45610.5,CAPITA BUSINESS SERVICES LTD,102078
NEWARK AND SHERWOOD DISTRICT COUNCIL,POLICY & FINANCE,G450,COMPUTER SOFTWARE,30/06/2023,422397,45557.88,NEC SOFTWARE SOLUTIONS UK LTD,107841
NEWARK AND SHERWOOD DISTRICT COUNCIL,POLICY & FINANCE,G450,CTAX NSDC PARISH PRECEPT PYMTS,08/04/2023,417257,45161.5,BLIDWORTH PARISH COUNCIL,100045
NEWARK AND SHERWOOD DISTRICT COUNCIL,POLICY & FINANCE,G450,CTAX NSDC PARISH PRECEPT PYMTS,08/04/2023,417295,44556,FERNWOOD PARISH COUNCIL,100164
NEWARK AND SHERWOOD DISTRICT COUNCIL,CAPITAL,G997,CONSTRUCTION,23/06/2023,422882,44073.53,NEIL SHACKLOCK PLUMBING AND HEATING  LTD,104679
NEWARK AND SHERWOOD DISTRICT COUNCIL,CAPITAL,G997,CONSTRUCTION,06/04/2023,416741,43499.88,J WRIGHT ROOFING LTD,105753
NEWARK AND SHERWOOD DISTRICT COUNCIL,CORPORATE,G998,NDR IN-YEAR SHARE COUNTY FIRE,17/04/2023,417406,42355,NOTTINGHAMSHIRE FIRE AUTHORITY,101572
NEWARK AND SHERWOOD DISTRICT COUNCIL,CORPORATE,G998,NDR IN-YEAR SHARE COUNTY FIRE,23/05/2023,420421,42355,NOTTINGHAMSHIRE FIRE AUTHORITY,101572
NEWARK AND SHERWOOD DISTRICT COUNCIL,CORPORATE,G998,NDR IN-YEAR SHARE COUNTY FIRE,28/06/2023,423432,42355,NOTTINGHAMSHIRE FIRE AUTHORITY,101572
NEWARK AND SHERWOOD DISTRICT COUNCIL,POLICY & FINANCE,G450,CTAX NSDC PARISH PRECEPT PYMTS,08/04/2023,417270,42354,FARNSFIELD PARISH COUNCIL,100163
NEWARK AND SHERWOOD DISTRICT COUNCIL,POLICY & FINANCE,G450,CTAX NSDC PARISH PRECEPT PYMTS,08/04/2023,417255,41762.88,BILSTHORPE PARISH COUNCIL,100042
NEWARK AND SHERWOOD DISTRICT COUNCIL,CAPITAL,G997,CONSTRUCTION,16/06/2023,422132,39882.7,NEIL SHACKLOCK PLUMBING AND HEATING  LTD,104679
NEWARK AND SHERWOOD DISTRICT COUNCIL,POLICY & FINANCE,G450,CTAX NSDC PARISH PRECEPT PYMTS,08/04/2023,417279,39521,LOWDHAM PARISH COUNCIL,100288
NEWARK AND SHERWOOD DISTRICT COUNCIL,CAPITAL,G997,CONSTRUCTION,16/06/2023,422102,37053.09,MATTHEWS & TANNERT LTD,101312
NEWARK AND SHERWOOD DISTRICT COUNCIL,CAPITAL,G997,CONSTRUCTION,23/06/2023,422881,35489.64,NEIL SHACKLOCK PLUMBING AND HEATING  LTD,104679
NEWARK AND SHERWOOD DISTRICT COUNCIL,CAPITAL,G997,CONSTRUCTION,16/06/2023,422169,35000,STEPNELL LTD,107842
NEWARK AND SHERWOOD DISTRICT COUNCIL,CAPITAL,G997,VEHICLE AQUISITION,05/04/2023,416860,34990,OTIS VEHICLE RENTALS LTD,107843
NEWARK AND SHERWOOD DISTRICT COUNCIL,POLICY & FINANCE,G450,CTAX NSDC PARISH PRECEPT PYMTS,08/04/2023,417283,33500,RAINWORTH PARISH COUNCIL,100444
NEWARK AND SHERWOOD DISTRICT COUNCIL,ECONOMIC DEVELOPMENT,G420,PROFESSIONAL SERVICES,19/05/2023,417567,32616.2,BB PROPERTIES (NEWARK) LTD,107755
NEWARK AND SHERWOOD DISTRICT COUNCIL,CAPITAL,G997,CONSTRUCTION,14/04/2023,417324,30408.87,NOTTINGHAMSHIRE YMCA,101730
NEWARK AND SHERWOOD DISTRICT COUNCIL,CAPITAL,G997,ICT HARDWARE AQUISITION,26/05/2023,420663,30100,BALLICOM LTD,107844
NEWARK AND SHERWOOD DISTRICT COUNCIL,POLICY & FINANCE,G450,HYBRID MAIL,06/04/2023,416645,29800,NOTTINGHAMSHIRE COUNTY COUNCIL,100393
NEWARK AND SHERWOOD DISTRICT COUNCIL,CAPITAL,G997,CONSTRUCTION,12/05/2023,419187,29486.34,NATIONWIDE WINDOWS LIMITED,101404
NEWARK AND SHERWOOD DISTRICT COUNCIL,CAPITAL,G997,CONSTRUCTION,28/04/2023,418101,29247.71,J WRIGHT ROOFING LTD,105753
NEWARK AND SHERWOOD DISTRICT COUNCIL,POLICY & FINANCE,G450,CTAX NSDC PARISH PRECEPT PYMTS,08/04/2023,417269,29140,FARNDON PARISH COUNCIL,100162
NEWARK AND SHERWOOD DISTRICT COUNCIL,POLICY & FINANCE,G450,HARDWARE MAINTENANCE,05/05/2023,415314,26879.89,SPECIALIST COMPUTER CENTRES PLC,100773
NEWARK AND SHERWOOD DISTRICT COUNCIL,LEISURE & ENVIRONMENT,G440,CONTRACTUAL SERVICES,21/04/2023,417570,26148.75,WASTE INVESTIGATIONS SUPPORT & ENFORCEMENT LT,107471
NEWARK AND SHERWOOD DISTRICT COUNCIL,LEISURE & ENVIRONMENT,G440,COMMUNICATION CAMPAIGNS,16/06/2023,422165,25800,NOTTINGHAMSHIRE COUNTY COUNCIL,100393
NEWARK AND SHERWOOD DISTRICT COUNCIL,ECONOMIC DEVELOPMENT,G420,RENT,06/04/2023,416970,25315.26,NOTTINGHAMSHIRE COUNTY COUNCIL,100393
NEWARK AND SHERWOOD DISTRICT COUNCIL,POLICY & FINANCE,G450,CTAX NSDC PARISH PRECEPT PYMTS,02/05/2023,417263,23539,COLLINGHAM PARISH COUNCIL,100104
NEWARK AND SHERWOOD DISTRICT COUNCIL,ECONOMIC DEVELOPMENT,G420,AGENCY REPAYMENTS,14/04/2023,417322,23355,NEWARK AMATEUR OPERATIC SOCIETY,100365
NEWARK AND SHERWOOD DISTRICT COUNCIL,CAPITAL,G997,ICT HARDWARE AQUISITION,05/05/2023,415314,23146.5,SPECIALIST COMPUTER CENTRES PLC,100773
NEWARK AND SHERWOOD DISTRICT COUNCIL,CAPITAL,G997,CONSTRUCTION,26/05/2023,417341,22976.73,MATTHEWS & TANNERT LTD,101312
NEWARK AND SHERWOOD DISTRICT COUNCIL,POLICY & FINANCE,G450,CTAX NSDC PARISH PRECEPT PYMTS,08/04/2023,417291,22206,WALESBY PARISH COUNCIL,100594
NEWARK AND SHERWOOD DISTRICT COUNCIL,POLICY & FINANCE,G450,COMPUTER SOFTWARE,24/04/2023,417776,22168.82,M-FILES CORPORATION,106656
NEWARK AND SHERWOOD DISTRICT COUNCIL,POLICY & FINANCE,G450,COMPUTER SOFTWARE,19/05/2023,419646,21853.4,AXESS SYSTEMS LTD,101850
NEWARK AND SHERWOOD DISTRICT COUNCIL,CAPITAL,G997,CONSTRUCTION,09/06/2023,421688,21734.25,IMPART LINKS LIMITED,107690
NEWARK AND SHERWOOD DISTRICT COUNCIL,CAPITAL,G997,PROFESSIONAL FEES,12/05/2023,419274,21720,WT PARTNERSHIP,106087
NEWARK AND SHERWOOD DISTRICT COUNCIL,POLICY & FINANCE,G450,ELECTION EXPENSES,09/06/2023,421644,21259.5,PRINT IMAGE NETWORK LTD,100431
NEWARK AND SHERWOOD DISTRICT COUNCIL,LEISURE & ENVIRONMENT,G440,PETROL AND DIESEL,21/04/2023,417438,20820.6,BWOC LTD,107672
NEWARK AND SHERWOOD DISTRICT COUNCIL,POLICY & FINANCE,G450,PROFESSIONAL SERVICES,06/04/2023,416572,20500,MELTON BOROUGH COUNCIL,102858
NEWARK AND SHERWOOD DISTRICT COUNCIL,HOUSING REVENUE ACCOUNT,G410,CONTRACTUAL SERVICES,02/06/2023,420683,20161.35,AB ENVIRONMENT SOLUTIONS LTD,101797
NEWARK AND SHERWOOD DISTRICT COUNCIL,ECONOMIC DEVELOPMENT,G420,GATEWAY PROJECT,30/06/2023,423319,19750,CAPITA PROPERTY & INFRASTRUCTURE LTD,102207
NEWARK AND SHERWOOD DISTRICT COUNCIL,POLICY & FINANCE,G450,HARDWARE MAINTENANCE,02/06/2023,421286,19644.31,TERMINAL FOUR SOLUTIONS LTD,101111
NEWARK AND SHERWOOD DISTRICT COUNCIL,POLICY & FINANCE,G450,PROFESSIONAL SERVICES,06/04/2023,415080,19600,LINCOLNSHIRE COUNTY COUNCIL,101652
NEWARK AND SHERWOOD DISTRICT COUNCIL,LEISURE & ENVIRONMENT,G440,PETROL AND DIESEL,09/06/2023,421577,19206,BWOC LTD,107672
NEWARK AND SHERWOOD DISTRICT COUNCIL,CAPITAL,G997,CONSTRUCTION,06/04/2023,416932,19188.85,NATIONWIDE WINDOWS LIMITED,101404
NEWARK AND SHERWOOD DISTRICT COUNCIL,LEISURE & ENVIRONMENT,G440,PETROL AND DIESEL,26/05/2023,420412,19090.8,BWOC LTD,107672
NEWARK AND SHERWOOD DISTRICT COUNCIL,CAPITAL,G997,CONSTRUCTION,09/06/2023,421687,18380.82,IMPART LINKS LIMITED,107690
NEWARK AND SHERWOOD DISTRICT COUNCIL,CAPITAL,G997,CONSTRUCTION,12/05/2023,419393,18163.26,M & D FOUNDATIONS & BUILDING SERVICES LTD,107845
NEWARK AND SHERWOOD DISTRICT COUNCIL,POLICY & FINANCE,G450,PUBLICATIONS,06/04/2023,416930,17873.04,THOMSON REUTERS,103561
NEWARK AND SHERWOOD DISTRICT COUNCIL,CAPITAL,G997,CONSTRUCTION,28/04/2023,417966,17462.02,BELL GROUP UK,100039
NEWARK AND SHERWOOD DISTRICT COUNCIL,HOUSING REVENUE ACCOUNT,G410,CONTRACTUAL SERVICES,28/04/2023,418157,17389.6,AB ENVIRONMENT SOLUTIONS LTD,101797
NEWARK AND SHERWOOD DISTRICT COUNCIL,HOUSING REVENUE ACCOUNT,G410,CONTRACTUAL SERVICES,21/04/2023,417578,17302.05,AB ENVIRONMENT SOLUTIONS LTD,101797
NEWARK AND SHERWOOD DISTRICT COUNCIL,LEISURE & ENVIRONMENT,G440,PETROL AND DIESEL,06/04/2023,416614,17268.1,BWOC LTD,107672
NEWARK AND SHERWOOD DISTRICT COUNCIL,CAPITAL,G997,CONSTRUCTION,21/04/2023,417564,17220.25,BETHELL & SHEPHERD PLUMBING & HEATING LTD,107846
NEWARK AND SHERWOOD DISTRICT COUNCIL,POLICY & FINANCE,G450,ELECTRICITY,06/04/2023,416466,17025.09,EDF ENERGY 1 LTD,101140
NEWARK AND SHERWOOD DISTRICT COUNCIL,HOUSING REVENUE ACCOUNT,G410,FIRE ALARM AND EMERGENCY LIGHT,28/04/2023,418332,16687.11,HD ELECTRICAL SYSTEMS LTD,105293
NEWARK AND SHERWOOD DISTRICT COUNCIL,POLICY & FINANCE,G450,COMPUTER SOFTWARE MAINTENANCE,12/05/2023,419396,16490,VIRGIN MEDIA BUSINESS,100934
NEWARK AND SHERWOOD DISTRICT COUNCIL,ECONOMIC DEVELOPMENT,G420,GATEWAY PROJECT,05/05/2023,418711,16375,CAPITA PROPERTY & INFRASTRUCTURE LTD,102207
NEWARK AND SHERWOOD DISTRICT COUNCIL,LEISURE & ENVIRONMENT,G440,PETROL AND DIESEL,19/05/2023,419868,16344,BWOC LTD,107672
NEWARK AND SHERWOOD DISTRICT COUNCIL,LEISURE & ENVIRONMENT,G440,PETROL AND DIESEL,30/06/2023,423315,16218.84,BWOC LTD,107672
NEWARK AND SHERWOOD DISTRICT COUNCIL,HOUSING REVENUE ACCOUNT,G410,FIRE ALARM AND EMERGENCY LIGHT,26/05/2023,420698,16213.53,AARON SERVICES,107225
NEWARK AND SHERWOOD DISTRICT COUNCIL,HOUSING REVENUE ACCOUNT,G410,CONTRACTUAL SERVICES,30/06/2023,423468,15895.8,AB ENVIRONMENT SOLUTIONS LTD,101797
NEWARK AND SHERWOOD DISTRICT COUNCIL,POLICY & FINANCE,G450,ELECTRICITY,16/06/2023,422465,15778.09,EDF ENERGY 1 LTD,101140
NEWARK AND SHERWOOD DISTRICT COUNCIL,CAPITAL,G997,DISABLED FACILITIES,23/06/2023,422984,15672.83,VAUGHANDALE CONSTRUCTION LTD,100590
NEWARK AND SHERWOOD DISTRICT COUNCIL,CAPITAL,G997,DISABLED FACILITIES,16/06/2023,422403,15538.05,DOLPHIN MOBILITY EAST MIDLANDS LTD,100130
NEWARK AND SHERWOOD DISTRICT COUNCIL,CAPITAL,G997,CONSTRUCTION,06/04/2023,416629,14714,NEIL SHACKLOCK PLUMBING AND HEATING  LTD,104679
NEWARK AND SHERWOOD DISTRICT COUNCIL,CAPITAL,G997,CONSTRUCTION,09/06/2023,421654,14540.21,MATTHEWS & TANNERT LTD,101312
NEWARK AND SHERWOOD DISTRICT COUNCIL,HOUSING REVENUE ACCOUNT,G410,MATERIALS,26/04/2023,417938,14295.31,QUANTUM BILLING - INPROVA GROUP,106944
NEWARK AND SHERWOOD DISTRICT COUNCIL,ECONOMIC DEVELOPMENT,G420,AGENCY REPAYMENTS,26/05/2023,420473,14169.5,RARE PRODUCTIONS (UK) LTD,107847
NEWARK AND SHERWOOD DISTRICT COUNCIL,POLICY & FINANCE,G450,S106 EDUCATION AND OTHER PYMT,26/05/2023,420695,14156.25,NOTTINGHAMSHIRE COUNTY COUNCIL,100393
NEWARK AND SHERWOOD DISTRICT COUNCIL,POLICY & FINANCE,G450,COMPUTER SOFTWARE MAINTENANCE,16/06/2023,422394,14062.5,INSIGHT DIRECT (UK) LTD,100226
NEWARK AND SHERWOOD DISTRICT COUNCIL,POLICY & FINANCE,G450,ELECTRICITY,12/05/2023,418601,14030.46,EDF ENERGY 1 LTD,101140
NEWARK AND SHERWOOD DISTRICT COUNCIL,POLICY & FINANCE,G450,CTAX NSDC PARISH PRECEPT PYMTS,08/04/2023,417267,14000,ELSTON PARISH COUNCIL,100149
NEWARK AND SHERWOOD DISTRICT COUNCIL,CAPITAL,G997,CONSTRUCTION,12/05/2023,419336,13685.98,MATTHEWS & TANNERT LTD,101312
NEWARK AND SHERWOOD DISTRICT COUNCIL,POLICY & FINANCE,G450,ELECTRICITY,06/04/2023,416468,13672.57,EDF ENERGY 1 LTD,101140
NEWARK AND SHERWOOD DISTRICT COUNCIL,POLICY & FINANCE,G450,HYBRID MAIL,26/05/2023,419666,13671.81,NOTTINGHAMSHIRE COUNTY COUNCIL,100393
NEWARK AND SHERWOOD DISTRICT COUNCIL,LEISURE & ENVIRONMENT,G440,PETROL AND DIESEL,28/04/2023,417958,13629.6,BWOC LTD,107672
NEWARK AND SHERWOOD DISTRICT COUNCIL,POLICY & FINANCE,G450,PROFESSIONAL SERVICES,12/05/2023,414844,13510,CIVICA UK LTD,105867
NEWARK AND SHERWOOD DISTRICT COUNCIL,POLICY & FINANCE,G450,CTAX NSDC PARISH PRECEPT PYMTS,08/04/2023,417287,13479,SUTTON-ON-TRENT PARISH COUNCIL,100528
NEWARK AND SHERWOOD DISTRICT COUNCIL,CAPITAL,G997,CONSTRUCTION,05/05/2023,418922,13385.68,OAKWORTH CONSTRUCTION LIMITED,107726
NEWARK AND SHERWOOD DISTRICT COUNCIL,CAPITAL,G997,CONSTRUCTION,16/06/2023,422239,13146.18,MATTHEWS & TANNERT LTD,101312
NEWARK AND SHERWOOD DISTRICT COUNCIL,ECONOMIC DEVELOPMENT,G420,PROFESSIONAL SERVICES,30/06/2023,423350,13094.75,TETRATECH LIMITED,107828
NEWARK AND SHERWOOD DISTRICT COUNCIL,HOUSING REVENUE ACCOUNT,G410,ELECTRICITY,05/05/2023,419128,13045.64,SCOTTISH & SOUTHERN ENERGY GROUP,103454
NEWARK AND SHERWOOD DISTRICT COUNCIL,HOUSING REVENUE ACCOUNT,G410,FIRE ALARM AND EMERGENCY LIGHT,23/06/2023,423083,12970.33,AARON SERVICES,107225
NEWARK AND SHERWOOD DISTRICT COUNCIL,ECONOMIC DEVELOPMENT,G420,PROFESSIONAL SERVICES,06/04/2023,416912,12679,INSPIRE,105677
NEWARK AND SHERWOOD DISTRICT COUNCIL,POLICY & FINANCE,G450,AUDIT FEES (INTERNAL/EXTERNAL),14/04/2023,417232,12449,MAZARS LLP,106302
NEWARK AND SHERWOOD DISTRICT COUNCIL,CAPITAL,G997,CONSTRUCTION,06/04/2023,416568,12402,NOTTINGHAM GROUNDS MAINTENANCE LTD,105832
NEWARK AND SHERWOOD DISTRICT COUNCIL,HOUSING REVENUE ACCOUNT,G410,SPEECH CALL MAINTENANCE,26/05/2023,418736,12109.33,TUNSTALL HEALTHCARE LTD,100883
NEWARK AND SHERWOOD DISTRICT COUNCIL,POLICY & FINANCE,G450,HYBRID MAIL,06/04/2023,416720,11942.78,NOTTINGHAMSHIRE COUNTY COUNCIL,100393
NEWARK AND SHERWOOD DISTRICT COUNCIL,LEISURE & ENVIRONMENT,G440,REFUSE BIN PURCHASES,14/04/2023,416535,11875,ESE WORLD LTD,102150
NEWARK AND SHERWOOD DISTRICT COUNCIL,POLICY & FINANCE,G450,INSURANCE,16/06/2023,422092,11806.17,ARTHUR J GALLAGHER INSURANCE BROKERS LIMITED,106423
NEWARK AND SHERWOOD DISTRICT COUNCIL,LEISURE & ENVIRONMENT,G440,REFUSE BIN PURCHASES,19/05/2023,419630,11760,IPL PLASTICS (UK) LTD,107848
NEWARK AND SHERWOOD DISTRICT COUNCIL,LEISURE & ENVIRONMENT,G440,REFUSE BIN PURCHASES,02/06/2023,421040,11760,IPL PLASTICS (UK) LTD,107848
NEWARK AND SHERWOOD DISTRICT COUNCIL,LEISURE & ENVIRONMENT,G440,REFUSE BIN PURCHASES,23/06/2023,422832,11760,IPL PLASTICS (UK) LTD,107848
NEWARK AND SHERWOOD DISTRICT COUNCIL,HOUSING REVENUE ACCOUNT,G410,FIRE ALARM AND EMERGENCY LIGHT,09/06/2023,421698,11397.31,AARON SERVICES,107225
NEWARK AND SHERWOOD DISTRICT COUNCIL,HOUSING REVENUE ACCOUNT,G410,FIRE ALARM AND EMERGENCY LIGHT,02/06/2023,421008,11324.54,AARON SERVICES,107225
NEWARK AND SHERWOOD DISTRICT COUNCIL,POLICY & FINANCE,G450,SUBSCRIPTIONS,05/05/2023,419127,11311.41,LOCAL GOVERNMENT ASSOCIATION,100283
NEWARK AND SHERWOOD DISTRICT COUNCIL,CAPITAL,G997,DISABLED FACILITIES,06/04/2023,416915,11299,VAUGHANDALE CONSTRUCTION LTD,100590
NEWARK AND SHERWOOD DISTRICT COUNCIL,HOUSING REVENUE ACCOUNT,G410,SPEECH CALL MAINTENANCE,26/05/2023,420476,11239.2,TUNSTALL HEALTHCARE LTD,100883
NEWARK AND SHERWOOD DISTRICT COUNCIL,POLICY & FINANCE,G450,ELECTION EXPENSES,09/06/2023,421643,11232.5,PRINT IMAGE NETWORK LTD,100431
NEWARK AND SHERWOOD DISTRICT COUNCIL,POLICY & FINANCE,G450,CTAX NSDC PARISH PRECEPT PYMTS,08/04/2023,417272,11188.5,GUNTHORPE PARISH COUNCIL,100192
NEWARK AND SHERWOOD DISTRICT COUNCIL,ECONOMIC DEVELOPMENT,G420,ARTISTS FEES,06/04/2023,416984,11133.75,GRAHAM PLATTS MANAGEMENT T/AS,101185
NEWARK AND SHERWOOD DISTRICT COUNCIL,POLICY & FINANCE,G450,ELECTION EXPENSES,19/05/2023,419841,10923.9,ROYAL MAIL GROUP LTD,100469
NEWARK AND SHERWOOD DISTRICT COUNCIL,POLICY & FINANCE,G450,HYBRID MAIL,16/06/2023,422350,10812.26,NOTTINGHAMSHIRE COUNTY COUNCIL,100393
NEWARK AND SHERWOOD DISTRICT COUNCIL,HOMES & COMMUNITIES,G430,PREVENTION FUND,12/05/2023,419167,10790,ASHFIELD DISTRICT COUNCIL,100022
NEWARK AND SHERWOOD DISTRICT COUNCIL,ECONOMIC DEVELOPMENT,G420,ARTISTS FEES,09/06/2023,421746,10788.37,COLE MUSIC PRODUCTIONS (UK) LTD,107300
NEWARK AND SHERWOOD DISTRICT COUNCIL,CAPITAL,G997,CONSTRUCTION,26/05/2023,420435,10651.3,MARTIN ASHLEY LLP,106192
NEWARK AND SHERWOOD DISTRICT COUNCIL,ECONOMIC DEVELOPMENT,G420,ARTISTS FEES,30/06/2023,423549,10525.24,STEVE STEINMAN PRODUCTIONS,106581
NEWARK AND SHERWOOD DISTRICT COUNCIL,ECONOMIC DEVELOPMENT,G420,LEGAL FEES OUTSOURCED,21/04/2023,417559,10189.54,TOWN LEGAL LLP,107832
NEWARK AND SHERWOOD DISTRICT COUNCIL,CAPITAL,G997,PROFESSIONAL FEES,06/04/2023,416910,10100,WT PARTNERSHIP,106087
NEWARK AND SHERWOOD DISTRICT COUNCIL,HOMES & COMMUNITIES,G430,PROFESSIONAL SERVICES,06/04/2023,417004,10052.7,BAYDALE CONTROL SYSTEMS LTD,106617
NEWARK AND SHERWOOD DISTRICT COUNCIL,HOMES & COMMUNITIES,G430,PREVENTION FUND,12/05/2023,419166,10000,ASHFIELD DISTRICT COUNCIL,100022
NEWARK AND SHERWOOD DISTRICT COUNCIL,POLICY & FINANCE,G450,COMPUTER SOFTWARE MAINTENANCE,30/06/2023,423366,10000,IDOX SOFTWARE LTD,100738
NEWARK AND SHERWOOD DISTRICT COUNCIL,CAPITAL,G997,CONSTRUCTION,16/06/2023,422168,10000,WALDRAMS LTD,107849
NEWARK AND SHERWOOD DISTRICT COUNCIL,CAPITAL,G997,CONSTRUCTION,30/06/2023,423518,9975,IHCS LTD,106095
NEWARK AND SHERWOOD DISTRICT COUNCIL,HOUSING REVENUE ACCOUNT,G410,FIRE ALARM AND EMERGENCY LIGHT,12/05/2023,419211,9908.58,HD ELECTRICAL SYSTEMS LTD,105293
NEWARK AND SHERWOOD DISTRICT COUNCIL,CAPITAL,G997,CONSTRUCTION,05/05/2023,418202,9675,BELVIN CONSTRUCTION LTD,107851
NEWARK AND SHERWOOD DISTRICT COUNCIL,HOUSING REVENUE ACCOUNT,G410,SUBSCRIPTIONS,16/06/2023,422302,9649.2,METER MANAGER LTD,107324
NEWARK AND SHERWOOD DISTRICT COUNCIL,CAPITAL,G997,CONSTRUCTION,09/06/2023,421697,9573.21,AARON SERVICES,107225
NEWARK AND SHERWOOD DISTRICT COUNCIL,POLICY & FINANCE,G450,COMPUTER SOFTWARE MAINTENANCE,12/05/2023,419144,9550.33,VIRGIN MEDIA BUSINESS,100934
NEWARK AND SHERWOOD DISTRICT COUNCIL,CAPITAL,G997,CONSTRUCTION,12/05/2023,419289,9532.19,AARON SERVICES,107225
NEWARK AND SHERWOOD DISTRICT COUNCIL,POLICY & FINANCE,G450,COMPUTER SOFTWARE MAINTENANCE,09/06/2023,421807,9515.15,VIRGIN MEDIA BUSINESS,100934
NEWARK AND SHERWOOD DISTRICT COUNCIL,HOUSING REVENUE ACCOUNT,G410,FIRE ALARM AND EMERGENCY LIGHT,05/05/2023,418645,9508.58,HD ELECTRICAL SYSTEMS LTD,105293
NEWARK AND SHERWOOD DISTRICT COUNCIL,CAPITAL,G997,CONSTRUCTION,23/06/2023,423082,9393.23,AARON SERVICES,107225
NEWARK AND SHERWOOD DISTRICT COUNCIL,HOMES & COMMUNITIES,G430,PROFESSIONAL SERVICES,06/04/2023,416488,9390,CES LIGHTING & ELECTRICAL SPECIALISTS LLP,107852
NEWARK AND SHERWOOD DISTRICT COUNCIL,POLICY & FINANCE,G450,CTAX NSDC PARISH PRECEPT PYMTS,08/04/2023,417256,9341.5,BLEASBY PARISH COUNCIL,100044
NEWARK AND SHERWOOD DISTRICT COUNCIL,CAPITAL,G997,CONSTRUCTION,30/06/2023,423382,9313.23,LINDUM GROUP LTD,100651
NEWARK AND SHERWOOD DISTRICT COUNCIL,CAPITAL,G997,CONSTRUCTION,14/04/2023,417340,9293.57,MATTHEWS & TANNERT LTD,101312
NEWARK AND SHERWOOD DISTRICT COUNCIL,HOUSING REVENUE ACCOUNT,G410,MATERIALS,23/06/2023,423274,9292.01,QUANTUM BILLING - INPROVA GROUP,106944
NEWARK AND SHERWOOD DISTRICT COUNCIL,POLICY & FINANCE,G450,CTAX NSDC PARISH PRECEPT PYMTS,08/04/2023,417280,9202.5,NORTH MUSKHAM PARISH COUNCIL,100383
NEWARK AND SHERWOOD DISTRICT COUNCIL,POLICY & FINANCE,G450,ELECTION EXPENSES,09/06/2023,421642,9025.25,PRINT IMAGE NETWORK LTD,100431
NEWARK AND SHERWOOD DISTRICT COUNCIL,HOMES & COMMUNITIES,G430,CONTRACTUAL SERVICES,23/06/2023,422940,9023.12,NOTTS POLICE AND CRIME COMMISSIONER,101784
NEWARK AND SHERWOOD DISTRICT COUNCIL,POLICY & FINANCE,G450,CTAX NSDC PARISH PRECEPT PYMTS,08/04/2023,417282,8970.5,OXTON PARISH COUNCIL,100417
NEWARK AND SHERWOOD DISTRICT COUNCIL,CAPITAL,G997,CONSTRUCTION,30/06/2023,423515,8965.68,IHCS LTD,106095
NEWARK AND SHERWOOD DISTRICT COUNCIL,POLICY & FINANCE,G450,ELECTION EXPENSES,21/04/2023,417448,8933,PRINT IMAGE NETWORK LTD,100431
NEWARK AND SHERWOOD DISTRICT COUNCIL,CAPITAL,G997,DISABLED FACILITIES,23/06/2023,422982,8932.17,VAUGHANDALE CONSTRUCTION LTD,100590
NEWARK AND SHERWOOD DISTRICT COUNCIL,LEISURE & ENVIRONMENT,G440,REFUSE BIN PURCHASES,05/05/2023,418718,8880,STORM ENVIRONMENTAL LIMITED,106785
NEWARK AND SHERWOOD DISTRICT COUNCIL,ECONOMIC DEVELOPMENT,G420,AGENCY REPAYMENTS,06/04/2023,416982,8800,STRICTLY THEATRE CO,107853
NEWARK AND SHERWOOD DISTRICT COUNCIL,HOUSING REVENUE ACCOUNT,G410,CLEANING CONTRACT,28/04/2023,418095,8766.14,HI-SPEC FACILITIES SUPPORT CO PLC,101303
NEWARK AND SHERWOOD DISTRICT COUNCIL,HOMES & COMMUNITIES,G430,PREVENTION FUND,30/06/2023,421734,8755,ASHFIELD DISTRICT COUNCIL,100022
NEWARK AND SHERWOOD DISTRICT COUNCIL,HOMES & COMMUNITIES,G430,CONTRACTUAL SERVICES,23/06/2023,422938,8696.37,NOTTS POLICE AND CRIME COMMISSIONER,101784
NEWARK AND SHERWOOD DISTRICT COUNCIL,HOUSING REVENUE ACCOUNT,G410,CONTRACTUAL SERVICES,19/05/2023,419849,8618.26,NOVUS PROPERTY SOLUTIONS LTD,107362
NEWARK AND SHERWOOD DISTRICT COUNCIL,HOUSING REVENUE ACCOUNT,G410,LEGIONELLA TESTING & REMEDIALS,26/04/2023,417763,8600,MITIE TF MANAGEMENT LTD,107698
NEWARK AND SHERWOOD DISTRICT COUNCIL,POLICY & FINANCE,G450,COMPUTER SOFTWARE,16/06/2023,422406,8532.86,8X8 UK LIMITED,106958
NEWARK AND SHERWOOD DISTRICT COUNCIL,POLICY & FINANCE,G450,STANDING CHARGES TELEPHONES,21/04/2023,417430,8532.86,8X8 UK LIMITED,106958
NEWARK AND SHERWOOD DISTRICT COUNCIL,POLICY & FINANCE,G450,STANDING CHARGES TELEPHONES,19/05/2023,419985,8532.86,8X8 UK LIMITED,106958
NEWARK AND SHERWOOD DISTRICT COUNCIL,CAPITAL,G997,CONSTRUCTION,23/06/2023,422925,8500,WRIGHT RENEWABLE HEATING LTD,107744
NEWARK AND SHERWOOD DISTRICT COUNCIL,HOUSING REVENUE ACCOUNT,G410,ELECTRICITY,28/06/2023,423390,8471.48,SCOTTISH & SOUTHERN ENERGY GROUP,103454
NEWARK AND SHERWOOD DISTRICT COUNCIL,POLICY & FINANCE,G450,CTAX NSDC PARISH PRECEPT PYMTS,08/04/2023,417262,8463.5,CODDINGTON PARISH COUNCIL,100103
NEWARK AND SHERWOOD DISTRICT COUNCIL,HOUSING REVENUE ACCOUNT,G410,CLEANING CONTRACT,30/06/2023,423506,8446.81,HI-SPEC FACILITIES SUPPORT CO PLC,101303
NEWARK AND SHERWOOD DISTRICT COUNCIL,ECONOMIC DEVELOPMENT,G420,PROFESSIONAL SERVICES,02/06/2023,421170,8350,NISSEN RICHARDS STUDIO,107808
NEWARK AND SHERWOOD DISTRICT COUNCIL,ECONOMIC DEVELOPMENT,G420,PREMISES R&R PROJECT 1,21/04/2023,417525,8333,VIKING ELECTRICAL LTD,107743
NEWARK AND SHERWOOD DISTRICT COUNCIL,POLICY & FINANCE,G450,AUDIT FEES (INTERNAL/EXTERNAL),30/06/2023,423284,8299.33,MAZARS LLP,106302
NEWARK AND SHERWOOD DISTRICT COUNCIL,HOMES & COMMUNITIES,G430,THIRD PARTY AGENTS,30/06/2023,423344,8181.4,ENIGMA CCTV LTD,107854
NEWARK AND SHERWOOD DISTRICT COUNCIL,POLICY & FINANCE,G450,COMPUTER SOFTWARE MAINTENANCE,12/05/2023,419145,8163.5,VIRGIN MEDIA BUSINESS,100934
NEWARK AND SHERWOOD DISTRICT COUNCIL,ECONOMIC DEVELOPMENT,G420,BUILDING CONTROL CON 29,02/06/2023,419632,8114.85,SOUTH KESTEVEN DISTRICT COUNCIL,103477
NEWARK AND SHERWOOD DISTRICT COUNCIL,ECONOMIC DEVELOPMENT,G420,ARTISTS FEES,16/06/2023,422215,8110.26,ARTISTES INTERNATIONAL MANAGEMENT LTD,101285
NEWARK AND SHERWOOD DISTRICT COUNCIL,HOUSING REVENUE ACCOUNT,G410,CONTRACTUAL SERVICES,28/04/2023,418125,8105.64,PHOENIX GAS SERVICES LTD,107576
NEWARK AND SHERWOOD DISTRICT COUNCIL,HOUSING REVENUE ACCOUNT,G410,FIRE ALARM AND EMERGENCY LIGHT,26/05/2023,420697,8038.47,AARON SERVICES,107225
NEWARK AND SHERWOOD DISTRICT COUNCIL,POLICY & FINANCE,G450,CTAX NSDC PARISH PRECEPT PYMTS,08/04/2023,417268,8025,EPPERSTONE PARISH COUNCIL,100152
NEWARK AND SHERWOOD DISTRICT COUNCIL,HOMES & COMMUNITIES,G430,COMMUNICATIONS SERVICES,26/05/2023,420661,8000,GRANICUS-FIRMSTEP LTD,107187
NEWARK AND SHERWOOD DISTRICT COUNCIL,POLICY & FINANCE,G450,CTAX NSDC PARISH PRECEPT PYMTS,08/04/2023,417275,8000,HOVERINGHAM PARISH COUNCIL,100215
NEWARK AND SHERWOOD DISTRICT COUNCIL,POLICY & FINANCE,G450,REPAIRS AND MAINTENANCE,19/05/2023,419635,7989,VIKING ELECTRICAL LTD,107743
NEWARK AND SHERWOOD DISTRICT COUNCIL,POLICY & FINANCE,G450,CLEANING CONTRACT,19/05/2023,419821,7921.89,ATLAS FACILITIES MANAGEMENT LIMITED,106088
NEWARK AND SHERWOOD DISTRICT COUNCIL,ECONOMIC DEVELOPMENT,G420,ELECTRICITY,16/06/2023,422315,7894.26,EDF ENERGY 1 LTD,101140
NEWARK AND SHERWOOD DISTRICT COUNCIL,POLICY & FINANCE,G450,COMPUTER SOFTWARE MAINTENANCE,16/06/2023,422096,7812,IKEN BUSINESS LIMITED,107421
NEWARK AND SHERWOOD DISTRICT COUNCIL,LEISURE & ENVIRONMENT,G440,COMMUNICATION CAMPAIGNS,16/06/2023,422166,7800,NOTTINGHAMSHIRE COUNTY COUNCIL,100393
NEWARK AND SHERWOOD DISTRICT COUNCIL,HOUSING REVENUE ACCOUNT,G410,SEWAGE WORKS ROUTINE MAINTNCE,19/05/2023,419820,7737.5,NOVUS PROPERTY SOLUTIONS LTD,107362
NEWARK AND SHERWOOD DISTRICT COUNCIL,ECONOMIC DEVELOPMENT,G420,ELECTRICITY,16/06/2023,422492,7627.89,EDF ENERGY 1 LTD,101140
NEWARK AND SHERWOOD DISTRICT COUNCIL,POLICY & FINANCE,G450,CONTRACTUAL SERVICES,16/06/2023,422146,7624,CIVICA UK LTD,105867
NEWARK AND SHERWOOD DISTRICT COUNCIL,CAPITAL,G997,CONSTRUCTION,02/06/2023,421007,7607.78,AARON SERVICES,107225
NEWARK AND SHERWOOD DISTRICT COUNCIL,HOUSING REVENUE ACCOUNT,G410,CONTRACTUAL SERVICES,05/05/2023,418685,7575.4,NOVUS PROPERTY SOLUTIONS LTD,107362
NEWARK AND SHERWOOD DISTRICT COUNCIL,ECONOMIC DEVELOPMENT,G420,COMPUTER SOFTWARE MAINTENANCE,09/06/2023,421519,7520,INOVEM LTD,105503
NEWARK AND SHERWOOD DISTRICT COUNCIL,ECONOMIC DEVELOPMENT,G420,AGENCY REPAYMENTS,12/05/2023,419268,7479,LIVE PROMOTIONS EVENTS LTD,107855
NEWARK AND SHERWOOD DISTRICT COUNCIL,POLICY & FINANCE,G450,CONTRACTUAL SERVICES,06/04/2023,416922,7395.78,ATLAS FACILITIES MANAGEMENT LIMITED,106088
NEWARK AND SHERWOOD DISTRICT COUNCIL,LEISURE & ENVIRONMENT,G440,TYRES,16/06/2023,422174,7341,LODGE TYRE CO LTD,104560
NEWARK AND SHERWOOD DISTRICT COUNCIL,ECONOMIC DEVELOPMENT,G420,PROFESSIONAL SERVICES,06/04/2023,416913,7225.15,INSPIRE,105677
NEWARK AND SHERWOOD DISTRICT COUNCIL,POLICY & FINANCE,G450,AGENCY STAFF,19/05/2023,419629,7200,PRECISION RESOURCE GROUP,107730
NEWARK AND SHERWOOD DISTRICT COUNCIL,ECONOMIC DEVELOPMENT,G420,PROFESSIONAL SERVICES,26/05/2023,420649,7150,Q A BUSINESS ASSIST LTD,105267
NEWARK AND SHERWOOD DISTRICT COUNCIL,POLICY & FINANCE,G450,COMPUTER SOFTWARE MAINTENANCE,09/06/2023,421809,7060.89,VIRGIN MEDIA BUSINESS,100934
NEWARK AND SHERWOOD DISTRICT COUNCIL,HOMES & COMMUNITIES,G430,THIRD PARTY AGENTS,26/05/2023,420442,7058.2,BROXTOWE BOROUGH COUNCIL,100063
NEWARK AND SHERWOOD DISTRICT COUNCIL,HOUSING REVENUE ACCOUNT,G410,MATERIALS,23/05/2023,420390,7013.02,QUANTUM BILLING - INPROVA GROUP,106944
NEWARK AND SHERWOOD DISTRICT COUNCIL,HOMES & COMMUNITIES,G430,THIRD PARTY AGENTS,21/04/2023,417470,6984.35,BROXTOWE BOROUGH COUNCIL,100063
NEWARK AND SHERWOOD DISTRICT COUNCIL,CAPITAL,G997,CONSTRUCTION,06/04/2023,416709,6946.15,NOVUS PROPERTY SOLUTIONS LTD,107362
NEWARK AND SHERWOOD DISTRICT COUNCIL,POLICY & FINANCE,G450,AGENCY STAFF,19/05/2023,418961,6900,PRECISION RESOURCE GROUP,107730
NEWARK AND SHERWOOD DISTRICT COUNCIL,POLICY & FINANCE,G450,CTAX NSDC PARISH PRECEPT PYMTS,08/04/2023,417285,6858.5,SOUTH MUSKHAM PARISH COUNCIL,100512
NEWARK AND SHERWOOD DISTRICT COUNCIL,POLICY & FINANCE,G450,DRAINAGE RATES,26/04/2023,418007,6800.81,UPPER WITHAM INTERNAL DRAINAGE BOARD,101956
NEWARK AND SHERWOOD DISTRICT COUNCIL,HOUSING REVENUE ACCOUNT,G410,CONTRACTUAL SERVICES,05/05/2023,418956,6800,FARRENDALE LTD,106640
NEWARK AND SHERWOOD DISTRICT COUNCIL,POLICY & FINANCE,G450,LEGAL FEES OUTSOURCED,21/04/2023,417551,6745.6,ANTHONY COLLINS SOLICITORS LLP,100014
NEWARK AND SHERWOOD DISTRICT COUNCIL,CAPITAL,G997,DISABLED FACILITIES,19/05/2023,419946,6675,VAUGHANDALE CONSTRUCTION LTD,100590
NEWARK AND SHERWOOD DISTRICT COUNCIL,POLICY & FINANCE,G450,CTAX NSDC PARISH PRECEPT PYMTS,08/04/2023,417289,6637.5,THURGARTON PARISH COUNCIL,100564
NEWARK AND SHERWOOD DISTRICT COUNCIL,HOUSING REVENUE ACCOUNT,G410,CONTRACTUAL SERVICES,19/05/2023,419657,6468.11,NOVUS PROPERTY SOLUTIONS LTD,107362
NEWARK AND SHERWOOD DISTRICT COUNCIL,CAPITAL,G997,CONSTRUCTION,06/04/2023,416710,6450.51,NOVUS PROPERTY SOLUTIONS LTD,107362
NEWARK AND SHERWOOD DISTRICT COUNCIL,HOUSING REVENUE ACCOUNT,G410,CONTRACTUAL SERVICES,06/04/2023,416874,6400,FARRENDALE LTD,106640
NEWARK AND SHERWOOD DISTRICT COUNCIL,HOUSING REVENUE ACCOUNT,G410,GAS,19/05/2023,419762,6325.65,BRITISH GAS BUSINESS,100840
NEWARK AND SHERWOOD DISTRICT COUNCIL,CAPITAL,G997,DISABLED FACILITIES,23/06/2023,422986,6315,STANNAH LIFTS SERVICE LTD,101327
NEWARK AND SHERWOOD DISTRICT COUNCIL,POLICY & FINANCE,G450,PREMISES SECURITY,06/04/2023,416760,6251.4,FOREMOST SECURITY,105979
NEWARK AND SHERWOOD DISTRICT COUNCIL,POLICY & FINANCE,G450,PREMISES SECURITY,09/06/2023,421547,6251.4,FOREMOST SECURITY,105979
NEWARK AND SHERWOOD DISTRICT COUNCIL,ECONOMIC DEVELOPMENT,G420,ARTISTS FEES,09/06/2023,421526,6048.2,A WAY WITH MEDIA PRODUCTIONS LTD,106378
NEWARK AND SHERWOOD DISTRICT COUNCIL,POLICY & FINANCE,G450,CLEANING CONTRACT,23/06/2023,422777,6046.56,ATLAS FACILITIES MANAGEMENT LIMITED,106088
NEWARK AND SHERWOOD DISTRICT COUNCIL,CAPITAL,G997,CONSTRUCTION,26/05/2023,420305,6000,CALFORD SEADEN LLP,107599
NEWARK AND SHERWOOD DISTRICT COUNCIL,CAPITAL,G997,CONSTRUCTION,26/05/2023,420696,5978.52,AARON SERVICES,107225
NEWARK AND SHERWOOD DISTRICT COUNCIL,CAPITAL,G997,CONSTRUCTION,19/05/2023,419275,5922.5,JACKSON DESIGN ASSOCIATES LIMITED,106431
NEWARK AND SHERWOOD DISTRICT COUNCIL,POLICY & FINANCE,G450,ELECTION EXPENSES,09/06/2023,421651,5899.08,ROYAL MAIL GROUP LTD,100469
NEWARK AND SHERWOOD DISTRICT COUNCIL,HOUSING REVENUE ACCOUNT,G410,CONTRACTUAL SERVICES,19/05/2023,419851,5889.74,NOVUS PROPERTY SOLUTIONS LTD,107362
NEWARK AND SHERWOOD DISTRICT COUNCIL,POLICY & FINANCE,G450,ELECTRICITY,16/06/2023,422471,5863.6,EDF ENERGY 1 LTD,101140
NEWARK AND SHERWOOD DISTRICT COUNCIL,HOUSING REVENUE ACCOUNT,G410,CONTRACTUAL SERVICES,19/05/2023,419755,5845,FARRENDALE LTD,106640
NEWARK AND SHERWOOD DISTRICT COUNCIL,ECONOMIC DEVELOPMENT,G420,PROFESSIONAL SERVICES,05/05/2023,418889,5800,NISSEN RICHARDS STUDIO,107808
NEWARK AND SHERWOOD DISTRICT COUNCIL,POLICY & FINANCE,G450,CTAX NSDC PARISH PRECEPT PYMTS,08/04/2023,417265,5750,EDINGLEY PARISH COUNCIL,100142
NEWARK AND SHERWOOD DISTRICT COUNCIL,POLICY & FINANCE,G450,HARDWARE MAINTENANCE,19/05/2023,419706,5724,CENTERPRISE INTERNATIONAL LIMITED,106091
NEWARK AND SHERWOOD DISTRICT COUNCIL,ECONOMIC DEVELOPMENT,G420,ARTISTS FEES,05/05/2023,418902,5693.16,ARTISTES INTERNATIONAL MANAGEMENT LTD,101285
NEWARK AND SHERWOOD DISTRICT COUNCIL,ECONOMIC DEVELOPMENT,G420,ARTISTS FEES,30/06/2023,423547,5504,PHIL ALDRIDGE PRODUCTIONS LTD,107856
NEWARK AND SHERWOOD DISTRICT COUNCIL,ECONOMIC DEVELOPMENT,G420,PREMISES SECURITY,12/05/2023,419382,5488,MAGPIE SECURITY LTD,102002
NEWARK AND SHERWOOD DISTRICT COUNCIL,ECONOMIC DEVELOPMENT,G420,ELECTRICITY,06/04/2023,416308,5445.01,EDF ENERGY 1 LTD,101140
NEWARK AND SHERWOOD DISTRICT COUNCIL,POLICY & FINANCE,G450,ADVERTISING,28/04/2023,418329,5444.7,SF RECRUITMENT LTD,107857
NEWARK AND SHERWOOD DISTRICT COUNCIL,POLICY & FINANCE,G450,PREMISES SECURITY,05/05/2023,418703,5436,FOREMOST SECURITY,105979
NEWARK AND SHERWOOD DISTRICT COUNCIL,POLICY & FINANCE,G992,NDR RENEWABLE ENERGY,17/04/2023,417404,5427,NOTTINGHAMSHIRE COUNTY COUNCIL,100393
NEWARK AND SHERWOOD DISTRICT COUNCIL,POLICY & FINANCE,G992,NDR RENEWABLE ENERGY,23/05/2023,420419,5427,NOTTINGHAMSHIRE COUNTY COUNCIL,100393
NEWARK AND SHERWOOD DISTRICT COUNCIL,POLICY & FINANCE,G992,NDR RENEWABLE ENERGY,28/06/2023,423430,5427,NOTTINGHAMSHIRE COUNTY COUNCIL,100393
NEWARK AND SHERWOOD DISTRICT COUNCIL,HOMES & COMMUNITIES,G430,PLAY LEADERSHIP,19/05/2023,417475,5400,NEWARK & SHERWOOD COMMUNITY HUB,106310
NEWARK AND SHERWOOD DISTRICT COUNCIL,POLICY & FINANCE,G450,AGENCY STAFF,09/06/2023,421542,5400,PRECISION RESOURCE GROUP,107730
NEWARK AND SHERWOOD DISTRICT COUNCIL,CAPITAL,G997,CONSTRUCTION,06/04/2023,416499,5387.8,NOVUS PROPERTY SOLUTIONS LTD,107362
NEWARK AND SHERWOOD DISTRICT COUNCIL,CAPITAL,G997,CONSTRUCTION,19/05/2023,419959,5332.66,MATTHEWS & TANNERT LTD,101312
NEWARK AND SHERWOOD DISTRICT COUNCIL,CAPITAL,G997,CONSTRUCTION,28/04/2023,417565,5322.15,MATTHEWS & TANNERT LTD,101312
NEWARK AND SHERWOOD DISTRICT COUNCIL,ECONOMIC DEVELOPMENT,G420,PROFESSIONAL SERVICES,19/05/2023,419696,5320,ADDLESHAW GODDARD LLP,105557
NEWARK AND SHERWOOD DISTRICT COUNCIL,CAPITAL,G997,CONSTRUCTION,23/06/2023,422883,5288.5,NEIL SHACKLOCK PLUMBING AND HEATING  LTD,104679
NEWARK AND SHERWOOD DISTRICT COUNCIL,CAPITAL,G997,CONSTRUCTION,30/06/2023,422869,5260.55,LINDUM GROUP LTD,100651
NEWARK AND SHERWOOD DISTRICT COUNCIL,HOMES & COMMUNITIES,G430,COMMUNICATION CAMPAIGNS,26/05/2023,420660,5217.14,SITEIMPROVE LTD,105890
NEWARK AND SHERWOOD DISTRICT COUNCIL,CAPITAL,G997,CONSTRUCTION,28/04/2023,418102,5215,JORDAN ROAD SURFACING LTD,107422
NEWARK AND SHERWOOD DISTRICT COUNCIL,POLICY & FINANCE,G450,ELECTRICITY,16/06/2023,422299,5150.65,EDF ENERGY 1 LTD,101140
NEWARK AND SHERWOOD DISTRICT COUNCIL,ECONOMIC DEVELOPMENT,G420,ARTISTS FEES,23/06/2023,423068,5148.26,MAPLE TREE ENTERTAINMENT LIMITED,104531
NEWARK AND SHERWOOD DISTRICT COUNCIL,ECONOMIC DEVELOPMENT,G420,ARTISTS FEES,30/06/2023,423543,5133.61,PRESTIGE PRODUCTIONS LTD,105060
NEWARK AND SHERWOOD DISTRICT COUNCIL,POLICY & FINANCE,G450,LEGIONELLA SERVICING,06/04/2023,416897,5112.85,MITIE TF MANAGEMENT LTD,107698
NEWARK AND SHERWOOD DISTRICT COUNCIL,POLICY & FINANCE,G450,LEGIONELLA SERVICING,16/06/2023,421529,5112.85,MITIE TF MANAGEMENT LTD,107698
NEWARK AND SHERWOOD DISTRICT COUNCIL,ECONOMIC DEVELOPMENT,G420,AGENCY STAFF,21/04/2023,417499,5096.25,GHM PLANNING LTD,105330
NEWARK AND SHERWOOD DISTRICT COUNCIL,ECONOMIC DEVELOPMENT,G420,PROFESSIONAL SERVICES,30/06/2023,423330,5085,DBA CONSULTING,106184
NEWARK AND SHERWOOD DISTRICT COUNCIL,CAPITAL,G997,DISABLED FACILITIES,12/05/2023,419339,5035,STANNAH LIFTS SERVICE LTD,101327
NEWARK AND SHERWOOD DISTRICT COUNCIL,POLICY & FINANCE,G450,CTAX NSDC PARISH PRECEPT PYMTS,08/04/2023,417258,5000,BULCOTE PARISH COUNCIL,100065
NEWARK AND SHERWOOD DISTRICT COUNCIL,HOMES & COMMUNITIES,G430,CONTRACTUAL SERVICES,06/04/2023,416538,5000,HILL HOLT IN THE COMMUNITY LTD,107654
NEWARK AND SHERWOOD DISTRICT COUNCIL,CAPITAL,G997,CONSTRUCTION,23/06/2023,422381,5000,MARTIN ASHLEY LLP,106192
NEWARK AND SHERWOOD DISTRICT COUNCIL,LEISURE & ENVIRONMENT,G440,PROMOTION OF EVENTS,14/04/2023,417327,5000,SUTTON ON TRENT SPORTS CLUB,107859
NEWARK AND SHERWOOD DISTRICT COUNCIL,LEISURE & ENVIRONMENT,G440,TYRES,06/04/2023,416617,4993.95,LODGE TYRE CO LTD,104560
NEWARK AND SHERWOOD DISTRICT COUNCIL,POLICY & FINANCE,G450,CTAX NSDC PARISH PRECEPT PYMTS,08/04/2023,417296,4987.5,KINGS CLIPSTONE PARISH COUNCIL,101090
NEWARK AND SHERWOOD DISTRICT COUNCIL,HOUSING REVENUE ACCOUNT,G410,PREMISES SECURITY,16/06/2023,422516,4950,BLOOM DEMOLITION & EXCAVATION LIMITED,107298
NEWARK AND SHERWOOD DISTRICT COUNCIL,POLICY & FINANCE,G450,COMPUTER SOFTWARE,28/04/2023,418313,4950,JGP RESOURCING LIMITED,101356
NEWARK AND SHERWOOD DISTRICT COUNCIL,CAPITAL,G997,DISABLED FACILITIES,12/05/2023,419365,4845,JOHN WHITEHEAD PLUMBING AND HEATING,107207
NEWARK AND SHERWOOD DISTRICT COUNCIL,ECONOMIC DEVELOPMENT,G420,ELECTRICITY,06/04/2023,416314,4843.41,EDF ENERGY 1 LTD,101140
NEWARK AND SHERWOOD DISTRICT COUNCIL,HOUSING REVENUE ACCOUNT,G410,CONTRACTUAL SERVICES,05/05/2023,418686,4833.11,NOVUS PROPERTY SOLUTIONS LTD,107362
NEWARK AND SHERWOOD DISTRICT COUNCIL,CAPITAL,G997,CONSTRUCTION,09/06/2023,421522,4809,PREMIER MOBILITY (UK) LIMITED,106576
NEWARK AND SHERWOOD DISTRICT COUNCIL,ECONOMIC DEVELOPMENT,G420,CONTRACTUAL SERVICES,28/04/2023,418001,4806.82,WATCH-IT SECURITY SERVICES LTD,103618
NEWARK AND SHERWOOD DISTRICT COUNCIL,ECONOMIC DEVELOPMENT,G420,CONTRACTUAL SERVICES,09/06/2023,421855,4790.8,WATCH-IT SECURITY SERVICES LTD,103618
NEWARK AND SHERWOOD DISTRICT COUNCIL,POLICY & FINANCE,G450,POSTAGES,19/05/2023,419643,4750,EVOLUTION IN TECHNOLOGY LIMITED,106252
NEWARK AND SHERWOOD DISTRICT COUNCIL,CAPITAL,G997,CONSTRUCTION,16/06/2023,422352,4750,PREMIER MOBILITY (UK) LIMITED,106576
NEWARK AND SHERWOOD DISTRICT COUNCIL,POLICY & FINANCE,G450,COMPUTER SOFTWARE MAINTENANCE,16/06/2023,421556,4729.2,VIRGIN MEDIA BUSINESS,100934
NEWARK AND SHERWOOD DISTRICT COUNCIL,POLICY & FINANCE,G450,SUBSCRIPTIONS,03/04/2023,416656,4725,CIPFA BUSINESS LTD,100090
NEWARK AND SHERWOOD DISTRICT COUNCIL,POLICY & FINANCE,G450,CTAX NSDC PARISH PRECEPT PYMTS,08/04/2023,417294,4725,WINTHORPE WITH LANGFORD PARISH COUNCIL,101576
NEWARK AND SHERWOOD DISTRICT COUNCIL,ECONOMIC DEVELOPMENT,G420,CONTRACTUAL SERVICES,30/06/2023,423348,4708.22,WATCH-IT SECURITY SERVICES LTD,103618
NEWARK AND SHERWOOD DISTRICT COUNCIL,LEISURE & ENVIRONMENT,G440,PROFESSIONAL SERVICES,02/06/2023,421067,4702.5,EDWINSTOWE PARISH COUNCIL,100143
NEWARK AND SHERWOOD DISTRICT COUNCIL,CAPITAL,G997,DISABLED FACILITIES,19/05/2023,419690,4680,ABAKUS ENGINEERING LTD,105379
NEWARK AND SHERWOOD DISTRICT COUNCIL,POLICY & FINANCE,G450,CTAX NSDC PARISH PRECEPT PYMTS,08/04/2023,417271,4650,FISKERTON PARISH COUNCIL,100166
NEWARK AND SHERWOOD DISTRICT COUNCIL,CAPITAL,G997,CONSTRUCTION,06/04/2023,416469,4625,PREMIER MOBILITY (UK) LIMITED,106576
NEWARK AND SHERWOOD DISTRICT COUNCIL,ECONOMIC DEVELOPMENT,G420,PREMISES R&R PROJECT 1,02/06/2023,421005,4613,AEGIS TECHNOLOGIES LTD,104948
NEWARK AND SHERWOOD DISTRICT COUNCIL,CAPITAL,G997,CONSTRUCTION,06/04/2023,416496,4589.48,NOVUS PROPERTY SOLUTIONS LTD,107362
NEWARK AND SHERWOOD DISTRICT COUNCIL,POLICY & FINANCE,G450,CTAX NSDC PARISH PRECEPT PYMTS,08/04/2023,417281,4561.5,NORWELL PARISH COUNCIL,100388
NEWARK AND SHERWOOD DISTRICT COUNCIL,ECONOMIC DEVELOPMENT,G420,ELECTRICITY,12/05/2023,418598,4529.84,EDF ENERGY 1 LTD,101140
NEWARK AND SHERWOOD DISTRICT COUNCIL,POLICY & FINANCE,G450,COMPUTER SOFTWARE MAINTENANCE,30/06/2023,423318,4500,MERITEC LTD,105609
NEWARK AND SHERWOOD DISTRICT COUNCIL,HOMES & COMMUNITIES,G430,COMMUNICATION CAMPAIGNS,23/06/2023,422760,4500,PRGLOO LIMITED,107459
NEWARK AND SHERWOOD DISTRICT COUNCIL,POLICY & FINANCE,G450,INTERNAL TRAINING,16/06/2023,422094,4485,THE KNOWLEDGE ACADEMY LIMITED,106226
NEWARK AND SHERWOOD DISTRICT COUNCIL,ECONOMIC DEVELOPMENT,G420,ARTISTS FEES,16/06/2023,422214,4477.96,ARTISTES INTERNATIONAL MANAGEMENT LTD,101285
NEWARK AND SHERWOOD DISTRICT COUNCIL,POLICY & FINANCE,G450,INSURANCE,16/06/2023,421268,4422.09,ARTHUR J GALLAGHER INSURANCE BROKERS LIMITED,106423
NEWARK AND SHERWOOD DISTRICT COUNCIL,HOUSING REVENUE ACCOUNT,G410,PROFESSIONAL SERVICES,05/05/2023,418853,4400,VIEWPOINT COMMUNITY INTEREST COMPANY,106797
NEWARK AND SHERWOOD DISTRICT COUNCIL,ECONOMIC DEVELOPMENT,G420,PROFESSIONAL SERVICES,19/05/2023,419633,4378.95,REDACTED PERSONAL DATA,107860
NEWARK AND SHERWOOD DISTRICT COUNCIL,HOUSING REVENUE ACCOUNT,G410,SPEECH CALL MAINTENANCE,02/06/2023,421075,4321.3,TUNSTALL HEALTHCARE LTD,100883
NEWARK AND SHERWOOD DISTRICT COUNCIL,HOUSING REVENUE ACCOUNT,G410,ELECTRICITY,06/04/2023,416740,4317.55,SCOTTISH & SOUTHERN ENERGY GROUP,103454
NEWARK AND SHERWOOD DISTRICT COUNCIL,HOUSING REVENUE ACCOUNT,G410,ELECTRICITY,06/04/2023,416739,4290.73,SCOTTISH & SOUTHERN ENERGY GROUP,103454
NEWARK AND SHERWOOD DISTRICT COUNCIL,CAPITAL,G997,DISABLED FACILITIES,06/04/2023,416918,4234,D CRESSWELL AND SON (ELECTRICIANS) LTD,107167
NEWARK AND SHERWOOD DISTRICT COUNCIL,ECONOMIC DEVELOPMENT,G420,ARTISTS FEES,09/06/2023,421737,4229.43,ARTISTES INTERNATIONAL MANAGEMENT LTD,101285
NEWARK AND SHERWOOD DISTRICT COUNCIL,ECONOMIC DEVELOPMENT,G420,CONTRACTUAL SERVICES,06/04/2023,416491,4204.48,WATCH-IT SECURITY SERVICES LTD,103618
NEWARK AND SHERWOOD DISTRICT COUNCIL,POLICY & FINANCE,G450,CTAX NSDC PARISH PRECEPT PYMTS,08/04/2023,417290,4200,UPTON PARISH COUNCIL,100586
NEWARK AND SHERWOOD DISTRICT COUNCIL,POLICY & FINANCE,G450,INSURANCE,02/06/2023,421273,4171.08,ARTHUR J GALLAGHER INSURANCE BROKERS LIMITED,106423
NEWARK AND SHERWOOD DISTRICT COUNCIL,HOUSING REVENUE ACCOUNT,G410,AUDIT FEES (INTERNAL/EXTERNAL),30/06/2023,423284,4149.67,MAZARS LLP,106302
NEWARK AND SHERWOOD DISTRICT COUNCIL,CAPITAL,G997,DISABLED FACILITIES,06/04/2023,416916,4120,ABAKUS ENGINEERING LTD,105379
NEWARK AND SHERWOOD DISTRICT COUNCIL,POLICY & FINANCE,G450,PUBLICATIONS,21/04/2023,417541,4055,CIPFA BUSINESS LTD,100090
NEWARK AND SHERWOOD DISTRICT COUNCIL,ECONOMIC DEVELOPMENT,G420,ARTISTS FEES,23/06/2023,423060,4034.01,GENESIS CONNECTED,107605
NEWARK AND SHERWOOD DISTRICT COUNCIL,HOUSING REVENUE ACCOUNT,G410,CONTRACTUAL SERVICES,12/05/2023,419279,4016.41,PHOENIX GAS SERVICES LTD,107576
NEWARK AND SHERWOOD DISTRICT COUNCIL,ECONOMIC DEVELOPMENT,G420,PROFESSIONAL SERVICES,19/05/2023,419556,4000,TETRA TECH LTD,106871
NEWARK AND SHERWOOD DISTRICT COUNCIL,ECONOMIC DEVELOPMENT,G420,PROFESSIONAL SERVICES,19/05/2023,419697,4000,THE SHERWOOD FOREST TRUST,107288
NEWARK AND SHERWOOD DISTRICT COUNCIL,HOUSING REVENUE ACCOUNT,G410,SPEECH CALL MAINTENANCE,12/05/2023,419210,4000,TUNSTALL HEALTHCARE LTD,100883
NEWARK AND SHERWOOD DISTRICT COUNCIL,ECONOMIC DEVELOPMENT,G420,GATEWAY PROJECT,06/04/2023,416250,3955,WILLIAM SAUNDERS PARTNERSHIP LLP,107133
NEWARK AND SHERWOOD DISTRICT COUNCIL,POLICY & FINANCE,G450,INTERNAL TRAINING,26/05/2023,420337,3950,DIAMOND DRIVER TRAINING LTD,107617
NEWARK AND SHERWOOD DISTRICT COUNCIL,POLICY & FINANCE,G450,PROFESSIONAL SERVICES,19/05/2023,419872,3950,INFORM CPI LIMITED,104513
NEWARK AND SHERWOOD DISTRICT COUNCIL,ECONOMIC DEVELOPMENT,G420,REPAIRS AND MAINTENANCE,14/04/2023,416973,3950,NOTTINGHAM GROUNDS MAINTENANCE LTD,105832
NEWARK AND SHERWOOD DISTRICT COUNCIL,CORPORATE,G998,NDR PRIOR YEAR & CTAX FIRE ADJ,17/04/2023,417404,3939,NOTTINGHAMSHIRE COUNTY COUNCIL,100393
NEWARK AND SHERWOOD DISTRICT COUNCIL,CORPORATE,G998,NDR PRIOR YEAR & CTAX FIRE ADJ,23/05/2023,420419,3939,NOTTINGHAMSHIRE COUNTY COUNCIL,100393
NEWARK AND SHERWOOD DISTRICT COUNCIL,CORPORATE,G998,NDR PRIOR YEAR & CTAX FIRE ADJ,28/06/2023,423430,3939,NOTTINGHAMSHIRE COUNTY COUNCIL,100393
NEWARK AND SHERWOOD DISTRICT COUNCIL,POLICY & FINANCE,G450,CTAX NSDC PARISH PRECEPT PYMTS,08/04/2023,417277,3937.5,KIRTON PARISH COUNCIL,100260
NEWARK AND SHERWOOD DISTRICT COUNCIL,HOUSING REVENUE ACCOUNT,G410,CONTRACTUAL SERVICES,06/04/2023,416691,3932.82,NOVUS PROPERTY SOLUTIONS LTD,107362
NEWARK AND SHERWOOD DISTRICT COUNCIL,HOUSING REVENUE ACCOUNT,G410,ELECTRICITY,06/04/2023,416738,3925.83,SCOTTISH & SOUTHERN ENERGY GROUP,103454
NEWARK AND SHERWOOD DISTRICT COUNCIL,HOUSING REVENUE ACCOUNT,G410,CONTRACTUAL SERVICES,02/06/2023,421108,3924,PHOENIX GAS SERVICES LTD,107576
NEWARK AND SHERWOOD DISTRICT COUNCIL,CAPITAL,G997,CONSTRUCTION,26/05/2023,420403,3915,COUNTY SIGN AGENCY,100115
NEWARK AND SHERWOOD DISTRICT COUNCIL,CAPITAL,G997,CONSTRUCTION,06/04/2023,416498,3902.72,NOVUS PROPERTY SOLUTIONS LTD,107362
NEWARK AND SHERWOOD DISTRICT COUNCIL,HOUSING REVENUE ACCOUNT,G410,CONTRACTUAL SERVICES,05/05/2023,418683,3900.78,NOVUS PROPERTY SOLUTIONS LTD,107362
NEWARK AND SHERWOOD DISTRICT COUNCIL,POLICY & FINANCE,G450,ELECTRICITY,16/06/2023,422314,3880.98,EDF ENERGY 1 LTD,101140
NEWARK AND SHERWOOD DISTRICT COUNCIL,POLICY & FINANCE,G450,BROKERS FEES - INSURANCE,02/06/2023,421258,3850,ARTHUR J GALLAGHER INSURANCE BROKERS LIMITED,106423
NEWARK AND SHERWOOD DISTRICT COUNCIL,POLICY & FINANCE,G450,CTAX NSDC PARISH PRECEPT PYMTS,08/04/2023,417254,3830,BESTHORPE PARISH MEETING,100041
NEWARK AND SHERWOOD DISTRICT COUNCIL,HOMES & COMMUNITIES,G430,MISCELLANEOUS EXPENSES,16/06/2023,422416,3830,WALESBY JUNIORS FOOTBALL CLUB,107862
NEWARK AND SHERWOOD DISTRICT COUNCIL,HOUSING REVENUE ACCOUNT,G410,CONTRACTUAL SERVICES,06/04/2023,416686,3818.2,PHOENIX GAS SERVICES LTD,107576
NEWARK AND SHERWOOD DISTRICT COUNCIL,ECONOMIC DEVELOPMENT,G420,PAYMENTS TO NOTTS COUNTY CNCL,02/06/2023,418339,3792.5,NOTTINGHAMSHIRE COUNTY COUNCIL,100393
NEWARK AND SHERWOOD DISTRICT COUNCIL,ECONOMIC DEVELOPMENT,G420,ARTISTS FEES,09/06/2023,421527,3778.83,SUBISH LTD (T/A THE FUREYS),100525
NEWARK AND SHERWOOD DISTRICT COUNCIL,HOUSING REVENUE ACCOUNT,G410,CONTRACTUAL SERVICES,06/04/2023,416705,3771.18,NOVUS PROPERTY SOLUTIONS LTD,107362
NEWARK AND SHERWOOD DISTRICT COUNCIL,HOMES & COMMUNITIES,G430,ELECTRICITY,05/05/2023,419128,3768.34,SCOTTISH & SOUTHERN ENERGY GROUP,103454
NEWARK AND SHERWOOD DISTRICT COUNCIL,HOUSING REVENUE ACCOUNT,G410,CONTRACTUAL SERVICES,02/06/2023,421275,3767.5,PHOENIX GAS SERVICES LTD,107576
NEWARK AND SHERWOOD DISTRICT COUNCIL,POLICY & FINANCE,G450,INTERNAL TRAINING,28/04/2023,417945,3765.6,RH ENVIRONMENTAL LIMITED,103408
NEWARK AND SHERWOOD DISTRICT COUNCIL,ECONOMIC DEVELOPMENT,G420,SHOWGROUND PROJECT,28/04/2023,418175,3750,BANKS LONG & CO,101223
NEWARK AND SHERWOOD DISTRICT COUNCIL,ECONOMIC DEVELOPMENT,G420,REPAIRS AND MAINTENANCE,06/04/2023,416971,3720,NOTTINGHAM GROUNDS MAINTENANCE LTD,105832
NEWARK AND SHERWOOD DISTRICT COUNCIL,HOUSING REVENUE ACCOUNT,G410,CONTRACTUAL SERVICES,26/05/2023,420589,3708.74,METRO ROD LTD,106655
NEWARK AND SHERWOOD DISTRICT COUNCIL,POLICY & FINANCE,G450,ELECTRICITY,16/06/2023,422300,3702.92,EDF ENERGY 1 LTD,101140
NEWARK AND SHERWOOD DISTRICT COUNCIL,ECONOMIC DEVELOPMENT,G420,PREMISES R&R PROJECT 1,06/04/2023,416972,3700,NOTTINGHAM GROUNDS MAINTENANCE LTD,105832
NEWARK AND SHERWOOD DISTRICT COUNCIL,CAPITAL,G997,CONSTRUCTION,06/04/2023,416497,3692.96,NOVUS PROPERTY SOLUTIONS LTD,107362
NEWARK AND SHERWOOD DISTRICT COUNCIL,HOUSING REVENUE ACCOUNT,G410,CONTRACTUAL SERVICES,02/06/2023,421082,3690,PHOENIX GAS SERVICES LTD,107576
NEWARK AND SHERWOOD DISTRICT COUNCIL,HOUSING REVENUE ACCOUNT,G410,INSURANCE,16/06/2023,422481,3689.03,ARTHUR J GALLAGHER INSURANCE BROKERS LIMITED,106423
NEWARK AND SHERWOOD DISTRICT COUNCIL,CAPITAL,G997,CONSTRUCTION,06/04/2023,416708,3673.55,NOVUS PROPERTY SOLUTIONS LTD,107362
NEWARK AND SHERWOOD DISTRICT COUNCIL,ECONOMIC DEVELOPMENT,G420,ARTISTS FEES,28/04/2023,418302,3661.77,NATIONAL PRODUCTION COMPANY LIMITED,107274
NEWARK AND SHERWOOD DISTRICT COUNCIL,ECONOMIC DEVELOPMENT,G420,PAYMENTS TO NOTTS COUNTY CNCL,05/05/2023,418925,3644.5,VIA EAST MIDLANDS LTD,105795
NEWARK AND SHERWOOD DISTRICT COUNCIL,ECONOMIC DEVELOPMENT,G420,ARTISTS FEES,05/05/2023,418898,3637.43,LMS WORLDWIDE LTD,105510
NEWARK AND SHERWOOD DISTRICT COUNCIL,ECONOMIC DEVELOPMENT,G420,ELECTRICITY,12/05/2023,418604,3627.56,EDF ENERGY 1 LTD,101140
NEWARK AND SHERWOOD DISTRICT COUNCIL,POLICY & FINANCE,G450,CTAX NSDC PARISH PRECEPT PYMTS,08/04/2023,417246,3625,ROLLESTON PARISH COUNCIL,100466
NEWARK AND SHERWOOD DISTRICT COUNCIL,ECONOMIC DEVELOPMENT,G420,PROFESSIONAL SERVICES,21/04/2023,417574,3605,MARK & WENDY COMBELLACK,107863
NEWARK AND SHERWOOD DISTRICT COUNCIL,POLICY & FINANCE,G450,CTAX NSDC PARISH PRECEPT PYMTS,08/04/2023,417292,3600,WELLOW PARISH COUNCIL,100598
NEWARK AND SHERWOOD DISTRICT COUNCIL,POLICY & FINANCE,G450,ELECTRICITY,12/05/2023,418600,3586.48,EDF ENERGY 1 LTD,101140
NEWARK AND SHERWOOD DISTRICT COUNCIL,HOMES & COMMUNITIES,G430,WIRELESS MAINTENANCE,12/05/2023,419192,3557,SYNECTICS SECURITY LTD,106788
NEWARK AND SHERWOOD DISTRICT COUNCIL,HOMES & COMMUNITIES,G430,WIRELESS MAINTENANCE,12/05/2023,419193,3544,SYNECTICS SECURITY LTD,106788
NEWARK AND SHERWOOD DISTRICT COUNCIL,POLICY & FINANCE,G450,ELECTRICITY,06/04/2023,416303,3533.51,EDF ENERGY 1 LTD,101140
NEWARK AND SHERWOOD DISTRICT COUNCIL,HOMES & COMMUNITIES,G430,MISCELLANEOUS EXPENSES,06/04/2023,416471,3530.56,RURAL COMMUNITY ACTION NOTTINGHAMSHIRE,100473
NEWARK AND SHERWOOD DISTRICT COUNCIL,HOUSING REVENUE ACCOUNT,G410,CONTRACTUAL SERVICES,28/04/2023,418127,3525.83,PHOENIX GAS SERVICES LTD,107576
NEWARK AND SHERWOOD DISTRICT COUNCIL,CAPITAL,G997,CONSTRUCTION,02/06/2023,421047,3525,JACKSON DESIGN ASSOCIATES LIMITED,106431
NEWARK AND SHERWOOD DISTRICT COUNCIL,ECONOMIC DEVELOPMENT,G420,AGENCY REPAYMENTS,06/04/2023,416986,3521,NEW YOUTH THEATRE (GRANTHAM),106573
NEWARK AND SHERWOOD DISTRICT COUNCIL,CAPITAL,G997,CONSTRUCTION,02/06/2023,421081,3520,PHOENIX GAS SERVICES LTD,107576
NEWARK AND SHERWOOD DISTRICT COUNCIL,CAPITAL,G997,CONSTRUCTION,16/06/2023,422203,3481,HARRIS LAMB LTD,107864
NEWARK AND SHERWOOD DISTRICT COUNCIL,HOUSING REVENUE ACCOUNT,G410,CONTRACTUAL SERVICES,06/04/2023,416703,3476.84,NOVUS PROPERTY SOLUTIONS LTD,107362
NEWARK AND SHERWOOD DISTRICT COUNCIL,POLICY & FINANCE,G450,CONTRACTUAL SERVICES,30/06/2023,423545,3461,SPECIALIST COMPUTER CENTRES PLC,100773
NEWARK AND SHERWOOD DISTRICT COUNCIL,HOUSING REVENUE ACCOUNT,G410,FIRE ALARM AND EMERGENCY LIGHT,12/05/2023,419212,3450,HD ELECTRICAL SYSTEMS LTD,105293
NEWARK AND SHERWOOD DISTRICT COUNCIL,HOUSING REVENUE ACCOUNT,G410,ELECTRICITY,06/04/2023,416712,3437.37,SCOTTISH & SOUTHERN ENERGY GROUP,103454
NEWARK AND SHERWOOD DISTRICT COUNCIL,POLICY & FINANCE,G450,SUBSCRIPTIONS,28/04/2023,418309,3430,DISTRICT COUNCILS' NETWORK,103759
NEWARK AND SHERWOOD DISTRICT COUNCIL,POLICY & FINANCE,G450,ELECTION EXPENSES,21/04/2023,417447,3429.12,PRINT IMAGE FACILITIES LLP,101902
NEWARK AND SHERWOOD DISTRICT COUNCIL,POLICY & FINANCE,G450,PRINTING,21/04/2023,417534,3421,PRINT IMAGE NETWORK LTD,100431
NEWARK AND SHERWOOD DISTRICT COUNCIL,POLICY & FINANCE,G450,ELECTRICITY,06/04/2023,416310,3410.38,EDF ENERGY 1 LTD,101140
NEWARK AND SHERWOOD DISTRICT COUNCIL,HOUSING REVENUE ACCOUNT,G410,CONTRACTUAL SERVICES,05/05/2023,418677,3400.1,NOVUS PROPERTY SOLUTIONS LTD,107362
NEWARK AND SHERWOOD DISTRICT COUNCIL,CAPITAL,G997,CONSTRUCTION,16/06/2023,422255,3392.32,NATIONWIDE WINDOWS LIMITED,101404
NEWARK AND SHERWOOD DISTRICT COUNCIL,POLICY & FINANCE,G450,ELECTRICITY,16/06/2023,422316,3381.1,EDF ENERGY 1 LTD,101140
NEWARK AND SHERWOOD DISTRICT COUNCIL,ECONOMIC DEVELOPMENT,G420,PROFESSIONAL SERVICES,09/06/2023,421548,3377.85,GHM PLANNING LTD,105330
NEWARK AND SHERWOOD DISTRICT COUNCIL,POLICY & FINANCE,G450,ELECTION EXPENSES,09/06/2023,421637,3377.84,ACTIVE4TODAY LTD,105072
NEWARK AND SHERWOOD DISTRICT COUNCIL,LEISURE & ENVIRONMENT,G440,TYRES,19/05/2023,419641,3364.85,LODGE TYRE CO LTD,104560
NEWARK AND SHERWOOD DISTRICT COUNCIL,POLICY & FINANCE,G450,CTAX NSDC PARISH PRECEPT PYMTS,08/04/2023,417276,3350,KIRKLINGTON PARISH COUNCIL,100259
NEWARK AND SHERWOOD DISTRICT COUNCIL,POLICY & FINANCE,G450,SUBSCRIPTIONS,23/06/2023,422935,3350,LAVAT CONSULTING LTD,100269
NEWARK AND SHERWOOD DISTRICT COUNCIL,HOUSING REVENUE ACCOUNT,G410,CONTRACTUAL SERVICES,19/05/2023,419756,3340,FARRENDALE LTD,106640
NEWARK AND SHERWOOD DISTRICT COUNCIL,HOUSING REVENUE ACCOUNT,G410,CONTRACTUAL SERVICES,06/04/2023,416696,3315.04,NOVUS PROPERTY SOLUTIONS LTD,107362
NEWARK AND SHERWOOD DISTRICT COUNCIL,LEISURE & ENVIRONMENT,G440,OIL AND LUBRICANTS,28/04/2023,417836,3304.07,WITHAM OIL & PAINT LTD,105620
NEWARK AND SHERWOOD DISTRICT COUNCIL,CAPITAL,G997,CONSTRUCTION,30/06/2023,423321,3300,BSP CONSULTING,104667
NEWARK AND SHERWOOD DISTRICT COUNCIL,CAPITAL,G997,CONSTRUCTION,12/05/2023,419304,3300,PHOENIX GAS SERVICES LTD,107576
NEWARK AND SHERWOOD DISTRICT COUNCIL,LEISURE & ENVIRONMENT,G440,TYRES,06/04/2023,416858,3291.45,LODGE TYRE CO LTD,104560
NEWARK AND SHERWOOD DISTRICT COUNCIL,POLICY & FINANCE,G450,CTAX NSDC PARISH PRECEPT PYMTS,08/04/2023,417260,3250,CAUNTON PARISH COUNCIL,100077
NEWARK AND SHERWOOD DISTRICT COUNCIL,ECONOMIC DEVELOPMENT,G420,PROFESSIONAL SERVICES,30/06/2023,423290,3250,FOXSTONE FORESTRY LTD,106901
NEWARK AND SHERWOOD DISTRICT COUNCIL,ECONOMIC DEVELOPMENT,G420,PROFESSIONAL SERVICES,06/04/2023,416901,3250,ROPEWALK CHAMBERS,101104
NEWARK AND SHERWOOD DISTRICT COUNCIL,HOUSING REVENUE ACCOUNT,G410,MISCELLANEOUS EXPENSES,28/04/2023,417943,3226.6,APH ELECTRICS LTD,101996
NEWARK AND SHERWOOD DISTRICT COUNCIL,HOMES & COMMUNITIES,G430,MISCELLANEOUS EXPENSES,06/04/2023,416958,3218.16,BILSTHORPE COMMUNITY GREEN SPACES GROUP,106503
NEWARK AND SHERWOOD DISTRICT COUNCIL,POLICY & FINANCE,G450,COMPUTER SOFTWARE MAINTENANCE,16/06/2023,422264,3200,IKEN BUSINESS LIMITED,107421
NEWARK AND SHERWOOD DISTRICT COUNCIL,POLICY & FINANCE,G450,COMPUTER SOFTWARE MAINTENANCE,19/05/2023,419619,3180,LNRS DATA SERVICES LTD,107140
NEWARK AND SHERWOOD DISTRICT COUNCIL,POLICY & FINANCE,G450,PROFESSIONAL SERVICES,02/06/2023,421494,3167,ANTHONY COLLINS SOLICITORS LLP,100014
NEWARK AND SHERWOOD DISTRICT COUNCIL,HOUSING REVENUE ACCOUNT,G410,CONTRACTUAL SERVICES,06/04/2023,416687,3162.5,PHOENIX GAS SERVICES LTD,107576
NEWARK AND SHERWOOD DISTRICT COUNCIL,HOUSING REVENUE ACCOUNT,G410,FIRE ALARM AND EMERGENCY LIGHT,12/05/2023,419213,3160,HD ELECTRICAL SYSTEMS LTD,105293
NEWARK AND SHERWOOD DISTRICT COUNCIL,POLICY & FINANCE,G450,ELECTION EXPENSES,09/06/2023,421636,3156.5,ASSOCIATION OF ELECTORAL ADMINISTRATORS,101675
NEWARK AND SHERWOOD DISTRICT COUNCIL,HOMES & COMMUNITIES,G430,WIRELESS MAINTENANCE,12/05/2023,419195,3136,SYNECTICS SECURITY LTD,106788
NEWARK AND SHERWOOD DISTRICT COUNCIL,POLICY & FINANCE,G450,CTAX NSDC PARISH PRECEPT PYMTS,08/04/2023,417274,3119.5,HARBY PARISH COUNCIL,100197
NEWARK AND SHERWOOD DISTRICT COUNCIL,HOUSING REVENUE ACCOUNT,G410,SPEECH CALL MAINTENANCE,06/04/2023,413871,3114.63,TUNSTALL HEALTHCARE LTD,100883
NEWARK AND SHERWOOD DISTRICT COUNCIL,HOUSING REVENUE ACCOUNT,G410,SPEECH CALL MAINTENANCE,28/04/2023,418227,3114.63,TUNSTALL HEALTHCARE LTD,100883
NEWARK AND SHERWOOD DISTRICT COUNCIL,HOUSING REVENUE ACCOUNT,G410,CONTRACTUAL SERVICES,06/04/2023,416689,3113.7,NOVUS PROPERTY SOLUTIONS LTD,107362
NEWARK AND SHERWOOD DISTRICT COUNCIL,ECONOMIC DEVELOPMENT,G420,ARTISTS FEES,23/06/2023,423054,3099.61,SOUL STREET PRODUCTIONS LTD,107865
NEWARK AND SHERWOOD DISTRICT COUNCIL,ECONOMIC DEVELOPMENT,G420,OTHER EQUIPMENT AND TOOLS,09/05/2023,418891,3074,4WALL ENTERTAINMENT UK LTD,107866
NEWARK AND SHERWOOD DISTRICT COUNCIL,CAPITAL,G997,CONSTRUCTION,09/06/2023,421523,3056,PREMIER MOBILITY (UK) LIMITED,106576
NEWARK AND SHERWOOD DISTRICT COUNCIL,CAPITAL,G997,CONSTRUCTION,09/06/2023,421524,3056,PREMIER MOBILITY (UK) LIMITED,106576
NEWARK AND SHERWOOD DISTRICT COUNCIL,ECONOMIC DEVELOPMENT,G420,ARTISTS FEES,23/06/2023,423056,3052,ENTERTAINERS THEATRICAL LIMITED,107867
NEWARK AND SHERWOOD DISTRICT COUNCIL,ECONOMIC DEVELOPMENT,G420,AGENCY STAFF,30/06/2023,423347,3035.55,WATCH-IT SECURITY SERVICES LTD,103618
NEWARK AND SHERWOOD DISTRICT COUNCIL,HOUSING REVENUE ACCOUNT,G410,CONTRACTUAL SERVICES,05/05/2023,418684,3035.45,NOVUS PROPERTY SOLUTIONS LTD,107362
NEWARK AND SHERWOOD DISTRICT COUNCIL,HOUSING REVENUE ACCOUNT,G410,GAS,05/04/2023,416833,3027.09,SEFE ENERGY LIMITED (GAZPROM),107596
NEWARK AND SHERWOOD DISTRICT COUNCIL,HOUSING REVENUE ACCOUNT,G410,CONTRACTUAL SERVICES,06/04/2023,416704,3024.31,NOVUS PROPERTY SOLUTIONS LTD,107362
NEWARK AND SHERWOOD DISTRICT COUNCIL,POLICY & FINANCE,G450,INTERNAL TRAINING,05/05/2023,418883,3020,MITIE TF MANAGEMENT LTD,107698
NEWARK AND SHERWOOD DISTRICT COUNCIL,ECONOMIC DEVELOPMENT,G420,ARTISTS FEES,23/06/2023,423058,3018.48,EXCHANGE EVENTS LTD,105870
NEWARK AND SHERWOOD DISTRICT COUNCIL,CAPITAL,G997,CONSTRUCTION,06/04/2023,416500,3014.54,NOVUS PROPERTY SOLUTIONS LTD,107362
NEWARK AND SHERWOOD DISTRICT COUNCIL,POLICY & FINANCE,G450,PROFESSIONAL SERVICES,30/06/2023,423706,3000,BEAUMOND HOUSE COMMUNITY HOSPICE,104505
NEWARK AND SHERWOOD DISTRICT COUNCIL,POLICY & FINANCE,G450,S106 EDUCATION AND OTHER PYMT,15/05/2023,419561,3000,CLIPSTONE CRICKET CLUB,107869
NEWARK AND SHERWOOD DISTRICT COUNCIL,POLICY & FINANCE,G450,PROFESSIONAL SERVICES,26/05/2023,420575,3000,DERBYSHIRE COUNTY COUNCIL,101137
NEWARK AND SHERWOOD DISTRICT COUNCIL,POLICY & FINANCE,G450,SUBSCRIPTIONS,02/06/2023,421045,3000,NOTTINGHAMSHIRE COUNTY COUNCIL,100393
NEWARK AND SHERWOOD DISTRICT COUNCIL,ECONOMIC DEVELOPMENT,G420,GATEWAY PROJECT,09/06/2023,417538,3000,PYGOTT & CRONE COMMERCIAL LTD,107009
NEWARK AND SHERWOOD DISTRICT COUNCIL,HOMES & COMMUNITIES,G430,MISCELLANEOUS EXPENSES,06/04/2023,416992,3000,SOUTH CLIFTON & DISTRICT SPORTS ASSOCIATION,107868
NEWARK AND SHERWOOD DISTRICT COUNCIL,ECONOMIC DEVELOPMENT,G420,PROFESSIONAL SERVICES,06/04/2023,416446,2995,GEO ENVIRO SOLUTIONS,107688
NEWARK AND SHERWOOD DISTRICT COUNCIL,POLICY & FINANCE,G450,MISCELLANEOUS EXPENSES,12/05/2023,419362,2995,HEMMING GROUP LIMITED,107870
NEWARK AND SHERWOOD DISTRICT COUNCIL,CAPITAL,G997,DISABLED FACILITIES,06/04/2023,416919,2989.22,PRO-HEAT PLUMBING & HEATING LTD,107871
NEWARK AND SHERWOOD DISTRICT COUNCIL,HOUSING REVENUE ACCOUNT,G410,SPEECH CALL MAINTENANCE,12/05/2023,419226,2981.16,TUNSTALL HEALTHCARE LTD,100883
NEWARK AND SHERWOOD DISTRICT COUNCIL,POLICY & FINANCE,G450,MOBILE PHONES DEVICES,23/06/2023,422849,2978.94,ACS BUSINESS SUPPLIES LTD,107089
NEWARK AND SHERWOOD DISTRICT COUNCIL,HOUSING REVENUE ACCOUNT,G410,CONTRACTUAL SERVICES,16/06/2023,422386,2976.82,AARON SERVICES,107225
NEWARK AND SHERWOOD DISTRICT COUNCIL,HOUSING REVENUE ACCOUNT,G410,ELECTRICITY,06/04/2023,416737,2920.52,SCOTTISH & SOUTHERN ENERGY GROUP,103454
NEWARK AND SHERWOOD DISTRICT COUNCIL,HOUSING REVENUE ACCOUNT,G410,CONTRACTUAL SERVICES,06/04/2023,416695,2916.58,NOVUS PROPERTY SOLUTIONS LTD,107362
NEWARK AND SHERWOOD DISTRICT COUNCIL,POLICY & FINANCE,G450,WEB REGISTRATION/TELEPHONE,30/06/2023,423367,2888.86,IDOX SOFTWARE LTD,100738
NEWARK AND SHERWOOD DISTRICT COUNCIL,POLICY & FINANCE,G450,ELECTRICITY,06/04/2023,416307,2887.34,EDF ENERGY 1 LTD,101140
NEWARK AND SHERWOOD DISTRICT COUNCIL,HOUSING REVENUE ACCOUNT,G410,CONTRACTUAL SERVICES,05/05/2023,418682,2865.12,NOVUS PROPERTY SOLUTIONS LTD,107362
NEWARK AND SHERWOOD DISTRICT COUNCIL,CAPITAL,G997,CONSTRUCTION,16/06/2023,422148,2855.85,UK GAS SERVICES  LTD,106794
NEWARK AND SHERWOOD DISTRICT COUNCIL,HOUSING REVENUE ACCOUNT,G410,GAS,05/05/2023,419126,2851.98,SEFE ENERGY LIMITED (GAZPROM),107596
NEWARK AND SHERWOOD DISTRICT COUNCIL,HOUSING REVENUE ACCOUNT,G410,CONTRACTUAL SERVICES,06/04/2023,416694,2805.31,NOVUS PROPERTY SOLUTIONS LTD,107362
NEWARK AND SHERWOOD DISTRICT COUNCIL,HOUSING REVENUE ACCOUNT,G410,GAS,29/04/2023,418522,2799.96,SCOTTISH & SOUTHERN ENERGY GROUP,103454
NEWARK AND SHERWOOD DISTRICT COUNCIL,POLICY & FINANCE,G450,HARDWARE MAINTENANCE,16/06/2023,422395,2798.63,INSIGHT DIRECT (UK) LTD,100226
NEWARK AND SHERWOOD DISTRICT COUNCIL,HOUSING REVENUE ACCOUNT,G410,ELECTRICITY,31/05/2023,421020,2771.8,SCOTTISH & SOUTHERN ENERGY GROUP,103454
NEWARK AND SHERWOOD DISTRICT COUNCIL,HOUSING REVENUE ACCOUNT,G410,CONTRACTUAL SERVICES,05/05/2023,418687,2767.36,NOVUS PROPERTY SOLUTIONS LTD,107362
NEWARK AND SHERWOOD DISTRICT COUNCIL,POLICY & FINANCE,G450,REPAIRS AND MAINTENANCE,23/06/2023,422848,2765.5,VIKING ELECTRICAL LTD,107743
NEWARK AND SHERWOOD DISTRICT COUNCIL,ECONOMIC DEVELOPMENT,G420,PROFESSIONAL SERVICES,16/06/2023,422126,2761.3,ANTHONY COLLINS SOLICITORS LLP,100014
NEWARK AND SHERWOOD DISTRICT COUNCIL,ECONOMIC DEVELOPMENT,G420,PROFESSIONAL SERVICES,19/05/2023,419558,2760,NATALIE DEAR PLANNING CONSULTANCY,101636
NEWARK AND SHERWOOD DISTRICT COUNCIL,HOUSING REVENUE ACCOUNT,G410,CONTRACTUAL SERVICES,06/04/2023,416697,2755.86,NOVUS PROPERTY SOLUTIONS LTD,107362
NEWARK AND SHERWOOD DISTRICT COUNCIL,HOUSING REVENUE ACCOUNT,G410,SPEECH CALL MAINTENANCE,09/06/2023,421685,2754.27,TUNSTALL HEALTHCARE LTD,100883
NEWARK AND SHERWOOD DISTRICT COUNCIL,HOUSING REVENUE ACCOUNT,G410,SEWAGE WORKS ROUTINE MAINTNCE,19/05/2023,419663,2751,ENVIRONMENT AGENCY,102517
NEWARK AND SHERWOOD DISTRICT COUNCIL,POLICY & FINANCE,G450,INTERNAL TRAINING,28/04/2023,417946,2750,CIPFA,101134
NEWARK AND SHERWOOD DISTRICT COUNCIL,HOUSING REVENUE ACCOUNT,G410,CONTRACTUAL SERVICES,19/05/2023,419662,2741.98,T & S HEATING LTD,105748
NEWARK AND SHERWOOD DISTRICT COUNCIL,ECONOMIC DEVELOPMENT,G420,RENT,16/06/2023,422259,2741.35,THE CULSHAW PARTNERSHIP,106872
NEWARK AND SHERWOOD DISTRICT COUNCIL,CAPITAL,G997,CONSTRUCTION,06/04/2023,416495,2735.11,NOVUS PROPERTY SOLUTIONS LTD,107362
NEWARK AND SHERWOOD DISTRICT COUNCIL,HOUSING REVENUE ACCOUNT,G410,GAS,31/05/2023,421019,2730.42,SCOTTISH & SOUTHERN ENERGY GROUP,103454
NEWARK AND SHERWOOD DISTRICT COUNCIL,HOUSING REVENUE ACCOUNT,G410,CONTRACTUAL SERVICES,06/04/2023,416693,2729.88,NOVUS PROPERTY SOLUTIONS LTD,107362
NEWARK AND SHERWOOD DISTRICT COUNCIL,POLICY & FINANCE,G450,INSURANCE,23/06/2023,423023,2721.6,ARTHUR J GALLAGHER INSURANCE BROKERS LIMITED,106423
NEWARK AND SHERWOOD DISTRICT COUNCIL,CAPITAL,G997,CONSTRUCTION,30/06/2023,423327,2720,BSP CONSULTING,104667
NEWARK AND SHERWOOD DISTRICT COUNCIL,ECONOMIC DEVELOPMENT,G420,PROFESSIONAL SERVICES,06/04/2023,416585,2700,R.A.S TOWN PLANNING SERVICES,107210
NEWARK AND SHERWOOD DISTRICT COUNCIL,POLICY & FINANCE,G450,ELECTION EXPENSES,21/04/2023,417449,2696.1,SHAW & SONS LTD,100491
NEWARK AND SHERWOOD DISTRICT COUNCIL,HOUSING REVENUE ACCOUNT,G410,CONTRACTUAL SERVICES,06/04/2023,416698,2688.7,NOVUS PROPERTY SOLUTIONS LTD,107362
NEWARK AND SHERWOOD DISTRICT COUNCIL,POLICY & FINANCE,G450,ELECTRICITY,12/05/2023,418603,2688.32,EDF ENERGY 1 LTD,101140
NEWARK AND SHERWOOD DISTRICT COUNCIL,POLICY & FINANCE,G450,ELECTION EXPENSES,19/05/2023,419842,2673.85,ROYAL MAIL GROUP LTD,100469
NEWARK AND SHERWOOD DISTRICT COUNCIL,POLICY & FINANCE,G450,PROFESSIONAL SERVICES,21/04/2023,417535,2660,THE CABINET OFFICE,105891
NEWARK AND SHERWOOD DISTRICT COUNCIL,ECONOMIC DEVELOPMENT,G420,COMPUTER SOFTWARE MAINTENANCE,06/04/2023,416504,2650,BAZZOO LIMITED,101372
NEWARK AND SHERWOOD DISTRICT COUNCIL,HOUSING REVENUE ACCOUNT,G410,CONTRACTUAL SERVICES,05/05/2023,418661,2648.84,NOVUS PROPERTY SOLUTIONS LTD,107362
NEWARK AND SHERWOOD DISTRICT COUNCIL,ECONOMIC DEVELOPMENT,G420,AGENCY STAFF,09/06/2023,421490,2625,PAYSTREAM MY MAX 3 LTD,107549
NEWARK AND SHERWOOD DISTRICT COUNCIL,POLICY & FINANCE,G450,GAS,12/05/2023,418590,2614.45,TOTAL ENERGIES GAS & POWER LTD,107289
NEWARK AND SHERWOOD DISTRICT COUNCIL,ECONOMIC DEVELOPMENT,G420,ARTISTS FEES,05/05/2023,418900,2607.78,TALON MUSIC LIMITED,101056
NEWARK AND SHERWOOD DISTRICT COUNCIL,POLICY & FINANCE,G450,ELECTRICITY,06/04/2023,416315,2604.33,EDF ENERGY 1 LTD,101140
NEWARK AND SHERWOOD DISTRICT COUNCIL,HOUSING REVENUE ACCOUNT,G410,GAS,16/06/2023,422336,2598.78,BRITISH GAS BUSINESS,100840
NEWARK AND SHERWOOD DISTRICT COUNCIL,POLICY & FINANCE,G450,CTAX NSDC PARISH PRECEPT PYMTS,08/04/2023,417264,2594,EAKRING PARISH COUNCIL,100138
NEWARK AND SHERWOOD DISTRICT COUNCIL,ECONOMIC DEVELOPMENT,G420,EXHIBITIONS AND DISPLAYS,05/05/2023,418890,2587.5,ARMOUR SYSTEMS LIMITED,107872
NEWARK AND SHERWOOD DISTRICT COUNCIL,POLICY & FINANCE,G450,STATIONERY,06/04/2023,416721,2586.48,LYRECO UK LIMITED,101689
NEWARK AND SHERWOOD DISTRICT COUNCIL,CAPITAL,G997,CONSTRUCTION,14/04/2023,416883,2585,COUNTY SIGN AGENCY,100115
NEWARK AND SHERWOOD DISTRICT COUNCIL,POLICY & FINANCE,G450,GAS,06/04/2023,416334,2581.95,TOTAL ENERGIES GAS & POWER LTD,107289
NEWARK AND SHERWOOD DISTRICT COUNCIL,HOUSING REVENUE ACCOUNT,G410,ELECTRICITY,02/06/2023,421282,2574.67,SCOTTISH & SOUTHERN ENERGY GROUP,103454
NEWARK AND SHERWOOD DISTRICT COUNCIL,CAPITAL,G997,DISABLED FACILITIES,30/06/2023,423362,2574,STANNAH LIFTS SERVICE LTD,101327
NEWARK AND SHERWOOD DISTRICT COUNCIL,POLICY & FINANCE,G450,CTAX NSDC PARISH PRECEPT PYMTS,08/04/2023,417286,2572.5,SOUTH SCARLE PARISH MEETING,100513
NEWARK AND SHERWOOD DISTRICT COUNCIL,POLICY & FINANCE,G450,REPAIRS AND MAINTENANCE,06/04/2023,416588,2550,VIKING ELECTRICAL LTD,107743
NEWARK AND SHERWOOD DISTRICT COUNCIL,POLICY & FINANCE,G450,GAS,15/05/2023,418595,2549.21,TOTAL ENERGIES GAS & POWER LTD,107289
NEWARK AND SHERWOOD DISTRICT COUNCIL,ECONOMIC DEVELOPMENT,G420,CLEANING CONTRACT,19/05/2023,419917,2533.33,CRYSTAL CLEAN SERVICE LTD,106324
NEWARK AND SHERWOOD DISTRICT COUNCIL,ECONOMIC DEVELOPMENT,G420,CLEANING CONTRACT,09/06/2023,421628,2533.33,CRYSTAL CLEAN SERVICE LTD,106324
NEWARK AND SHERWOOD DISTRICT COUNCIL,CAPITAL,G997,CONSTRUCTION,06/04/2023,416702,2505,FARRENDALE LTD,106640
NEWARK AND SHERWOOD DISTRICT COUNCIL,POLICY & FINANCE,G450,AGENCY STAFF,19/05/2023,418655,2501.25,SELLICK PARTNERSHIP LTD,106780
NEWARK AND SHERWOOD DISTRICT COUNCIL,POLICY & FINANCE,G450,PROFESSIONAL SERVICES,28/04/2023,418178,2500,BANKS LONG & CO,101223
NEWARK AND SHERWOOD DISTRICT COUNCIL,POLICY & FINANCE,G450,CTAX NSDC PARISH PRECEPT PYMTS,08/04/2023,417240,2500,EGMANTON PARISH MEETING,100145
NEWARK AND SHERWOOD DISTRICT COUNCIL,ECONOMIC DEVELOPMENT,G420,REPAIRS AND MAINTENANCE,19/05/2023,419557,2500,HILLBILLY MIDLANDS LTD,107689
NEWARK AND SHERWOOD DISTRICT COUNCIL,POLICY & FINANCE,G450,CTAX NSDC PARISH PRECEPT PYMTS,08/04/2023,417242,2500,HOCKERTON PARISH COUNCIL,100211
NEWARK AND SHERWOOD DISTRICT COUNCIL,ECONOMIC DEVELOPMENT,G420,PROFESSIONAL SERVICES,14/04/2023,417311,2500,KINGS CHAMBERS,101383
NEWARK AND SHERWOOD DISTRICT COUNCIL,ECONOMIC DEVELOPMENT,G420,CONTRACTUAL SERVICES,21/04/2023,417506,2500,METRIC GROUP LTD,100306
NEWARK AND SHERWOOD DISTRICT COUNCIL,POLICY & FINANCE,G450,COFL WEBINARS FOR BUSINESSES,09/06/2023,421241,2500,NETTL OF NEWARK & GRANTHAM,106999
NEWARK AND SHERWOOD DISTRICT COUNCIL,POLICY & FINANCE,G450,COFL AWARENESS RAISING SUPPORT,19/05/2023,419655,2495,CREATIVE VEHICLE WRAPPING LIMITED,107233
NEWARK AND SHERWOOD DISTRICT COUNCIL,POLICY & FINANCE,G450,COFL AWARENESS RAISING SUPPORT,16/06/2023,421545,2495,CREATIVE VEHICLE WRAPPING LIMITED,107233
NEWARK AND SHERWOOD DISTRICT COUNCIL,POLICY & FINANCE,G450,SUBSCRIPTIONS,09/06/2023,421860,2480,APSE,100017
NEWARK AND SHERWOOD DISTRICT COUNCIL,CAPITAL,G997,CONSTRUCTION,16/06/2023,422133,2478,NEIL SHACKLOCK PLUMBING AND HEATING  LTD,104679
NEWARK AND SHERWOOD DISTRICT COUNCIL,POLICY & FINANCE,G450,PROFESSIONAL SERVICES,30/06/2023,422852,2466.24,CIVICA UK LTD,105867
NEWARK AND SHERWOOD DISTRICT COUNCIL,POLICY & FINANCE,G450,REPAIRS AND MAINTENANCE,06/04/2023,416975,2465,GPR CONSTRUCTION LTD,100190
NEWARK AND SHERWOOD DISTRICT COUNCIL,CAPITAL,G997,CONSTRUCTION,19/05/2023,419708,2452,PREMIER MOBILITY (UK) LIMITED,106576
NEWARK AND SHERWOOD DISTRICT COUNCIL,CAPITAL,G997,CONSTRUCTION,26/05/2023,420571,2452,PREMIER MOBILITY (UK) LIMITED,106576
NEWARK AND SHERWOOD DISTRICT COUNCIL,HOUSING REVENUE ACCOUNT,G410,CONTRACTUAL SERVICES,06/04/2023,416492,2448.51,DCR ELECTRICAL LTD,101799
NEWARK AND SHERWOOD DISTRICT COUNCIL,CAPITAL,G997,ICT HARDWARE AQUISITION,05/05/2023,418709,2440.9,STORM TECHNOLOGIES LTD,105838
NEWARK AND SHERWOOD DISTRICT COUNCIL,ECONOMIC DEVELOPMENT,G420,RECHARGE TP TECHNICAL,06/04/2023,416520,2440.73,ENCORE,107873
NEWARK AND SHERWOOD DISTRICT COUNCIL,POLICY & FINANCE,G450,CHAIRMANS CHARITY,09/06/2023,421595,2433.11,CHILDREN'S BEREAVEMENT CENTRE,107874
NEWARK AND SHERWOOD DISTRICT COUNCIL,CAPITAL,G997,CONSTRUCTION,02/06/2023,421046,2420,JACKSON DESIGN ASSOCIATES LIMITED,106431
NEWARK AND SHERWOOD DISTRICT COUNCIL,ECONOMIC DEVELOPMENT,G420,ARTISTS FEES,23/06/2023,423065,2419.78,SOUL STREET PRODUCTIONS LTD,107865
NEWARK AND SHERWOOD DISTRICT COUNCIL,POLICY & FINANCE,G450,GAS,06/04/2023,416460,2417.63,TOTAL ENERGIES GAS & POWER LTD,107289
NEWARK AND SHERWOOD DISTRICT COUNCIL,ECONOMIC DEVELOPMENT,G420,PROFESSIONAL SERVICES,05/05/2023,418693,2395,BSG ECOLOGY,106962
NEWARK AND SHERWOOD DISTRICT COUNCIL,CAPITAL,G997,CONSTRUCTION,28/04/2023,418207,2379.54,NOVUS PROPERTY SOLUTIONS LTD,107362
NEWARK AND SHERWOOD DISTRICT COUNCIL,POLICY & FINANCE,G450,AGENCY STAFF,19/05/2023,418316,2376.48,SELLICK PARTNERSHIP LTD,106780
NEWARK AND SHERWOOD DISTRICT COUNCIL,ECONOMIC DEVELOPMENT,G420,CONTRACTUAL SERVICES,19/05/2023,419970,2375,ROBERT MARSHALL & SONS LTD,105315
NEWARK AND SHERWOOD DISTRICT COUNCIL,POLICY & FINANCE,G450,CTAX NSDC PARISH PRECEPT PYMTS,08/04/2023,417250,2362.5,AVERHAM KELHAM & STAYTHORPE PARISH COUNCIL,100026
NEWARK AND SHERWOOD DISTRICT COUNCIL,CAPITAL,G997,CONSTRUCTION,02/06/2023,421028,2362.08,CALFORD SEADEN LLP,107599
NEWARK AND SHERWOOD DISTRICT COUNCIL,CAPITAL,G997,CONSTRUCTION,16/06/2023,422147,2357.54,UK GAS SERVICES  LTD,106794
NEWARK AND SHERWOOD DISTRICT COUNCIL,HOUSING REVENUE ACCOUNT,G410,TELEPHONES,20/06/2023,422811,2357.22,DAISY CORPORATE SERVICES TRADING LTD,106630
NEWARK AND SHERWOOD DISTRICT COUNCIL,POLICY & FINANCE,G450,ADVERTISING,30/06/2023,422340,2352.5,PROSPECTUS LTD,107876
NEWARK AND SHERWOOD DISTRICT COUNCIL,HOUSING REVENUE ACCOUNT,G410,TELEPHONES,22/05/2023,420339,2347.87,DAISY CORPORATE SERVICES TRADING LTD,106630
NEWARK AND SHERWOOD DISTRICT COUNCIL,POLICY & FINANCE,G450,AGENCY STAFF,02/06/2023,421029,2347.73,SELLICK PARTNERSHIP LTD,106780
NEWARK AND SHERWOOD DISTRICT COUNCIL,HOMES & COMMUNITIES,G430,WIRELESS MAINTENANCE,12/05/2023,419194,2345,SYNECTICS SECURITY LTD,106788
NEWARK AND SHERWOOD DISTRICT COUNCIL,POLICY & FINANCE,G450,CTAX NSDC PARISH PRECEPT PYMTS,08/04/2023,417293,2342.5,WESTON PARISH COUNCIL,100603
NEWARK AND SHERWOOD DISTRICT COUNCIL,CAPITAL,G997,CONSTRUCTION,28/04/2023,418023,2340,WILLIAM SAUNDERS PARTNERSHIP LLP,107133
NEWARK AND SHERWOOD DISTRICT COUNCIL,HOUSING REVENUE ACCOUNT,G410,CONTRACTUAL SERVICES,12/05/2023,419221,2320,P J LILLEY LTD,100418
NEWARK AND SHERWOOD DISTRICT COUNCIL,HOUSING REVENUE ACCOUNT,G410,TELEPHONES,24/04/2023,417769,2311.27,DAISY CORPORATE SERVICES TRADING LTD,106630
NEWARK AND SHERWOOD DISTRICT COUNCIL,HOUSING REVENUE ACCOUNT,G410,GAS,09/06/2023,422078,2306.94,SEFE ENERGY LIMITED (GAZPROM),107596
NEWARK AND SHERWOOD DISTRICT COUNCIL,POLICY & FINANCE,G450,PROFESSIONAL SERVICES,19/06/2023,422738,2302.64,HM REVENUE & CUSTOMS ONLY,107877
NEWARK AND SHERWOOD DISTRICT COUNCIL,HOMES & COMMUNITIES,G430,ADVERTISING,26/05/2023,420661,2300,GRANICUS-FIRMSTEP LTD,107187
NEWARK AND SHERWOOD DISTRICT COUNCIL,POLICY & FINANCE,G450,CTAX NSDC PARISH PRECEPT PYMTS,08/04/2023,417278,2300,LAXTON & MOORHOUSE PARISH COUNCIL,100272
NEWARK AND SHERWOOD DISTRICT COUNCIL,HOMES & COMMUNITIES,G430,MISCELLANEOUS EXPENSES,26/05/2023,420678,2300,WINTHORPE & CODDINGTON TIGERS,107878
NEWARK AND SHERWOOD DISTRICT COUNCIL,ECONOMIC DEVELOPMENT,G420,EMPLOYMENT & SKILLS,21/04/2023,417554,2275,ADVERTA,107162
NEWARK AND SHERWOOD DISTRICT COUNCIL,HOUSING REVENUE ACCOUNT,G410,CONTRACTUAL SERVICES,05/05/2023,418681,2259.37,NOVUS PROPERTY SOLUTIONS LTD,107362
NEWARK AND SHERWOOD DISTRICT COUNCIL,CAPITAL,G997,VEHICLE AQUISITION,26/05/2023,420432,2257,FLEETCLEAR,107647
NEWARK AND SHERWOOD DISTRICT COUNCIL,HOUSING REVENUE ACCOUNT,G410,CONTRACTUAL SERVICES,06/04/2023,416690,2256.98,NOVUS PROPERTY SOLUTIONS LTD,107362
NEWARK AND SHERWOOD DISTRICT COUNCIL,POLICY & FINANCE,G450,AGENCY STAFF,26/05/2023,420397,2247.1,SELLICK PARTNERSHIP LTD,106780
NEWARK AND SHERWOOD DISTRICT COUNCIL,POLICY & FINANCE,G450,REPAIRS AND MAINTENANCE,06/04/2023,416589,2244,VIKING ELECTRICAL LTD,107743
NEWARK AND SHERWOOD DISTRICT COUNCIL,POLICY & FINANCE,G450,COFL ENERGY BOXES DISTRIBUTION,05/05/2023,418757,2232.54,JWL (ARCHITECTURAL IRONMONGERS) LTD,106647
NEWARK AND SHERWOOD DISTRICT COUNCIL,POLICY & FINANCE,G450,HARDWARE MAINTENANCE,23/06/2023,418643,2231.28,PARK PLACE TECHNOLOGIES LTD,107364
NEWARK AND SHERWOOD DISTRICT COUNCIL,ECONOMIC DEVELOPMENT,G420,REPAIRS AND MAINTENANCE,23/06/2023,422761,2230,NOTTINGHAM GROUNDS MAINTENANCE LTD,105832
NEWARK AND SHERWOOD DISTRICT COUNCIL,HOUSING REVENUE ACCOUNT,G410,MATERIALS,23/06/2023,423011,2220.74,PTS - CITY PLUMBING SUPPLIES LTD,107157
NEWARK AND SHERWOOD DISTRICT COUNCIL,ECONOMIC DEVELOPMENT,G420,PROFESSIONAL SERVICES,12/05/2023,418694,2218.75,WILLIAM SAUNDERS PARTNERSHIP LLP,107133
NEWARK AND SHERWOOD DISTRICT COUNCIL,HOUSING REVENUE ACCOUNT,G410,CONTRACTUAL SERVICES,12/05/2023,419223,2217.27,J WRIGHT ROOFING LTD,105753
NEWARK AND SHERWOOD DISTRICT COUNCIL,HOMES & COMMUNITIES,G430,CCTV MAINTENANCE,16/06/2023,422295,2212.21,BAYDALE CONTROL SYSTEMS LTD,106617
NEWARK AND SHERWOOD DISTRICT COUNCIL,HOMES & COMMUNITIES,G430,PROFESSIONAL SERVICES,06/04/2023,416534,2207.5,REVIEW CONSULTING LTD,107556
NEWARK AND SHERWOOD DISTRICT COUNCIL,HOUSING REVENUE ACCOUNT,G410,CLOTHING AND UNIFORMS,28/04/2023,418070,2205.2,ARDEN WINCH & CO LTD,102291
NEWARK AND SHERWOOD DISTRICT COUNCIL,CAPITAL,G997,CONSTRUCTION,05/05/2023,418905,2200,HERONGATE,107879
NEWARK AND SHERWOOD DISTRICT COUNCIL,ECONOMIC DEVELOPMENT,G420,PROFESSIONAL SERVICES,02/06/2023,421016,2200,NOTTINGHAMSHIRE WILDLIFE TRUST,103315
NEWARK AND SHERWOOD DISTRICT COUNCIL,POLICY & FINANCE,G450,REPAIRS AND MAINTENANCE,30/06/2023,422875,2192.5,LINDUM GROUP LTD,100651
NEWARK AND SHERWOOD DISTRICT COUNCIL,HOUSING REVENUE ACCOUNT,G410,LEGIONELLA TESTING & REMEDIALS,30/06/2023,421288,2183.89,MITIE TF MANAGEMENT LTD,107698
NEWARK AND SHERWOOD DISTRICT COUNCIL,HOUSING REVENUE ACCOUNT,G410,CONTRACTUAL SERVICES,06/04/2023,416692,2172.88,NOVUS PROPERTY SOLUTIONS LTD,107362
NEWARK AND SHERWOOD DISTRICT COUNCIL,LEISURE & ENVIRONMENT,G440,PROFESSIONAL SERVICES,16/06/2023,422307,2168.45,STM ENVIRONMENTAL CONSULTANTS LTD,101582
NEWARK AND SHERWOOD DISTRICT COUNCIL,POLICY & FINANCE,G450,CTAX NSDC PARISH PRECEPT PYMTS,08/04/2023,417248,2150,CAYTHORPE PARISH COUNCIL,100078
NEWARK AND SHERWOOD DISTRICT COUNCIL,CAPITAL,G997,CONSTRUCTION,12/05/2023,419164,2131.5,NEIL SHACKLOCK PLUMBING AND HEATING  LTD,104679
NEWARK AND SHERWOOD DISTRICT COUNCIL,HOUSING REVENUE ACCOUNT,G410,CONTRACTUAL SERVICES,30/06/2023,423420,2130.42,J WRIGHT ROOFING LTD,105753
NEWARK AND SHERWOOD DISTRICT COUNCIL,ECONOMIC DEVELOPMENT,G420,ELECTRICITY,12/05/2023,418596,2127,EDF ENERGY 1 LTD,101140
NEWARK AND SHERWOOD DISTRICT COUNCIL,ECONOMIC DEVELOPMENT,G420,ELECTRICITY,12/05/2023,419327,2124.56,EDF ENERGY 1 LTD,101140
NEWARK AND SHERWOOD DISTRICT COUNCIL,HOUSING REVENUE ACCOUNT,G410,ELECTRICITY,02/06/2023,421283,2108.54,SCOTTISH & SOUTHERN ENERGY GROUP,103454
NEWARK AND SHERWOOD DISTRICT COUNCIL,POLICY & FINANCE,G450,REPAIRS AND MAINTENANCE,30/06/2023,423555,2102.5,LINDUM GROUP LTD,100651
NEWARK AND SHERWOOD DISTRICT COUNCIL,ECONOMIC DEVELOPMENT,G420,PROFESSIONAL SERVICES,02/06/2023,421247,2100,FOXSTONE FORESTRY LTD,106901
NEWARK AND SHERWOOD DISTRICT COUNCIL,CAPITAL,G997,CONSTRUCTION,19/05/2023,419693,2100,STUDIO G ASSOCIATES,104539
NEWARK AND SHERWOOD DISTRICT COUNCIL,POLICY & FINANCE,G450,INTERNAL TRAINING,09/06/2023,421675,2095,REDACTED PERSONAL DATA,107880
NEWARK AND SHERWOOD DISTRICT COUNCIL,POLICY & FINANCE,G450,INSURANCE,02/06/2023,421270,2088.28,ARTHUR J GALLAGHER INSURANCE BROKERS LIMITED,106423
NEWARK AND SHERWOOD DISTRICT COUNCIL,CAPITAL,G997,DISABLED FACILITIES,19/05/2023,419947,2069.84,PRISM MEDICAL UK,100918
NEWARK AND SHERWOOD DISTRICT COUNCIL,HOUSING REVENUE ACCOUNT,G410,CONTRACTUAL SERVICES,12/05/2023,419222,2066.27,J WRIGHT ROOFING LTD,105753
NEWARK AND SHERWOOD DISTRICT COUNCIL,HOUSING REVENUE ACCOUNT,G410,CONTRACTUAL SERVICES,16/06/2023,422248,2064.03,T & S HEATING LTD,105748
NEWARK AND SHERWOOD DISTRICT COUNCIL,HOMES & COMMUNITIES,G430,PROFESSIONAL SERVICES,28/04/2023,417957,2060,CHRISTINE GRAHAM CONSULTANCY LTD,106160
NEWARK AND SHERWOOD DISTRICT COUNCIL,POLICY & FINANCE,G450,MOBILE PHONES,09/06/2023,419400,2044.63,DAISY CORPORATE SERVICES TRADING LTD,106630
NEWARK AND SHERWOOD DISTRICT COUNCIL,CAPITAL,G997,CONSTRUCTION,19/05/2023,418716,2040,JACKSON DESIGN ASSOCIATES LIMITED,106431
NEWARK AND SHERWOOD DISTRICT COUNCIL,ECONOMIC DEVELOPMENT,G420,PAYMENTS TO NOTTS COUNTY CNCL,05/05/2023,418691,2040,NOTTINGHAMSHIRE COUNTY COUNCIL,100393
NEWARK AND SHERWOOD DISTRICT COUNCIL,POLICY & FINANCE,G450,CTAX NSDC PARISH PRECEPT PYMTS,08/04/2023,417252,2036.43,BARNBY PARISH COUNCIL,100032
NEWARK AND SHERWOOD DISTRICT COUNCIL,POLICY & FINANCE,G450,STANDING CHARGES TELEPHONES,09/06/2023,421844,2029.28,DAISY CORPORATE SERVICES TRADING LTD,106630
NEWARK AND SHERWOOD DISTRICT COUNCIL,ECONOMIC DEVELOPMENT,G420,ELECTRICITY,21/04/2023,417493,2021.78,NPOWER BUSINESS SOLUTIONS - ELECTRIC,107725
NEWARK AND SHERWOOD DISTRICT COUNCIL,POLICY & FINANCE,G450,MOBILE PHONES DEVICES,19/05/2023,419686,2010,ACS BUSINESS SUPPLIES LTD,107089
NEWARK AND SHERWOOD DISTRICT COUNCIL,HOMES & COMMUNITIES,G430,CCTV OPERATION,23/06/2023,422843,2001.54,BAYDALE CONTROL SYSTEMS LTD,106617
NEWARK AND SHERWOOD DISTRICT COUNCIL,HOUSING REVENUE ACCOUNT,G410,LIFT MAINTENANCE,16/06/2023,422210,2000,DELTRON LIFTS LTD,107882
NEWARK AND SHERWOOD DISTRICT COUNCIL,ECONOMIC DEVELOPMENT,G420,PROFESSIONAL SERVICES,09/06/2023,421587,2000,DURNIN RESEARCH LTD,107881
NEWARK AND SHERWOOD DISTRICT COUNCIL,POLICY & FINANCE,G450,CTAX NSDC PARISH PRECEPT PYMTS,08/04/2023,417273,2000,HALAM PARISH COUNCIL,100196
NEWARK AND SHERWOOD DISTRICT COUNCIL,ECONOMIC DEVELOPMENT,G420,EMPLOYMENT & SKILLS,06/04/2023,416769,2000,NEWARK BOOK FESTIVAL,105885
NEWARK AND SHERWOOD DISTRICT COUNCIL,ECONOMIC DEVELOPMENT,G420,PARTNER/STAKEHOLDER INITIATIVE,28/04/2023,418314,2000,NOTTINGHAM FESTIVAL OF SCIENCE & CURIOSITY LT,107001
NEWARK AND SHERWOOD DISTRICT COUNCIL,POLICY & FINANCE,G450,CTAX NSDC PARISH PRECEPT PYMTS,08/04/2023,417284,2000,RUFFORD PARISH COUNCIL,100471
NEWARK AND SHERWOOD DISTRICT COUNCIL,LEISURE & ENVIRONMENT,G440,PETROL AND DIESEL,16/06/2023,422110,1988.7,BWOC LTD,107672
NEWARK AND SHERWOOD DISTRICT COUNCIL,ECONOMIC DEVELOPMENT,G420,ARTISTS FEES,02/06/2023,421237,1982.97,LOST THE PLOT THEATRICAL LIMITED,107883
NEWARK AND SHERWOOD DISTRICT COUNCIL,HOMES & COMMUNITIES,G430,CCTV MAINTENANCE,06/04/2023,416464,1976,BAYDALE CONTROL SYSTEMS LTD,106617
NEWARK AND SHERWOOD DISTRICT COUNCIL,HOMES & COMMUNITIES,G430,CCTV MAINTENANCE,12/05/2023,419412,1976,BAYDALE CONTROL SYSTEMS LTD,106617
NEWARK AND SHERWOOD DISTRICT COUNCIL,HOUSING REVENUE ACCOUNT,G410,CONTRACTUAL SERVICES,09/06/2023,421690,1975,TUNSTALL RESPONSE LTD,106876
NEWARK AND SHERWOOD DISTRICT COUNCIL,HOUSING REVENUE ACCOUNT,G410,CONTRACTUAL SERVICES,16/06/2023,422477,1973.7,METRO ROD LTD,106655
NEWARK AND SHERWOOD DISTRICT COUNCIL,ECONOMIC DEVELOPMENT,G420,PROFESSIONAL SERVICES,19/05/2023,419568,1969.65,SMITH AND ROPER,107560
NEWARK AND SHERWOOD DISTRICT COUNCIL,HOUSING REVENUE ACCOUNT,G410,FIRE ALARM AND EMERGENCY LIGHT,28/04/2023,418333,1967,HD ELECTRICAL SYSTEMS LTD,105293
NEWARK AND SHERWOOD DISTRICT COUNCIL,HOUSING REVENUE ACCOUNT,G410,MATERIALS,09/06/2023,421793,1965.5,PTS - CITY PLUMBING SUPPLIES LTD,107157
NEWARK AND SHERWOOD DISTRICT COUNCIL,ECONOMIC DEVELOPMENT,G420,AGENCY STAFF,23/06/2023,422747,1961.75,WATCH-IT SECURITY SERVICES LTD,103618
NEWARK AND SHERWOOD DISTRICT COUNCIL,LEISURE & ENVIRONMENT,G440,PETROL AND DIESEL,26/05/2023,420440,1960,BRENNTAG UK LTD,100054
NEWARK AND SHERWOOD DISTRICT COUNCIL,CAPITAL,G997,CONSTRUCTION,28/04/2023,418092,1950,SMITH AND ROPER,107560
NEWARK AND SHERWOOD DISTRICT COUNCIL,POLICY & FINANCE,G450,AGENCY STAFF,19/05/2023,419614,1940.63,SELLICK PARTNERSHIP LTD,106780
NEWARK AND SHERWOOD DISTRICT COUNCIL,HOUSING REVENUE ACCOUNT,G410,MATERIALS,28/04/2023,418094,1940,WILKO RETAIL LTD,105562
NEWARK AND SHERWOOD DISTRICT COUNCIL,CAPITAL,G997,VEHICLE AQUISITION,19/05/2023,419944,1935,CREATIVE VEHICLE WRAPPING LIMITED,107233
NEWARK AND SHERWOOD DISTRICT COUNCIL,CAPITAL,G997,CONSTRUCTION,12/05/2023,419206,1932.56,TERSUS CONSULTANCY LIMITED,101057
NEWARK AND SHERWOOD DISTRICT COUNCIL,POLICY & FINANCE,G450,AGENCY STAFF,23/06/2023,422339,1926.25,SELLICK PARTNERSHIP LTD,106780
NEWARK AND SHERWOOD DISTRICT COUNCIL,HOUSING REVENUE ACCOUNT,G410,CONTRACTUAL SERVICES,19/05/2023,419754,1920,FARRENDALE LTD,106640
NEWARK AND SHERWOOD DISTRICT COUNCIL,ECONOMIC DEVELOPMENT,G420,RENT,05/05/2023,418678,1918.23,CANAL & RIVER TRUST,101719
NEWARK AND SHERWOOD DISTRICT COUNCIL,ECONOMIC DEVELOPMENT,G420,PROF SERV - EXTERNAL CONTRACTS,05/05/2023,418706,1912.5,TILLERS TURF COMPANY LTD,107149
NEWARK AND SHERWOOD DISTRICT COUNCIL,POLICY & FINANCE,G450,AGENCY STAFF,21/04/2023,417442,1911.88,SELLICK PARTNERSHIP LTD,106780
NEWARK AND SHERWOOD DISTRICT COUNCIL,POLICY & FINANCE,G450,AGENCY STAFF,19/05/2023,419615,1911.88,SELLICK PARTNERSHIP LTD,106780
NEWARK AND SHERWOOD DISTRICT COUNCIL,POLICY & FINANCE,G450,AGENCY STAFF,16/06/2023,422137,1907.28,SELLICK PARTNERSHIP LTD,106780
NEWARK AND SHERWOOD DISTRICT COUNCIL,HOUSING REVENUE ACCOUNT,G410,MATERIALS,28/04/2023,417971,1906.55,PTS - CITY PLUMBING SUPPLIES LTD,107157
NEWARK AND SHERWOOD DISTRICT COUNCIL,HOUSING REVENUE ACCOUNT,G410,CONTRACTUAL SERVICES,05/05/2023,418665,1905.3,NOVUS PROPERTY SOLUTIONS LTD,107362
NEWARK AND SHERWOOD DISTRICT COUNCIL,ECONOMIC DEVELOPMENT,G420,MATERIALS,23/06/2023,422254,1905.2,NOMIX ENVIRO LIMITED,100381
NEWARK AND SHERWOOD DISTRICT COUNCIL,CAPITAL,G997,DISABLED FACILITIES,05/05/2023,418926,1900,ABAKUS ENGINEERING LTD,105379
NEWARK AND SHERWOOD DISTRICT COUNCIL,CAPITAL,G997,CONSTRUCTION,06/04/2023,416979,1890,GPR CONSTRUCTION LTD,100190
NEWARK AND SHERWOOD DISTRICT COUNCIL,CAPITAL,G997,CONSTRUCTION,16/06/2023,420422,1889.22,KIRK & BILLS LTD,105630
NEWARK AND SHERWOOD DISTRICT COUNCIL,HOUSING REVENUE ACCOUNT,G410,TENANT INVOLVEMENT,19/05/2023,419628,1885.31,NOTICE BOARD COMPANY (UK) LTD,107884
NEWARK AND SHERWOOD DISTRICT COUNCIL,HOUSING REVENUE ACCOUNT,G410,SUBSCRIPTIONS,06/04/2023,416832,1885,TPAS LTD,106793
NEWARK AND SHERWOOD DISTRICT COUNCIL,HOUSING REVENUE ACCOUNT,G410,MATERIALS,28/04/2023,418013,1881.19,PTS - CITY PLUMBING SUPPLIES LTD,107157
NEWARK AND SHERWOOD DISTRICT COUNCIL,ECONOMIC DEVELOPMENT,G420,AGENCY STAFF,26/05/2023,420303,1875,PAYSTREAM MY MAX 3 LTD,107549
NEWARK AND SHERWOOD DISTRICT COUNCIL,HOUSING REVENUE ACCOUNT,G410,GAS,30/06/2023,423711,1869.13,SEFE ENERGY LIMITED (GAZPROM),107596
NEWARK AND SHERWOOD DISTRICT COUNCIL,ECONOMIC DEVELOPMENT,G420,CLEANING CONTRACT,05/05/2023,416921,1865.18,ATLAS CONTRACTORS LTD,107626
NEWARK AND SHERWOOD DISTRICT COUNCIL,LEISURE & ENVIRONMENT,G440,MATERIALS,09/06/2023,421576,1862.15,PARTIC MOTOR SPARES LTD,100421
NEWARK AND SHERWOOD DISTRICT COUNCIL,LEISURE & ENVIRONMENT,G440,MATERIALS,26/05/2023,420433,1857.36,UK TELEMATICS LIMITED,106795
NEWARK AND SHERWOOD DISTRICT COUNCIL,ECONOMIC DEVELOPMENT,G420,CONTRACTUAL SERVICES,06/04/2023,416936,1852.62,METRIC GROUP LTD,100306
NEWARK AND SHERWOOD DISTRICT COUNCIL,ECONOMIC DEVELOPMENT,G420,CONTRACTUAL SERVICES,02/06/2023,421298,1852.62,METRIC GROUP LTD,100306
NEWARK AND SHERWOOD DISTRICT COUNCIL,POLICY & FINANCE,G450,STANDING CHARGES TELEPHONES,12/05/2023,419415,1852.51,DAISY CORPORATE SERVICES TRADING LTD,106630
NEWARK AND SHERWOOD DISTRICT COUNCIL,POLICY & FINANCE,G450,GAS,12/05/2023,418593,1852.24,TOTAL ENERGIES GAS & POWER LTD,107289
NEWARK AND SHERWOOD DISTRICT COUNCIL,ECONOMIC DEVELOPMENT,G420,ELECTRICITY,21/04/2023,417495,1851.51,NPOWER BUSINESS SOLUTIONS - ELECTRIC,107725
NEWARK AND SHERWOOD DISTRICT COUNCIL,POLICY & FINANCE,G450,CONTRACTUAL SERVICES,16/06/2023,421291,1844,BOON EDAM LTD,106025
NEWARK AND SHERWOOD DISTRICT COUNCIL,POLICY & FINANCE,G450,MOBILE PHONES,09/06/2023,421829,1838.83,DAISY CORPORATE SERVICES TRADING LTD,106630
NEWARK AND SHERWOOD DISTRICT COUNCIL,HOUSING REVENUE ACCOUNT,G410,CONTRACTUAL SERVICES,05/05/2023,418676,1826.69,NOVUS PROPERTY SOLUTIONS LTD,107362
NEWARK AND SHERWOOD DISTRICT COUNCIL,HOUSING REVENUE ACCOUNT,G410,TENANT INVOLVEMENT,26/05/2023,420452,1825,TPAS LTD,106793
NEWARK AND SHERWOOD DISTRICT COUNCIL,ECONOMIC DEVELOPMENT,G420,REPAIRS AND MAINTENANCE,09/06/2023,421540,1815,EUROTECH ENVIRONMENTAL LTD,100854
NEWARK AND SHERWOOD DISTRICT COUNCIL,LEISURE & ENVIRONMENT,G440,MATERIALS,14/04/2023,417347,1804.83,MITCHELL POWERSYSTEMS,101238
NEWARK AND SHERWOOD DISTRICT COUNCIL,POLICY & FINANCE,G450,PROFESSIONAL SERVICES,21/04/2023,417436,1801.24,CIVICA UK LTD,105867
NEWARK AND SHERWOOD DISTRICT COUNCIL,ECONOMIC DEVELOPMENT,G420,PROFESSIONAL SERVICES,05/05/2023,418944,1800,FOXSTONE FORESTRY LTD,106901
NEWARK AND SHERWOOD DISTRICT COUNCIL,ECONOMIC DEVELOPMENT,G420,PROFESSIONAL SERVICES,02/06/2023,421248,1800,FOXSTONE FORESTRY LTD,106901
NEWARK AND SHERWOOD DISTRICT COUNCIL,ECONOMIC DEVELOPMENT,G420,PROFESSIONAL SERVICES,30/06/2023,423571,1800,FOXSTONE FORESTRY LTD,106901
NEWARK AND SHERWOOD DISTRICT COUNCIL,POLICY & FINANCE,G450,REPAIRS AND MAINTENANCE,23/06/2023,421732,1800,FREEDOM FIRE AND SECURITY MAINTENANCE LTD,107889
NEWARK AND SHERWOOD DISTRICT COUNCIL,POLICY & FINANCE,G450,CTAX NSDC PARISH PRECEPT PYMTS,08/04/2023,417259,1782,CARLTON-ON-TRENT PARISH COUNCIL,100072
NEWARK AND SHERWOOD DISTRICT COUNCIL,ECONOMIC DEVELOPMENT,G420,MATERIALS,06/04/2023,414590,1780.84,LANDSCAPE SUPPLY COMPANY,106981
NEWARK AND SHERWOOD DISTRICT COUNCIL,HOUSING REVENUE ACCOUNT,G410,CONTRACTUAL SERVICES,09/06/2023,421695,1772,J WRIGHT ROOFING LTD,105753
NEWARK AND SHERWOOD DISTRICT COUNCIL,POLICY & FINANCE,G450,AGENCY STAFF,21/04/2023,417441,1768.13,SELLICK PARTNERSHIP LTD,106780
NEWARK AND SHERWOOD DISTRICT COUNCIL,HOUSING REVENUE ACCOUNT,G410,PROFESSIONAL SERVICES,28/04/2023,418257,1763.75,VIEWPOINT COMMUNITY INTEREST COMPANY,106797
NEWARK AND SHERWOOD DISTRICT COUNCIL,HOUSING REVENUE ACCOUNT,G410,PROFESSIONAL SERVICES,19/05/2023,419768,1763.75,VIEWPOINT COMMUNITY INTEREST COMPANY,106797
NEWARK AND SHERWOOD DISTRICT COUNCIL,HOUSING REVENUE ACCOUNT,G410,PROFESSIONAL SERVICES,16/06/2023,422498,1763.75,VIEWPOINT COMMUNITY INTEREST COMPANY,106797
NEWARK AND SHERWOOD DISTRICT COUNCIL,POLICY & FINANCE,G450,ELECTRICITY,19/06/2023,422469,1763.73,EDF ENERGY 1 LTD,101140
NEWARK AND SHERWOOD DISTRICT COUNCIL,HOMES & COMMUNITIES,G430,BT LINES,21/04/2023,417503,1762.84,BRITISH TELECOMMUNICATIONS PLC,100057
NEWARK AND SHERWOOD DISTRICT COUNCIL,POLICY & FINANCE,G450,COMPUTER SOFTWARE,24/04/2023,417773,1760,M-FILES CORPORATION,106656
NEWARK AND SHERWOOD DISTRICT COUNCIL,POLICY & FINANCE,G450,ELECTION EXPENSES,19/05/2023,419843,1757.12,ROYAL MAIL GROUP LTD,100469
NEWARK AND SHERWOOD DISTRICT COUNCIL,CAPITAL,G997,CONSTRUCTION,06/04/2023,416494,1754.89,NOVUS PROPERTY SOLUTIONS LTD,107362
NEWARK AND SHERWOOD DISTRICT COUNCIL,POLICY & FINANCE,G450,AGENCY STAFF,06/04/2023,416719,1753.75,SELLICK PARTNERSHIP LTD,106780
NEWARK AND SHERWOOD DISTRICT COUNCIL,CAPITAL,G997,CONSTRUCTION,06/04/2023,416608,1750,BSP CONSULTING,104667
NEWARK AND SHERWOOD DISTRICT COUNCIL,POLICY & FINANCE,G450,PROFESSIONAL SERVICES,06/04/2023,416586,1750,CIVICA UK LTD,105867
NEWARK AND SHERWOOD DISTRICT COUNCIL,CAPITAL,G997,PROFESSIONAL FEES,06/04/2023,416768,1750,MERCER & CO,107592
NEWARK AND SHERWOOD DISTRICT COUNCIL,CAPITAL,G997,PROFESSIONAL FEES,14/04/2023,417336,1750,MERCER & CO,107592
NEWARK AND SHERWOOD DISTRICT COUNCIL,CAPITAL,G997,PROFESSIONAL FEES,05/05/2023,418612,1750,MERCER & CO,107592
NEWARK AND SHERWOOD DISTRICT COUNCIL,CAPITAL,G997,PROFESSIONAL FEES,09/06/2023,421645,1750,MERCER & CO,107592
NEWARK AND SHERWOOD DISTRICT COUNCIL,CAPITAL,G997,PROFESSIONAL FEES,30/06/2023,423565,1750,MERCER & CO,107592
NEWARK AND SHERWOOD DISTRICT COUNCIL,CAPITAL,G997,CONSTRUCTION,05/05/2023,418906,1750,WILLIAM MARTIN PROPERTY CONSULTANTS LTD,107885
NEWARK AND SHERWOOD DISTRICT COUNCIL,CAPITAL,G997,CONSTRUCTION,16/06/2023,422204,1749.68,WALDRAMS LTD,107849
NEWARK AND SHERWOOD DISTRICT COUNCIL,CAPITAL,G997,CONSTRUCTION,16/06/2023,422205,1749.68,WALDRAMS LTD,107849
NEWARK AND SHERWOOD DISTRICT COUNCIL,HOUSING REVENUE ACCOUNT,G410,GAS,28/06/2023,423391,1747.41,SCOTTISH & SOUTHERN ENERGY GROUP,103454
NEWARK AND SHERWOOD DISTRICT COUNCIL,POLICY & FINANCE,G450,ELECTRICITY,16/06/2023,422296,1745.46,EDF ENERGY 1 LTD,101140
NEWARK AND SHERWOOD DISTRICT COUNCIL,HOUSING REVENUE ACCOUNT,G410,CONTRACTUAL SERVICES,28/04/2023,418129,1732.5,PHOENIX GAS SERVICES LTD,107576
NEWARK AND SHERWOOD DISTRICT COUNCIL,HOUSING REVENUE ACCOUNT,G410,CONTRACTUAL SERVICES,28/04/2023,418100,1730.2,T & S HEATING LTD,105748
NEWARK AND SHERWOOD DISTRICT COUNCIL,CAPITAL,G997,CONSTRUCTION,28/04/2023,417967,1718.75,BELL GROUP UK,100039
NEWARK AND SHERWOOD DISTRICT COUNCIL,POLICY & FINANCE,G450,MOBILE PHONES,12/05/2023,419180,1715.35,EE LIMITED,106527
NEWARK AND SHERWOOD DISTRICT COUNCIL,ECONOMIC DEVELOPMENT,G420,PROMOTION OF EVENTS,19/05/2023,419621,1708.2,RELIANCE HIGH-TECH LTD,106556
NEWARK AND SHERWOOD DISTRICT COUNCIL,ECONOMIC DEVELOPMENT,G420,PROF SERV - EXTERNAL CONTRACTS,30/06/2023,423561,1700,ROBERT MARSHALL & SONS LTD,105315
NEWARK AND SHERWOOD DISTRICT COUNCIL,POLICY & FINANCE,G450,PROFESSIONAL SERVICES,06/04/2023,416508,1700,TAMESIDE METROPOLITAN BOROUGH COUNCIL,106144
NEWARK AND SHERWOOD DISTRICT COUNCIL,LEISURE & ENVIRONMENT,G440,AGENCY STAFF,19/05/2023,418330,1698.04,AMBITIONS PERSONNEL LTD,105324
NEWARK AND SHERWOOD DISTRICT COUNCIL,POLICY & FINANCE,G450,GAS,06/04/2023,416461,1694.91,TOTAL ENERGIES GAS & POWER LTD,107289
NEWARK AND SHERWOOD DISTRICT COUNCIL,HOUSING REVENUE ACCOUNT,G410,DISTURBANCE ALLOWANCE,16/06/2023,422265,1690,WILKO RETAIL LTD,105562
NEWARK AND SHERWOOD DISTRICT COUNCIL,ECONOMIC DEVELOPMENT,G420,CONTRACTUAL SERVICES,16/06/2023,422098,1682.93,PAY BY PHONE,106856
NEWARK AND SHERWOOD DISTRICT COUNCIL,LEISURE & ENVIRONMENT,G440,MATERIALS,06/04/2023,416900,1675.96,PARTIC MOTOR SPARES LTD,100421
NEWARK AND SHERWOOD DISTRICT COUNCIL,HOUSING REVENUE ACCOUNT,G410,CONTRACTUAL SERVICES,05/05/2023,418660,1671.58,NOVUS PROPERTY SOLUTIONS LTD,107362
NEWARK AND SHERWOOD DISTRICT COUNCIL,POLICY & FINANCE,G450,CONTRACTUAL SERVICES,30/06/2023,423097,1665,FREEDOM FIRE AND SECURITY MAINTENANCE LTD,107889
NEWARK AND SHERWOOD DISTRICT COUNCIL,HOMES & COMMUNITIES,G430,MISCELLANEOUS EXPENSES,06/04/2023,416960,1655,1ST BILSTHORPE SCOUT GROUP,106115
NEWARK AND SHERWOOD DISTRICT COUNCIL,ECONOMIC DEVELOPMENT,G420,STREET NAME PLATE MAINTENANCE,26/05/2023,419852,1654.45,S P G CONSTRUCTION LTD,100477
NEWARK AND SHERWOOD DISTRICT COUNCIL,LEISURE & ENVIRONMENT,G440,MATERIALS,19/05/2023,419857,1652.23,BRUSH TECHNOLOGY LTD,104952
NEWARK AND SHERWOOD DISTRICT COUNCIL,POLICY & FINANCE,G450,PROFESSIONAL SERVICES,26/05/2023,420469,1650,PIXEL FINANCIAL MANAGEMENT LTD,106941
NEWARK AND SHERWOOD DISTRICT COUNCIL,POLICY & FINANCE,G450,ELECTRICITY,16/06/2023,422476,1642.91,EDF ENERGY 1 LTD,101140
NEWARK AND SHERWOOD DISTRICT COUNCIL,LEISURE & ENVIRONMENT,G440,HIRE OF VEHICLES,05/05/2023,418870,1625,MAUN MOTORS SELF DRIVE,105142
NEWARK AND SHERWOOD DISTRICT COUNCIL,POLICY & FINANCE,G450,LICENCES,09/06/2023,421572,1624.14,COPYRIGHT LICENSING AGENCY LTD,100111
NEWARK AND SHERWOOD DISTRICT COUNCIL,POLICY & FINANCE,G450,REPAIRS AND MAINTENANCE,06/04/2023,416557,1610,MITIE TF MANAGEMENT LTD,107698
NEWARK AND SHERWOOD DISTRICT COUNCIL,POLICY & FINANCE,G450,PRINTING,09/06/2023,421640,1605,PRINT IMAGE NETWORK LTD,100431
NEWARK AND SHERWOOD DISTRICT COUNCIL,LEISURE & ENVIRONMENT,G440,PETROL AND DIESEL,09/06/2023,421646,1602.37,UK FUELS LTD,103594
NEWARK AND SHERWOOD DISTRICT COUNCIL,HOMES & COMMUNITIES,G430,MISCELLANEOUS EXPENSES,06/04/2023,416991,1600,THURGARTON PARISH COUNCIL,100564
NEWARK AND SHERWOOD DISTRICT COUNCIL,ECONOMIC DEVELOPMENT,G420,CONTRACTUAL SERVICES,21/04/2023,417545,1595.22,PAY BY PHONE,106856
NEWARK AND SHERWOOD DISTRICT COUNCIL,POLICY & FINANCE,G450,LEGIONELLA SERVICING,23/06/2023,416587,1595,CONCERTUS DERBYSHIRE TRADED LTD,107401
NEWARK AND SHERWOOD DISTRICT COUNCIL,HOUSING REVENUE ACCOUNT,G410,CONTRACTUAL SERVICES,28/04/2023,418124,1595,PHOENIX GAS SERVICES LTD,107576
NEWARK AND SHERWOOD DISTRICT COUNCIL,ECONOMIC DEVELOPMENT,G420,CONTRACTUAL SERVICES,19/05/2023,419547,1590.75,PAY BY PHONE,106856
NEWARK AND SHERWOOD DISTRICT COUNCIL,HOUSING REVENUE ACCOUNT,G410,CONTRACTUAL SERVICES,05/05/2023,418679,1587.08,NOVUS PROPERTY SOLUTIONS LTD,107362
NEWARK AND SHERWOOD DISTRICT COUNCIL,HOUSING REVENUE ACCOUNT,G410,SEWAGE WORKS ROUTINE MAINTNCE,28/04/2023,418290,1580.9,R A DALTON LTD,105998
NEWARK AND SHERWOOD DISTRICT COUNCIL,ECONOMIC DEVELOPMENT,G420,PROF SERV - EXTERNAL CONTRACTS,23/06/2023,422831,1580,RUSKIN TREE CONSULTANCY,106947
NEWARK AND SHERWOOD DISTRICT COUNCIL,POLICY & FINANCE,G450,PROFESSIONAL SERVICES,05/05/2023,418712,1568,CIVICA UK LTD,105867
NEWARK AND SHERWOOD DISTRICT COUNCIL,ECONOMIC DEVELOPMENT,G420,ELECTRICITY,06/04/2023,416317,1563.46,EDF ENERGY 1 LTD,101140
NEWARK AND SHERWOOD DISTRICT COUNCIL,CAPITAL,G997,PROFESSIONAL FEES,02/06/2023,418300,1555,BANKS LONG & CO,101223
NEWARK AND SHERWOOD DISTRICT COUNCIL,CAPITAL,G997,CONSTRUCTION,06/04/2023,416596,1555,COUNTY SIGN AGENCY,100115
NEWARK AND SHERWOOD DISTRICT COUNCIL,CAPITAL,G997,CONSTRUCTION,05/05/2023,418832,1551,VAUGHANDALE CONSTRUCTION LTD,100590
NEWARK AND SHERWOOD DISTRICT COUNCIL,HOUSING REVENUE ACCOUNT,G410,CONTRACTUAL SERVICES,06/04/2023,416700,1550.69,NOVUS PROPERTY SOLUTIONS LTD,107362
NEWARK AND SHERWOOD DISTRICT COUNCIL,ECONOMIC DEVELOPMENT,G420,CONTRACTUAL SERVICES,19/05/2023,419668,1549.56,GLASDON UK LTD,101869
NEWARK AND SHERWOOD DISTRICT COUNCIL,CAPITAL,G997,ICT HARDWARE AQUISITION,16/06/2023,422351,1548,VIKING ELECTRICAL LTD,107743
NEWARK AND SHERWOOD DISTRICT COUNCIL,POLICY & FINANCE,G450,PROFESSIONAL SERVICES,19/05/2023,419700,1540,CIVICA UK LTD,105867
NEWARK AND SHERWOOD DISTRICT COUNCIL,POLICY & FINANCE,G450,PRINTING,30/06/2023,423546,1539.84,SPECIALIST COMPUTER CENTRES PLC,100773
NEWARK AND SHERWOOD DISTRICT COUNCIL,POLICY & FINANCE,G450,PROFESSIONAL SERVICES,05/05/2023,416942,1536,BUILDING COST INFORMATION SERVICE LTD,107891
NEWARK AND SHERWOOD DISTRICT COUNCIL,HOUSING REVENUE ACCOUNT,G410,LIFT MAINTENANCE,12/05/2023,419295,1535,CALANDINE LIFTS LTD,100068
NEWARK AND SHERWOOD DISTRICT COUNCIL,HOMES & COMMUNITIES,G430,WIRELESS MAINTENANCE,12/05/2023,419408,1533,SYNECTICS SECURITY LTD,106788
NEWARK AND SHERWOOD DISTRICT COUNCIL,POLICY & FINANCE,G450,REPAIRS AND MAINTENANCE,06/04/2023,416977,1532,GPR CONSTRUCTION LTD,100190
NEWARK AND SHERWOOD DISTRICT COUNCIL,ECONOMIC DEVELOPMENT,G420,ELECTRICITY,21/04/2023,417491,1530.9,NPOWER BUSINESS SOLUTIONS - ELECTRIC,107725
NEWARK AND SHERWOOD DISTRICT COUNCIL,ECONOMIC DEVELOPMENT,G420,RENT,06/04/2023,416969,1525.74,BLUEPRINT LIMITED PARTNERSHIP,100050
NEWARK AND SHERWOOD DISTRICT COUNCIL,HOUSING REVENUE ACCOUNT,G410,GAS,06/04/2023,416512,1518.12,BRITISH GAS BUSINESS,100840
NEWARK AND SHERWOOD DISTRICT COUNCIL,HOUSING REVENUE ACCOUNT,G410,WINDOW CLEANING,16/06/2023,422228,1517.83,HANDS CLEANERS LTD,106975
NEWARK AND SHERWOOD DISTRICT COUNCIL,HOUSING REVENUE ACCOUNT,G410,WINDOW CLEANING,16/06/2023,422237,1517.83,HANDS CLEANERS LTD,106975
NEWARK AND SHERWOOD DISTRICT COUNCIL,HOUSING REVENUE ACCOUNT,G410,WINDOW CLEANING,30/06/2023,423569,1517.83,HANDS CLEANERS LTD,106975
NEWARK AND SHERWOOD DISTRICT COUNCIL,POLICY & FINANCE,G450,CTAX NSDC PARISH PRECEPT PYMTS,08/04/2023,417243,1509,KNEESALL PARISH COUNCIL,100261
NEWARK AND SHERWOOD DISTRICT COUNCIL,POLICY & FINANCE,G450,COMPLIANCE RISK ASSESSMENTS,14/04/2023,416547,1501.53,R J WILSON FIRE & SECURITY,107817
NEWARK AND SHERWOOD DISTRICT COUNCIL,POLICY & FINANCE,G450,PROFESSIONAL SERVICES,19/05/2023,419865,1500,CIPFA BUSINESS LTD,100090
NEWARK AND SHERWOOD DISTRICT COUNCIL,POLICY & FINANCE,G450,CTAX NSDC PARISH PRECEPT PYMTS,08/04/2023,417301,1500,EAST STOKE WITH THORPE P C,100141
NEWARK AND SHERWOOD DISTRICT COUNCIL,ECONOMIC DEVELOPMENT,G420,PROFESSIONAL SERVICES,26/05/2023,420692,1500,FOXSTONE FORESTRY LTD,106901
NEWARK AND SHERWOOD DISTRICT COUNCIL,POLICY & FINANCE,G450,RISK MNGMNT INITIATIVE FUND,30/06/2023,423558,1500,IDEAGEN GAEL LIMITED,106189
NEWARK AND SHERWOOD DISTRICT COUNCIL,ECONOMIC DEVELOPMENT,G420,PROFESSIONAL SERVICES,05/05/2023,418722,1500,INFLUENCE ENVIRONMENTAL LTD,105417
NEWARK AND SHERWOOD DISTRICT COUNCIL,LEISURE & ENVIRONMENT,G440,PROMOTION OF EVENTS,21/04/2023,417573,1500,LETS ALL EAT CIC,107895
NEWARK AND SHERWOOD DISTRICT COUNCIL,CAPITAL,G997,CONSTRUCTION,19/05/2023,419945,1500,OAKWORTH CONSTRUCTION LIMITED,107726
NEWARK AND SHERWOOD DISTRICT COUNCIL,HOMES & COMMUNITIES,G430,MISCELLANEOUS EXPENSES,23/06/2023,423073,1500,REDACTED PERSONAL DATA,107894
NEWARK AND SHERWOOD DISTRICT COUNCIL,HOMES & COMMUNITIES,G430,MISCELLANEOUS EXPENSES,26/05/2023,420558,1500,REDACTED PERSONAL DATA,107892
NEWARK AND SHERWOOD DISTRICT COUNCIL,HOMES & COMMUNITIES,G430,MISCELLANEOUS EXPENSES,09/06/2023,421672,1500,REDACTED PERSONAL DATA,107893
NEWARK AND SHERWOOD DISTRICT COUNCIL,CAPITAL,G997,PROFESSIONAL SERVICES,23/06/2023,422765,1500,PYGOTT & CRONE COMMERCIAL LTD,107009
NEWARK AND SHERWOOD DISTRICT COUNCIL,HOUSING REVENUE ACCOUNT,G410,MATERIALS,05/05/2023,418738,1500,WILKO RETAIL LTD,105562
NEWARK AND SHERWOOD DISTRICT COUNCIL,HOUSING REVENUE ACCOUNT,G410,CONTRACTUAL SERVICES,06/04/2023,416699,1490.43,NOVUS PROPERTY SOLUTIONS LTD,107362
NEWARK AND SHERWOOD DISTRICT COUNCIL,LEISURE & ENVIRONMENT,G440,CLOTHING AND UNIFORMS,21/04/2023,417537,1484.55,LOOKPRO.CO,102808
NEWARK AND SHERWOOD DISTRICT COUNCIL,HOUSING REVENUE ACCOUNT,G410,CONTRACTUAL SERVICES,09/06/2023,421701,1482.76,J WRIGHT ROOFING LTD,105753
NEWARK AND SHERWOOD DISTRICT COUNCIL,LEISURE & ENVIRONMENT,G440,AGENCY STAFF,19/05/2023,419649,1478.6,AMBITIONS PERSONNEL LTD,105324
NEWARK AND SHERWOOD DISTRICT COUNCIL,ECONOMIC DEVELOPMENT,G420,PROF SERV - EXTERNAL CONTRACTS,19/05/2023,418700,1477.05,OLD HALL NURSERIES LTD,100405
NEWARK AND SHERWOOD DISTRICT COUNCIL,HOUSING REVENUE ACCOUNT,G410,AGENCY STAFF,26/05/2023,420637,1476.9,HAYS SPECIALIST RECRUITMENT LTD,101794
NEWARK AND SHERWOOD DISTRICT COUNCIL,LEISURE & ENVIRONMENT,G440,LICENCES & M.O.T.'S,30/06/2023,423289,1475,TRANSTEC GARAGE EQUIPMENT SERVICES LTD,107833
NEWARK AND SHERWOOD DISTRICT COUNCIL,ECONOMIC DEVELOPMENT,G420,ELECTRICITY,21/04/2023,417490,1470.99,NPOWER BUSINESS SOLUTIONS - ELECTRIC,107725
NEWARK AND SHERWOOD DISTRICT COUNCIL,POLICY & FINANCE,G450,PROFESSIONAL SERVICES,16/06/2023,422525,1470,NCC PENSION FUND,101894
NEWARK AND SHERWOOD DISTRICT COUNCIL,LEISURE & ENVIRONMENT,G440,MATERIALS,26/05/2023,420659,1469.36,DENNIS EAGLE LTD,100797
NEWARK AND SHERWOOD DISTRICT COUNCIL,ECONOMIC DEVELOPMENT,G420,ELECTRICITY,21/04/2023,417496,1450.38,NPOWER BUSINESS SOLUTIONS - ELECTRIC,107725
NEWARK AND SHERWOOD DISTRICT COUNCIL,POLICY & FINANCE,G450,RISK MNGMNT INITIATIVE FUND,30/06/2023,423557,1446.74,IDEAGEN GAEL LIMITED,106189
NEWARK AND SHERWOOD DISTRICT COUNCIL,POLICY & FINANCE,G450,COMPUTER SOFTWARE MAINTENANCE,16/06/2023,422256,1440,SMART SURVEY LTD,107165
NEWARK AND SHERWOOD DISTRICT COUNCIL,HOUSING REVENUE ACCOUNT,G410,AGENCY STAFF,06/04/2023,416701,1440,VIVID RESOURCING,106488
NEWARK AND SHERWOOD DISTRICT COUNCIL,HOUSING REVENUE ACCOUNT,G410,AGENCY STAFF,28/04/2023,417975,1440,VIVID RESOURCING,106488
NEWARK AND SHERWOOD DISTRICT COUNCIL,HOUSING REVENUE ACCOUNT,G410,AGENCY STAFF,05/05/2023,418933,1440,VIVID RESOURCING,106488
NEWARK AND SHERWOOD DISTRICT COUNCIL,HOUSING REVENUE ACCOUNT,G410,MATERIALS,05/05/2023,418782,1434.42,PTS - CITY PLUMBING SUPPLIES LTD,107157
NEWARK AND SHERWOOD DISTRICT COUNCIL,HOUSING REVENUE ACCOUNT,G410,AGENCY STAFF,16/06/2023,422463,1430.1,HAYS SPECIALIST RECRUITMENT LTD,101794
NEWARK AND SHERWOOD DISTRICT COUNCIL,HOUSING REVENUE ACCOUNT,G410,AGENCY STAFF,12/05/2023,419395,1429.65,HAYS SPECIALIST RECRUITMENT LTD,101794
NEWARK AND SHERWOOD DISTRICT COUNCIL,HOUSING REVENUE ACCOUNT,G410,SEWERAGE AND WATER CHARGES,19/05/2023,419769,1426.64,SEVERN TRENT WATER LTD,100976
NEWARK AND SHERWOOD DISTRICT COUNCIL,CAPITAL,G997,CONSTRUCTION,30/06/2023,423514,1425,BSP CONSULTING,104667
NEWARK AND SHERWOOD DISTRICT COUNCIL,POLICY & FINANCE,G450,STANDING CHARGES TELEPHONES,09/06/2023,419400,1417,DAISY CORPORATE SERVICES TRADING LTD,106630
NEWARK AND SHERWOOD DISTRICT COUNCIL,POLICY & FINANCE,G450,PROFESSIONAL SERVICES,19/05/2023,419923,1417,NCC PENSION FUND,101894
NEWARK AND SHERWOOD DISTRICT COUNCIL,HOUSING REVENUE ACCOUNT,G410,AGENCY STAFF,28/04/2023,418085,1413,HAYS SPECIALIST RECRUITMENT LTD,101794
NEWARK AND SHERWOOD DISTRICT COUNCIL,HOUSING REVENUE ACCOUNT,G410,AGENCY STAFF,28/04/2023,418220,1413,HAYS SPECIALIST RECRUITMENT LTD,101794
NEWARK AND SHERWOOD DISTRICT COUNCIL,HOUSING REVENUE ACCOUNT,G410,AGENCY STAFF,19/05/2023,419752,1413,HAYS SPECIALIST RECRUITMENT LTD,101794
NEWARK AND SHERWOOD DISTRICT COUNCIL,HOUSING REVENUE ACCOUNT,G410,AGENCY STAFF,26/05/2023,420636,1413,HAYS SPECIALIST RECRUITMENT LTD,101794
NEWARK AND SHERWOOD DISTRICT COUNCIL,HOUSING REVENUE ACCOUNT,G410,AGENCY STAFF,16/06/2023,422303,1413,HAYS SPECIALIST RECRUITMENT LTD,101794
NEWARK AND SHERWOOD DISTRICT COUNCIL,POLICY & FINANCE,G450,PRINTING,06/04/2023,416458,1407.89,SPECIALIST COMPUTER CENTRES PLC,100773
NEWARK AND SHERWOOD DISTRICT COUNCIL,ECONOMIC DEVELOPMENT,G420,CLEANING CONTRACT,23/06/2023,422380,1401.57,ATLAS CONTRACTORS LTD,107626
NEWARK AND SHERWOOD DISTRICT COUNCIL,ECONOMIC DEVELOPMENT,G420,CONTRACTUAL SERVICES,26/05/2023,419654,1401.57,ATLAS CONTRACTORS LTD,107626
NEWARK AND SHERWOOD DISTRICT COUNCIL,ECONOMIC DEVELOPMENT,G420,CONTRACTUAL SERVICES,02/06/2023,419705,1401.57,ATLAS CONTRACTORS LTD,107626
NEWARK AND SHERWOOD DISTRICT COUNCIL,ECONOMIC DEVELOPMENT,G420,CONTRACTUAL SERVICES,09/06/2023,421560,1400,METRIC GROUP LTD,100306
NEWARK AND SHERWOOD DISTRICT COUNCIL,CAPITAL,G997,CONSTRUCTION,06/04/2023,416579,1400,MOULDS FENCING (TORKSEY) LTD,107699
NEWARK AND SHERWOOD DISTRICT COUNCIL,CAPITAL,G997,CONSTRUCTION,26/05/2023,419691,1400,MOULDS FENCING (TORKSEY) LTD,107699
NEWARK AND SHERWOOD DISTRICT COUNCIL,HOUSING REVENUE ACCOUNT,G410,SEWAGE WORKS ROUTINE MAINTNCE,28/04/2023,418289,1395.97,R A DALTON LTD,105998
NEWARK AND SHERWOOD DISTRICT COUNCIL,HOUSING REVENUE ACCOUNT,G410,AGENCY STAFF,06/04/2023,416515,1395.15,HAYS SPECIALIST RECRUITMENT LTD,101794
NEWARK AND SHERWOOD DISTRICT COUNCIL,HOUSING REVENUE ACCOUNT,G410,MATERIALS,12/05/2023,419252,1388.4,PTS - CITY PLUMBING SUPPLIES LTD,107157
NEWARK AND SHERWOOD DISTRICT COUNCIL,HOUSING REVENUE ACCOUNT,G410,INSURANCE,16/06/2023,422511,1381.75,ARTHUR J GALLAGHER INSURANCE BROKERS LIMITED,106423
NEWARK AND SHERWOOD DISTRICT COUNCIL,POLICY & FINANCE,G450,ELECTRICITY,16/06/2023,422297,1375.69,EDF ENERGY 1 LTD,101140
NEWARK AND SHERWOOD DISTRICT COUNCIL,POLICY & FINANCE,G450,ELECTRICITY,16/06/2023,422485,1375.69,EDF ENERGY 1 LTD,101140
NEWARK AND SHERWOOD DISTRICT COUNCIL,POLICY & FINANCE,G450,CTAX NSDC PARISH PRECEPT PYMTS,08/04/2023,417247,1375,SOUTH CLIFTON PARISH COUNCIL,100510
NEWARK AND SHERWOOD DISTRICT COUNCIL,LEISURE & ENVIRONMENT,G440,PAYMENTS TO NOTTS COUNTY CNCL,26/05/2023,420507,1366.7,NOTTINGHAMSHIRE COUNTY COUNCIL,100393
NEWARK AND SHERWOOD DISTRICT COUNCIL,HOUSING REVENUE ACCOUNT,G410,SEWAGE WORKS ROUTINE MAINTNCE,12/05/2023,419287,1364.17,R A DALTON LTD,105998
NEWARK AND SHERWOOD DISTRICT COUNCIL,ECONOMIC DEVELOPMENT,G420,CONTRACTUAL SERVICES,23/06/2023,422746,1361.94,CRYSTAL CLEAN SERVICE LTD,106324
NEWARK AND SHERWOOD DISTRICT COUNCIL,LEISURE & ENVIRONMENT,G440,AGENCY STAFF,02/06/2023,419671,1356.3,AMBITIONS PERSONNEL LTD,105324
NEWARK AND SHERWOOD DISTRICT COUNCIL,LEISURE & ENVIRONMENT,G440,PETROL AND DIESEL,09/06/2023,421774,1355.37,UK FUELS LTD,103594
NEWARK AND SHERWOOD DISTRICT COUNCIL,ECONOMIC DEVELOPMENT,G420,PROF SERV - EXTERNAL CONTRACTS,19/05/2023,418708,1350.8,OLD HALL NURSERIES LTD,100405
NEWARK AND SHERWOOD DISTRICT COUNCIL,HOUSING REVENUE ACCOUNT,G410,SEWERAGE AND WATER CHARGES,26/05/2023,420585,1345.73,WATER-PLUS,105929
NEWARK AND SHERWOOD DISTRICT COUNCIL,POLICY & FINANCE,G450,PROFESSIONAL SERVICES,09/06/2023,421296,1343.24,CIVICA UK LTD,105867
NEWARK AND SHERWOOD DISTRICT COUNCIL,POLICY & FINANCE,G450,INTERNAL TRAINING,09/06/2023,421660,1340,HOUSING SYSTEMS LTD,106910
NEWARK AND SHERWOOD DISTRICT COUNCIL,HOUSING REVENUE ACCOUNT,G410,CONTRACTUAL SERVICES,05/05/2023,418667,1338.25,NOVUS PROPERTY SOLUTIONS LTD,107362
NEWARK AND SHERWOOD DISTRICT COUNCIL,POLICY & FINANCE,G450,CTAX NSDC PARISH PRECEPT PYMTS,08/04/2023,417288,1323,THORNEY PARISH COUNCIL,100561
NEWARK AND SHERWOOD DISTRICT COUNCIL,HOUSING REVENUE ACCOUNT,G410,MATERIALS,26/05/2023,420621,1322.28,PTS - CITY PLUMBING SUPPLIES LTD,107157
NEWARK AND SHERWOOD DISTRICT COUNCIL,HOUSING REVENUE ACCOUNT,G410,CONTRACTUAL SERVICES,19/05/2023,419779,1321.01,AARON SERVICES,107225
NEWARK AND SHERWOOD DISTRICT COUNCIL,POLICY & FINANCE,G450,SEWERAGE AND WATER CHARGES,23/06/2023,422789,1320.17,SMARTA WATER LTD,107280
NEWARK AND SHERWOOD DISTRICT COUNCIL,ECONOMIC DEVELOPMENT,G420,REPAIRS AND MAINTENANCE,14/04/2023,416619,1312,P J LILLEY LTD,100418
NEWARK AND SHERWOOD DISTRICT COUNCIL,HOUSING REVENUE ACCOUNT,G410,MATERIALS,28/04/2023,418093,1310,WILKO RETAIL LTD,105562
NEWARK AND SHERWOOD DISTRICT COUNCIL,ECONOMIC DEVELOPMENT,G420,ELECTRICITY,05/05/2023,418605,1309.66,EDF ENERGY 1 LTD,101140
NEWARK AND SHERWOOD DISTRICT COUNCIL,POLICY & FINANCE,G450,CONTRACTUAL SERVICES,23/06/2023,422179,1306,FREEDOM FIRE AND SECURITY MAINTENANCE LTD,107889
NEWARK AND SHERWOOD DISTRICT COUNCIL,LEISURE & ENVIRONMENT,G440,HIRE OF VEHICLES,06/04/2023,416576,1300,MAUN MOTORS SELF DRIVE,105142
NEWARK AND SHERWOOD DISTRICT COUNCIL,LEISURE & ENVIRONMENT,G440,HIRE OF VEHICLES,16/06/2023,422111,1300,MAUN MOTORS SELF DRIVE,105142
NEWARK AND SHERWOOD DISTRICT COUNCIL,CAPITAL,G997,CONSTRUCTION,23/06/2023,421062,1296.35,MAGPIE SECURITY LTD,102002
NEWARK AND SHERWOOD DISTRICT COUNCIL,POLICY & FINANCE,G450,REPAIRS AND MAINTENANCE,06/04/2023,416980,1295,GPR CONSTRUCTION LTD,100190
NEWARK AND SHERWOOD DISTRICT COUNCIL,LEISURE & ENVIRONMENT,G440,PROFESSIONAL SERVICES,21/04/2023,417544,1294.2,GRADKO ENVIRONMENTAL LTD,102588
NEWARK AND SHERWOOD DISTRICT COUNCIL,HOUSING REVENUE ACCOUNT,G410,SKIP HIRE,19/05/2023,419759,1291.54,VEOLIA ENVIRONMENTAL SERVICES (UK) LTD,106880
NEWARK AND SHERWOOD DISTRICT COUNCIL,HOUSING REVENUE ACCOUNT,G410,MATERIALS,28/04/2023,417908,1291.21,PTS - CITY PLUMBING SUPPLIES LTD,107157
NEWARK AND SHERWOOD DISTRICT COUNCIL,POLICY & FINANCE,G450,REPAIRS AND MAINTENANCE,06/04/2023,416549,1282,JCP POWER & DATA CONTRACTORS LTD,100243
NEWARK AND SHERWOOD DISTRICT COUNCIL,HOUSING REVENUE ACCOUNT,G410,CONTRACTUAL SERVICES,30/06/2023,423474,1280.7,T & S HEATING LTD,105748
NEWARK AND SHERWOOD DISTRICT COUNCIL,POLICY & FINANCE,G450,SEWERAGE AND WATER CHARGES,26/05/2023,420478,1280.52,SMARTA WATER LTD,107280
NEWARK AND SHERWOOD DISTRICT COUNCIL,ECONOMIC DEVELOPMENT,G420,CONTRACTUAL SERVICES,16/06/2023,422172,1280,AGROVISTA UK LTD,107903
NEWARK AND SHERWOOD DISTRICT COUNCIL,CAPITAL,G997,CONSTRUCTION,23/05/2023,420390,1280,QUANTUM BILLING - INPROVA GROUP,106944
NEWARK AND SHERWOOD DISTRICT COUNCIL,ECONOMIC DEVELOPMENT,G420,REPAIRS AND MAINTENANCE,19/05/2023,419664,1276.8,RENASCOR,101733
NEWARK AND SHERWOOD DISTRICT COUNCIL,POLICY & FINANCE,G450,CLEANING CONTRACT,06/04/2023,416899,1274.48,JPC SERVICES (GLOSSOP) LTD,105208
NEWARK AND SHERWOOD DISTRICT COUNCIL,POLICY & FINANCE,G450,CONTRACTUAL SERVICES,05/05/2023,418768,1274.48,JPC SERVICES (GLOSSOP) LTD,105208
NEWARK AND SHERWOOD DISTRICT COUNCIL,POLICY & FINANCE,G450,CONTRACTUAL SERVICES,05/05/2023,418770,1274.48,JPC SERVICES (GLOSSOP) LTD,105208
NEWARK AND SHERWOOD DISTRICT COUNCIL,POLICY & FINANCE,G450,CONTRACTUAL SERVICES,02/06/2023,421293,1274.48,JPC SERVICES (GLOSSOP) LTD,105208
NEWARK AND SHERWOOD DISTRICT COUNCIL,LEISURE & ENVIRONMENT,G440,MATERIALS,16/06/2023,422346,1267,NOTTINGHAMSHIRE COUNTY COUNCIL,100393
NEWARK AND SHERWOOD DISTRICT COUNCIL,HOUSING REVENUE ACCOUNT,G410,CONTRACTUAL SERVICES,19/05/2023,419940,1262.9,T & S HEATING LTD,105748
NEWARK AND SHERWOOD DISTRICT COUNCIL,CAPITAL,G997,DISABLED FACILITIES,19/05/2023,419669,1259.25,REDACTED PERSONAL DATA,107905
NEWARK AND SHERWOOD DISTRICT COUNCIL,POLICY & FINANCE,G450,REPAIRS AND MAINTENANCE,30/06/2023,422870,1251.36,LINDUM GROUP LTD,100651
NEWARK AND SHERWOOD DISTRICT COUNCIL,HOUSING REVENUE ACCOUNT,G410,SEWAGE WORKS ROUTINE MAINTNCE,12/05/2023,419288,1250.9,R A DALTON LTD,105998
NEWARK AND SHERWOOD DISTRICT COUNCIL,HOUSING REVENUE ACCOUNT,G410,MATERIALS,30/06/2023,423503,1250.36,PTS - CITY PLUMBING SUPPLIES LTD,107157
NEWARK AND SHERWOOD DISTRICT COUNCIL,LEISURE & ENVIRONMENT,G440,CLOTHING AND UNIFORMS,05/05/2023,418714,1250.07,ARCO LIMITED,102144
NEWARK AND SHERWOOD DISTRICT COUNCIL,ECONOMIC DEVELOPMENT,G420,COMMUNICATION & ADVERTISING,21/04/2023,417558,1250,BAKERBAIRD COMMUNICATIONS LTD,107392
NEWARK AND SHERWOOD DISTRICT COUNCIL,POLICY & FINANCE,G450,CONTRACTUAL SERVICES,09/06/2023,421544,1249.65,CIVICA UK LTD,105867
NEWARK AND SHERWOOD DISTRICT COUNCIL,LEISURE & ENVIRONMENT,G440,PARISH CNCLS AND VOL BODIES,16/06/2023,422129,1249.5,THE HELPING HAND COMPANY,101915
NEWARK AND SHERWOOD DISTRICT COUNCIL,POLICY & FINANCE,G450,SEWERAGE AND WATER CHARGES,05/05/2023,418575,1248.64,SMARTA WATER LTD,107280
NEWARK AND SHERWOOD DISTRICT COUNCIL,HOUSING REVENUE ACCOUNT,G410,FIRE MAINTENANCE,28/04/2023,417520,1242.36,VENTRO LTD,107290
NEWARK AND SHERWOOD DISTRICT COUNCIL,POLICY & FINANCE,G450,ELECTRICITY,06/04/2023,416306,1235.34,EDF ENERGY 1 LTD,101140
NEWARK AND SHERWOOD DISTRICT COUNCIL,HOUSING REVENUE ACCOUNT,G410,SEWERAGE AND WATER CHARGES,05/05/2023,418618,1235.28,WATER-PLUS,105929
NEWARK AND SHERWOOD DISTRICT COUNCIL,POLICY & FINANCE,G450,LEGAL FEES OUTSOURCED,21/04/2023,417415,1233,GELDARDS LLP,106822
NEWARK AND SHERWOOD DISTRICT COUNCIL,ECONOMIC DEVELOPMENT,G420,REPAIRS AND MAINTENANCE,05/05/2023,418657,1228.33,NEWARK HEATING SERVICES LTD,107542
NEWARK AND SHERWOOD DISTRICT COUNCIL,ECONOMIC DEVELOPMENT,G420,ELECTRICITY,19/05/2023,419892,1226.51,NPOWER BUSINESS SOLUTIONS - ELECTRIC,107725
NEWARK AND SHERWOOD DISTRICT COUNCIL,ECONOMIC DEVELOPMENT,G420,ARTISTS FEES,30/06/2023,423354,1224.49,MAPLE TREE ENTERTAINMENT LIMITED,104531
NEWARK AND SHERWOOD DISTRICT COUNCIL,LEISURE & ENVIRONMENT,G440,AGENCY STAFF,23/06/2023,421785,1218,AMBITIONS PERSONNEL LTD,105324
NEWARK AND SHERWOOD DISTRICT COUNCIL,HOUSING REVENUE ACCOUNT,G410,AGENCY STAFF,16/06/2023,420999,1217.56,SELLICK PARTNERSHIP LTD,106780
NEWARK AND SHERWOOD DISTRICT COUNCIL,HOUSING REVENUE ACCOUNT,G410,AGENCY STAFF,30/06/2023,423333,1211.21,SELLICK PARTNERSHIP LTD,106780
NEWARK AND SHERWOOD DISTRICT COUNCIL,ECONOMIC DEVELOPMENT,G420,REPAIRS AND MAINTENANCE,02/06/2023,421049,1211,JCP POWER & DATA CONTRACTORS LTD,100243
NEWARK AND SHERWOOD DISTRICT COUNCIL,POLICY & FINANCE,G450,SUBSCRIPTIONS,28/04/2023,417949,1210,IMPROVEMENT AND DEVELOPMENT AGENCY,105560
NEWARK AND SHERWOOD DISTRICT COUNCIL,HOUSING REVENUE ACCOUNT,G410,AGENCY STAFF,30/06/2023,422140,1210,SELLICK PARTNERSHIP LTD,106780
NEWARK AND SHERWOOD DISTRICT COUNCIL,POLICY & FINANCE,G450,STANDING CHARGES TELEPHONES,09/06/2023,421829,1206.99,DAISY CORPORATE SERVICES TRADING LTD,106630
NEWARK AND SHERWOOD DISTRICT COUNCIL,HOMES & COMMUNITIES,G430,PREVENTION FUND,12/05/2023,419414,1201,BELVOIR LETTINGS (LINCOLN),107907
NEWARK AND SHERWOOD DISTRICT COUNCIL,ECONOMIC DEVELOPMENT,G420,PROF SERV - EXTERNAL CONTRACTS,30/06/2023,423570,1200,FOXSTONE FORESTRY LTD,106901
NEWARK AND SHERWOOD DISTRICT COUNCIL,ECONOMIC DEVELOPMENT,G420,REPAIRS AND MAINTENANCE,19/05/2023,419560,1200,HILLBILLY MIDLANDS LTD,107689
NEWARK AND SHERWOOD DISTRICT COUNCIL,CAPITAL,G997,CONSTRUCTION,23/06/2023,423006,1200,MOULDS FENCING (TORKSEY) LTD,107699
NEWARK AND SHERWOOD DISTRICT COUNCIL,HOUSING REVENUE ACCOUNT,G410,FIRE ALARM AND EMERGENCY LIGHT,12/05/2023,419215,1190,HD ELECTRICAL SYSTEMS LTD,105293
NEWARK AND SHERWOOD DISTRICT COUNCIL,HOUSING REVENUE ACCOUNT,G410,CONTRACTUAL SERVICES,02/06/2023,421094,1188.51,AARON SERVICES,107225
NEWARK AND SHERWOOD DISTRICT COUNCIL,HOUSING REVENUE ACCOUNT,G410,CONTRACTUAL SERVICES,16/06/2023,422308,1180,DANNY WHEATCROFT CARPET CLEANING,107908
NEWARK AND SHERWOOD DISTRICT COUNCIL,HOUSING REVENUE ACCOUNT,G410,MATERIALS,28/04/2023,418199,1179.22,PTS - CITY PLUMBING SUPPLIES LTD,107157
NEWARK AND SHERWOOD DISTRICT COUNCIL,HOUSING REVENUE ACCOUNT,G410,CONTRACTUAL SERVICES,28/04/2023,417859,1175.68,DCR ELECTRICAL LTD,101799
NEWARK AND SHERWOOD DISTRICT COUNCIL,POLICY & FINANCE,G450,PROFESSIONAL SERVICES,12/05/2023,418698,1175.18,AMBITIONS PERSONNEL LTD,105324
NEWARK AND SHERWOOD DISTRICT COUNCIL,HOUSING REVENUE ACCOUNT,G410,MATERIALS,30/06/2023,423505,1172.38,PTS - CITY PLUMBING SUPPLIES LTD,107157
NEWARK AND SHERWOOD DISTRICT COUNCIL,POLICY & FINANCE,G450,REPAIRS AND MAINTENANCE,23/06/2023,421733,1171.4,FREEDOM FIRE AND SECURITY MAINTENANCE LTD,107889
NEWARK AND SHERWOOD DISTRICT COUNCIL,POLICY & FINANCE,G450,PROFESSIONAL SERVICES,12/05/2023,418331,1166.41,AMBITIONS PERSONNEL LTD,105324
NEWARK AND SHERWOOD DISTRICT COUNCIL,HOUSING REVENUE ACCOUNT,G410,AGENCY STAFF,16/06/2023,420998,1164.63,SELLICK PARTNERSHIP LTD,106780
NEWARK AND SHERWOOD DISTRICT COUNCIL,ECONOMIC DEVELOPMENT,G420,GAS,12/05/2023,418589,1163.01,TOTAL ENERGIES GAS & POWER LTD,107289
NEWARK AND SHERWOOD DISTRICT COUNCIL,HOUSING REVENUE ACCOUNT,G410,AGENCY STAFF,16/06/2023,420401,1159.48,SELLICK PARTNERSHIP LTD,106780
NEWARK AND SHERWOOD DISTRICT COUNCIL,HOUSING REVENUE ACCOUNT,G410,CONTRACTUAL SERVICES,06/04/2023,416707,1158.8,J WRIGHT ROOFING LTD,105753
NEWARK AND SHERWOOD DISTRICT COUNCIL,LEISURE & ENVIRONMENT,G440,AGENCY STAFF,19/05/2023,418697,1155,AMBITIONS PERSONNEL LTD,105324
NEWARK AND SHERWOOD DISTRICT COUNCIL,LEISURE & ENVIRONMENT,G440,AGENCY STAFF,30/06/2023,423377,1155,AMBITIONS PERSONNEL LTD,105324
NEWARK AND SHERWOOD DISTRICT COUNCIL,ECONOMIC DEVELOPMENT,G420,ELECTRICITY,21/04/2023,417487,1151.79,NPOWER BUSINESS SOLUTIONS - ELECTRIC,107725
NEWARK AND SHERWOOD DISTRICT COUNCIL,ECONOMIC DEVELOPMENT,G420,COURSE FEES,30/06/2023,423349,1149.89,GET THE EDGE UK  TRAINING & CONSULTANCY LTD,107909
NEWARK AND SHERWOOD DISTRICT COUNCIL,LEISURE & ENVIRONMENT,G440,MATERIALS,21/04/2023,417512,1145.94,DENNIS EAGLE LTD,100797
NEWARK AND SHERWOOD DISTRICT COUNCIL,HOUSING REVENUE ACCOUNT,G410,SKIP HIRE,28/04/2023,418079,1143.28,VEOLIA ENVIRONMENTAL SERVICES (UK) LTD,106880
NEWARK AND SHERWOOD DISTRICT COUNCIL,ECONOMIC DEVELOPMENT,G420,CONTRACTUAL SERVICES,16/06/2023,422185,1140,FREEDOM FIRE AND SECURITY MAINTENANCE LTD,107889
NEWARK AND SHERWOOD DISTRICT COUNCIL,POLICY & FINANCE,G450,PRINTING,21/04/2023,417531,1140,PRINT IMAGE NETWORK LTD,100431
NEWARK AND SHERWOOD DISTRICT COUNCIL,LEISURE & ENVIRONMENT,G440,AGENCY STAFF,21/04/2023,417536,1139.6,AMBITIONS PERSONNEL LTD,105324
NEWARK AND SHERWOOD DISTRICT COUNCIL,ECONOMIC DEVELOPMENT,G420,REPAIRS AND MAINTENANCE,30/06/2023,422874,1137.55,LINDUM GROUP LTD,100651
NEWARK AND SHERWOOD DISTRICT COUNCIL,POLICY & FINANCE,G450,STATIONERY,12/05/2023,418690,1136,NOTTINGHAMSHIRE COUNTY COUNCIL,100393
NEWARK AND SHERWOOD DISTRICT COUNCIL,HOUSING REVENUE ACCOUNT,G410,AGENCY STAFF,06/04/2023,414853,1134.38,SELLICK PARTNERSHIP LTD,106780
NEWARK AND SHERWOOD DISTRICT COUNCIL,HOUSING REVENUE ACCOUNT,G410,AGENCY STAFF,06/04/2023,416505,1134.38,SELLICK PARTNERSHIP LTD,106780
NEWARK AND SHERWOOD DISTRICT COUNCIL,HOUSING REVENUE ACCOUNT,G410,AGENCY STAFF,06/04/2023,416592,1134.38,SELLICK PARTNERSHIP LTD,106780
NEWARK AND SHERWOOD DISTRICT COUNCIL,HOUSING REVENUE ACCOUNT,G410,AGENCY STAFF,28/04/2023,418234,1134.38,SELLICK PARTNERSHIP LTD,106780
NEWARK AND SHERWOOD DISTRICT COUNCIL,HOUSING REVENUE ACCOUNT,G410,AGENCY STAFF,30/06/2023,422139,1134.38,SELLICK PARTNERSHIP LTD,106780
NEWARK AND SHERWOOD DISTRICT COUNCIL,HOUSING REVENUE ACCOUNT,G410,AGENCY STAFF,30/06/2023,422824,1134.38,SELLICK PARTNERSHIP LTD,106780
NEWARK AND SHERWOOD DISTRICT COUNCIL,HOUSING REVENUE ACCOUNT,G410,AGENCY STAFF,30/06/2023,423336,1134.38,SELLICK PARTNERSHIP LTD,106780
NEWARK AND SHERWOOD DISTRICT COUNCIL,HOUSING REVENUE ACCOUNT,G410,CONTRACTUAL SERVICES,06/04/2023,416841,1133.62,METRO ROD LTD,106655
NEWARK AND SHERWOOD DISTRICT COUNCIL,POLICY & FINANCE,G450,POSTAGES,12/05/2023,419172,1133.39,ROYAL MAIL GROUP LTD,100469
NEWARK AND SHERWOOD DISTRICT COUNCIL,LEISURE & ENVIRONMENT,G440,MATERIALS,28/04/2023,418209,1131.34,DENNIS EAGLE LTD,100797
NEWARK AND SHERWOOD DISTRICT COUNCIL,CAPITAL,G997,CONSTRUCTION,12/05/2023,416856,1131,MAGPIE SECURITY LTD,102002
NEWARK AND SHERWOOD DISTRICT COUNCIL,HOUSING REVENUE ACCOUNT,G410,AGENCY STAFF,28/04/2023,418086,1130.4,HAYS SPECIALIST RECRUITMENT LTD,101794
NEWARK AND SHERWOOD DISTRICT COUNCIL,POLICY & FINANCE,G450,ELECTRICITY,12/05/2023,418597,1128.41,EDF ENERGY 1 LTD,101140
NEWARK AND SHERWOOD DISTRICT COUNCIL,LEISURE & ENVIRONMENT,G440,PAYMENTS TO NOTTS COUNTY CNCL,19/05/2023,419567,1128.31,LOWDHAM VILLAGE HALL COMMITTEE,101612
NEWARK AND SHERWOOD DISTRICT COUNCIL,POLICY & FINANCE,G450,ELECTRICITY,12/05/2023,419325,1126.35,EDF ENERGY 1 LTD,101140
NEWARK AND SHERWOOD DISTRICT COUNCIL,POLICY & FINANCE,G450,ELECTRICITY,06/04/2023,416313,1125.05,EDF ENERGY 1 LTD,101140
NEWARK AND SHERWOOD DISTRICT COUNCIL,HOUSING REVENUE ACCOUNT,G410,LIFT MAINTENANCE,16/06/2023,422207,1125,DELTRON LIFTS LTD,107882
NEWARK AND SHERWOOD DISTRICT COUNCIL,HOUSING REVENUE ACCOUNT,G410,WASHING MACHINE AND DRIER,17/04/2023,417396,1123.16,SIEMENS FINANCIAL SERVICES LTD,100502
NEWARK AND SHERWOOD DISTRICT COUNCIL,HOUSING REVENUE ACCOUNT,G410,WASHING MACHINE AND DRIER,22/05/2023,420340,1123.16,SIEMENS FINANCIAL SERVICES LTD,100502
NEWARK AND SHERWOOD DISTRICT COUNCIL,HOUSING REVENUE ACCOUNT,G410,WASHING MACHINE AND DRIER,17/06/2023,422716,1123.16,SIEMENS FINANCIAL SERVICES LTD,100502
NEWARK AND SHERWOOD DISTRICT COUNCIL,CAPITAL,G997,CONSTRUCTION,23/06/2023,423274,1120,QUANTUM BILLING - INPROVA GROUP,106944
NEWARK AND SHERWOOD DISTRICT COUNCIL,HOUSING REVENUE ACCOUNT,G410,FURNITURE AND FITTINGS,19/05/2023,418723,1113.2,ALPHA FURNISHINGS LTD,107475
NEWARK AND SHERWOOD DISTRICT COUNCIL,HOUSING REVENUE ACCOUNT,G410,CONTRACTUAL SERVICES,12/05/2023,419310,1111.74,METRO ROD LTD,106655
NEWARK AND SHERWOOD DISTRICT COUNCIL,ECONOMIC DEVELOPMENT,G420,POSTAGES,09/06/2023,421631,1102.18,QUADIENT FINANCE UK LIMITED,106774
NEWARK AND SHERWOOD DISTRICT COUNCIL,LEISURE & ENVIRONMENT,G440,GENERAL GRANTS,12/05/2023,419184,1100,E GILL & SONS LTD,104653
NEWARK AND SHERWOOD DISTRICT COUNCIL,ECONOMIC DEVELOPMENT,G420,PROFESSIONAL SERVICES,19/05/2023,419962,1100,FOXSTONE FORESTRY LTD,106901
NEWARK AND SHERWOOD DISTRICT COUNCIL,POLICY & FINANCE,G450,ELECTION EXPENSES,19/05/2023,419799,1092,PRINT IMAGE NETWORK LTD,100431
NEWARK AND SHERWOOD DISTRICT COUNCIL,LEISURE & ENVIRONMENT,G440,AGENCY STAFF,06/04/2023,416911,1091.5,AMBITIONS PERSONNEL LTD,105324
NEWARK AND SHERWOOD DISTRICT COUNCIL,POLICY & FINANCE,G450,INTERNAL TRAINING,12/05/2023,419407,1090,HEALTH & SAFETY EXECUTIVE,107911
NEWARK AND SHERWOOD DISTRICT COUNCIL,HOUSING REVENUE ACCOUNT,G410,MATERIALS,02/06/2023,421155,1089.05,PTS - CITY PLUMBING SUPPLIES LTD,107157
NEWARK AND SHERWOOD DISTRICT COUNCIL,HOUSING REVENUE ACCOUNT,G410,CONTRACTUAL SERVICES,23/06/2023,403566,1088,FAAC ENTRANCE SOLUTIONS UK LTD,107499
NEWARK AND SHERWOOD DISTRICT COUNCIL,POLICY & FINANCE,G450,STATIONERY,12/05/2023,419171,1085.65,LYRECO UK LIMITED,101689
NEWARK AND SHERWOOD DISTRICT COUNCIL,HOUSING REVENUE ACCOUNT,G410,CONTRACTUAL SERVICES,30/06/2023,423436,1079.36,METRO ROD LTD,106655
NEWARK AND SHERWOOD DISTRICT COUNCIL,ECONOMIC DEVELOPMENT,G420,CONTRACTUAL SERVICES,30/06/2023,423359,1078,WEED MANAGEMENT LTD,107569
NEWARK AND SHERWOOD DISTRICT COUNCIL,HOUSING REVENUE ACCOUNT,G410,CONTRACTUAL SERVICES,16/06/2023,422257,1074.26,J WRIGHT ROOFING LTD,105753
NEWARK AND SHERWOOD DISTRICT COUNCIL,ECONOMIC DEVELOPMENT,G420,CONTRACTUAL SERVICES,16/06/2023,422178,1070,FREEDOM FIRE AND SECURITY MAINTENANCE LTD,107889
NEWARK AND SHERWOOD DISTRICT COUNCIL,HOUSING REVENUE ACCOUNT,G410,AGENCY STAFF,09/06/2023,420398,1066.31,SELLICK PARTNERSHIP LTD,106780
NEWARK AND SHERWOOD DISTRICT COUNCIL,HOUSING REVENUE ACCOUNT,G410,AGENCY STAFF,16/06/2023,421002,1066.31,SELLICK PARTNERSHIP LTD,106780
NEWARK AND SHERWOOD DISTRICT COUNCIL,POLICY & FINANCE,G450,ELECTRICITY,06/04/2023,416304,1052.61,EDF ENERGY 1 LTD,101140
NEWARK AND SHERWOOD DISTRICT COUNCIL,ECONOMIC DEVELOPMENT,G420,CONTRACTUAL SERVICES,26/05/2023,420448,1049.13,CRYSTAL CLEAN SERVICE LTD,106324
NEWARK AND SHERWOOD DISTRICT COUNCIL,ECONOMIC DEVELOPMENT,G420,ELECTRICITY,23/06/2023,422752,1049.11,EDF ENERGY 1 LTD,101140
NEWARK AND SHERWOOD DISTRICT COUNCIL,CAPITAL,G997,CONSTRUCTION,05/05/2023,412492,1045,COOPER PLUMBING,100110
NEWARK AND SHERWOOD DISTRICT COUNCIL,HOUSING REVENUE ACCOUNT,G410,CONTRACTUAL SERVICES,12/05/2023,419281,1044.62,J WRIGHT ROOFING LTD,105753
NEWARK AND SHERWOOD DISTRICT COUNCIL,POLICY & FINANCE,G450,PROFESSIONAL SERVICES,21/04/2023,417568,1043.63,AMBITIONS PERSONNEL LTD,105324
NEWARK AND SHERWOOD DISTRICT COUNCIL,POLICY & FINANCE,G450,PROFESSIONAL SERVICES,19/05/2023,419650,1043.63,AMBITIONS PERSONNEL LTD,105324
NEWARK AND SHERWOOD DISTRICT COUNCIL,POLICY & FINANCE,G450,CYBER SECURITY,15/06/2023,422211,1042.23,MICROSOFT AZURE,107629
NEWARK AND SHERWOOD DISTRICT COUNCIL,HOUSING REVENUE ACCOUNT,G410,CONTRACTUAL SERVICES,19/05/2023,419741,1035.49,T & S HEATING LTD,105748
NEWARK AND SHERWOOD DISTRICT COUNCIL,LEISURE & ENVIRONMENT,G440,GENERAL GRANTS,16/06/2023,422345,1033,AW LYMN LTD,107229
NEWARK AND SHERWOOD DISTRICT COUNCIL,HOUSING REVENUE ACCOUNT,G410,SEWERAGE AND WATER CHARGES,05/05/2023,418617,1032.17,WATER-PLUS,105929
NEWARK AND SHERWOOD DISTRICT COUNCIL,LEISURE & ENVIRONMENT,G440,AGENCY STAFF,09/06/2023,421039,1030.8,AMBITIONS PERSONNEL LTD,105324
NEWARK AND SHERWOOD DISTRICT COUNCIL,HOUSING REVENUE ACCOUNT,G410,MATERIALS,16/06/2023,422447,1028.6,PTS - CITY PLUMBING SUPPLIES LTD,107157
NEWARK AND SHERWOOD DISTRICT COUNCIL,HOUSING REVENUE ACCOUNT,G410,CONTRACTUAL SERVICES,23/06/2023,423033,1023.12,METRO ROD LTD,106655
NEWARK AND SHERWOOD DISTRICT COUNCIL,POLICY & FINANCE,G450,ELECTRICITY,06/04/2023,416311,1022.64,EDF ENERGY 1 LTD,101140
NEWARK AND SHERWOOD DISTRICT COUNCIL,POLICY & FINANCE,G450,CYBER SECURITY,11/05/2023,419229,1021.04,MICROSOFT AZURE,107629
NEWARK AND SHERWOOD DISTRICT COUNCIL,POLICY & FINANCE,G450,AGENCY STAFF,30/06/2023,423335,1020.63,SELLICK PARTNERSHIP LTD,106780
NEWARK AND SHERWOOD DISTRICT COUNCIL,ECONOMIC DEVELOPMENT,G420,REPAIRS AND MAINTENANCE,09/06/2023,421764,1020,SNAP ACCESS & SECURITY,107912
NEWARK AND SHERWOOD DISTRICT COUNCIL,POLICY & FINANCE,G450,ADVERTISING,19/05/2023,419601,1016.96,TMP UK LTD,102103
NEWARK AND SHERWOOD DISTRICT COUNCIL,POLICY & FINANCE,G450,CYBER SECURITY,25/05/2023,420513,1015.58,MICROSOFT AZURE,107629
NEWARK AND SHERWOOD DISTRICT COUNCIL,ECONOMIC DEVELOPMENT,G420,PROF SERV - EXTERNAL CONTRACTS,19/05/2023,419972,1015,ROBERT MARSHALL & SONS LTD,105315
NEWARK AND SHERWOOD DISTRICT COUNCIL,HOUSING REVENUE ACCOUNT,G410,AGENCY STAFF,28/04/2023,417979,1013.38,SELLICK PARTNERSHIP LTD,106780
NEWARK AND SHERWOOD DISTRICT COUNCIL,HOUSING REVENUE ACCOUNT,G410,SKIP HIRE,09/06/2023,421840,1011.7,VEOLIA ENVIRONMENTAL SERVICES (UK) LTD,106880
NEWARK AND SHERWOOD DISTRICT COUNCIL,HOUSING REVENUE ACCOUNT,G410,SEWERAGE AND WATER CHARGES,28/04/2023,418243,1001.63,WATER-PLUS,105929
NEWARK AND SHERWOOD DISTRICT COUNCIL,LEISURE & ENVIRONMENT,G440,PROMOTION OF EVENTS,28/04/2023,418344,1000,BRIDGE COMMUNITY CENTRE ASSOCIATION,106117
NEWARK AND SHERWOOD DISTRICT COUNCIL,ECONOMIC DEVELOPMENT,G420,PROFESSIONAL SERVICES,16/06/2023,421781,1000,EDDISONS,107913
NEWARK AND SHERWOOD DISTRICT COUNCIL,CAPITAL,G997,CONSTRUCTION,02/06/2023,421042,1000,J C SURFACING LTD,107145
NEWARK AND SHERWOOD DISTRICT COUNCIL,HOMES & COMMUNITIES,G430,MISCELLANEOUS EXPENSES,19/05/2023,419924,1000,REDACTED PERSONAL DATA,107915
NEWARK AND SHERWOOD DISTRICT COUNCIL,POLICY & FINANCE,G450,CONTRACTUAL SERVICES,20/06/2023,422798,1000,REDACTED PERSONAL DATA,107890
NEWARK AND SHERWOOD DISTRICT COUNCIL,ECONOMIC DEVELOPMENT,G420,PROMOTION OF EVENTS,21/04/2023,417471,1000,NOTTINGHAMSHIRE IN FOCUS LTD,103313
NEWARK AND SHERWOOD DISTRICT COUNCIL,HOMES & COMMUNITIES,G430,MISCELLANEOUS EXPENSES,05/05/2023,418915,1000,REDACTED PERSONAL DATA,107914
NEWARK AND SHERWOOD DISTRICT COUNCIL,HOUSING REVENUE ACCOUNT,G410,AGENCY STAFF,30/06/2023,421551,998.25,SELLICK PARTNERSHIP LTD,106780
NEWARK AND SHERWOOD DISTRICT COUNCIL,HOUSING REVENUE ACCOUNT,G410,CONTRACTUAL SERVICES,19/05/2023,419733,997.75,T & S HEATING LTD,105748
NEWARK AND SHERWOOD DISTRICT COUNCIL,POLICY & FINANCE,G450,LEGAL FEES OUTSOURCED,06/04/2023,416670,997.5,ANTHONY COLLINS SOLICITORS LLP,100014
NEWARK AND SHERWOOD DISTRICT COUNCIL,HOMES & COMMUNITIES,G430,MISCELLANEOUS EXPENSES,06/04/2023,416990,995.97,DUKERIES THIRD AGE GROUP,107492
NEWARK AND SHERWOOD DISTRICT COUNCIL,POLICY & FINANCE,G450,REPAIRS AND MAINTENANCE,06/04/2023,416974,995,GPR CONSTRUCTION LTD,100190
NEWARK AND SHERWOOD DISTRICT COUNCIL,HOUSING REVENUE ACCOUNT,G410,MATERIALS,28/04/2023,418200,992.76,PTS - CITY PLUMBING SUPPLIES LTD,107157
NEWARK AND SHERWOOD DISTRICT COUNCIL,POLICY & FINANCE,G450,PROFESSIONAL SERVICES,30/06/2023,423283,990,CUBIC APPLE,107917
NEWARK AND SHERWOOD DISTRICT COUNCIL,POLICY & FINANCE,G450,INTERNAL TRAINING,09/06/2023,421069,990,INSTITUTE OF LICENSING (EVENTS) LTD,102645
NEWARK AND SHERWOOD DISTRICT COUNCIL,POLICY & FINANCE,G450,INTERNAL TRAINING,05/05/2023,418880,990,STEVE ROBERTS THERAPY AND TRAINING,101951
NEWARK AND SHERWOOD DISTRICT COUNCIL,CAPITAL,G997,CONSTRUCTION,16/06/2023,422460,989,NEIL SHACKLOCK PLUMBING AND HEATING  LTD,104679
NEWARK AND SHERWOOD DISTRICT COUNCIL,ECONOMIC DEVELOPMENT,G420,CONTRACTUAL SERVICES,28/04/2023,418320,988.75,CRYSTAL CLEAN SERVICE LTD,106324
NEWARK AND SHERWOOD DISTRICT COUNCIL,ECONOMIC DEVELOPMENT,G420,REPAIRS AND MAINTENANCE,28/04/2023,417965,985,ROBERT MARSHALL & SONS LTD,105315
NEWARK AND SHERWOOD DISTRICT COUNCIL,HOUSING REVENUE ACCOUNT,G410,MATERIALS,12/05/2023,419251,984.16,PTS - CITY PLUMBING SUPPLIES LTD,107157
NEWARK AND SHERWOOD DISTRICT COUNCIL,CAPITAL,G997,CONSTRUCTION,02/06/2023,421044,983.96,G RYDER & CO LTD,101512
NEWARK AND SHERWOOD DISTRICT COUNCIL,HOMES & COMMUNITIES,G430,MISCELLANEOUS EXPENSES,12/05/2023,419353,979.81,RHP COLTS FC,107918
NEWARK AND SHERWOOD DISTRICT COUNCIL,ECONOMIC DEVELOPMENT,G420,STAFF ADVERTISING,16/06/2023,422344,975,GUARDIAN NEWS & MEDIA LTD,106151
NEWARK AND SHERWOOD DISTRICT COUNCIL,CAPITAL,G997,CONSTRUCTION,28/04/2023,418021,975,WILLIAM SAUNDERS PARTNERSHIP LLP,107133
NEWARK AND SHERWOOD DISTRICT COUNCIL,HOUSING REVENUE ACCOUNT,G410,AGENCY STAFF,30/06/2023,422775,968,SELLICK PARTNERSHIP LTD,106780
NEWARK AND SHERWOOD DISTRICT COUNCIL,HOUSING REVENUE ACCOUNT,G410,CONTRACTUAL SERVICES,09/06/2023,421694,965.51,T & S HEATING LTD,105748
NEWARK AND SHERWOOD DISTRICT COUNCIL,HOUSING REVENUE ACCOUNT,G410,MATERIALS,06/04/2023,416635,961.85,PTS - CITY PLUMBING SUPPLIES LTD,107157
NEWARK AND SHERWOOD DISTRICT COUNCIL,ECONOMIC DEVELOPMENT,G420,ELECTRICITY,05/05/2023,418656,960.05,NPOWER BUSINESS SOLUTIONS - ELECTRIC,107725
NEWARK AND SHERWOOD DISTRICT COUNCIL,HOUSING REVENUE ACCOUNT,G410,CONTRACTUAL SERVICES,19/05/2023,419750,958.88,DCR ELECTRICAL LTD,101799
NEWARK AND SHERWOOD DISTRICT COUNCIL,ECONOMIC DEVELOPMENT,G420,GAS,05/05/2023,418588,950.59,TOTAL ENERGIES GAS & POWER LTD,107289
NEWARK AND SHERWOOD DISTRICT COUNCIL,ECONOMIC DEVELOPMENT,G420,PROMOTION OF EVENTS,30/06/2023,423566,950,KEMPS PUBLISHING LTD,104715
NEWARK AND SHERWOOD DISTRICT COUNCIL,POLICY & FINANCE,G450,REPAIRS AND MAINTENANCE,06/04/2023,416552,950,MITIE TF MANAGEMENT LTD,107698
NEWARK AND SHERWOOD DISTRICT COUNCIL,POLICY & FINANCE,G450,ADVERTISING,09/06/2023,421243,950,PROSPECTUS LTD,107876
NEWARK AND SHERWOOD DISTRICT COUNCIL,POLICY & FINANCE,G450,PROFESSIONAL SERVICES,21/04/2023,417569,947.16,AMBITIONS PERSONNEL LTD,105324
NEWARK AND SHERWOOD DISTRICT COUNCIL,HOUSING REVENUE ACCOUNT,G410,APPLIANCE SERVICING,06/04/2023,416514,946.22,MORGAN LAMBERT LTD,106838
NEWARK AND SHERWOOD DISTRICT COUNCIL,ECONOMIC DEVELOPMENT,G420,GAS,06/04/2023,416333,941.19,TOTAL ENERGIES GAS & POWER LTD,107289
NEWARK AND SHERWOOD DISTRICT COUNCIL,ECONOMIC DEVELOPMENT,G420,COURSE FEES,23/06/2023,422745,940,INSTITUTE OF ECONOMIC DEVELOPMENT,107649
NEWARK AND SHERWOOD DISTRICT COUNCIL,HOUSING REVENUE ACCOUNT,G410,AGENCY STAFF,06/04/2023,416593,938.16,SELLICK PARTNERSHIP LTD,106780
NEWARK AND SHERWOOD DISTRICT COUNCIL,POLICY & FINANCE,G450,POSTAGES,28/04/2023,417840,937.17,ROYAL MAIL GROUP LTD,100469
NEWARK AND SHERWOOD DISTRICT COUNCIL,ECONOMIC DEVELOPMENT,G420,CONTRACTUAL SERVICES,06/04/2023,416935,936,METRIC GROUP LTD,100306
NEWARK AND SHERWOOD DISTRICT COUNCIL,HOUSING REVENUE ACCOUNT,G410,MATERIALS,02/06/2023,421149,934.78,PTS - CITY PLUMBING SUPPLIES LTD,107157
NEWARK AND SHERWOOD DISTRICT COUNCIL,POLICY & FINANCE,G450,REPAIRS AND MAINTENANCE,16/06/2023,422186,930,FREEDOM FIRE AND SECURITY MAINTENANCE LTD,107889
NEWARK AND SHERWOOD DISTRICT COUNCIL,ECONOMIC DEVELOPMENT,G420,OTHER EQUIPMENT AND TOOLS,16/06/2023,422192,928,SOUND OF MUSIC LIMITED,107920
NEWARK AND SHERWOOD DISTRICT COUNCIL,HOUSING REVENUE ACCOUNT,G410,CONTRACTUAL SERVICES,16/06/2023,422304,925.2,H & H FLOORING LIMITED,106826
NEWARK AND SHERWOOD DISTRICT COUNCIL,HOUSING REVENUE ACCOUNT,G410,AGENCY STAFF,06/04/2023,416503,925,SELLICK PARTNERSHIP LTD,106780
NEWARK AND SHERWOOD DISTRICT COUNCIL,HOUSING REVENUE ACCOUNT,G410,MATERIALS,05/05/2023,418771,924.88,PTS - CITY PLUMBING SUPPLIES LTD,107157
NEWARK AND SHERWOOD DISTRICT COUNCIL,HOUSING REVENUE ACCOUNT,G410,AGENCY STAFF,06/04/2023,414852,910.08,SELLICK PARTNERSHIP LTD,106780
NEWARK AND SHERWOOD DISTRICT COUNCIL,POLICY & FINANCE,G450,REPAIRS AND MAINTENANCE,23/06/2023,422181,910,FREEDOM FIRE AND SECURITY MAINTENANCE LTD,107889
NEWARK AND SHERWOOD DISTRICT COUNCIL,LEISURE & ENVIRONMENT,G440,AGENCY STAFF,14/04/2023,417337,908.6,AMBITIONS PERSONNEL LTD,105324
NEWARK AND SHERWOOD DISTRICT COUNCIL,HOUSING REVENUE ACCOUNT,G410,AGENCY STAFF,30/06/2023,422138,908.16,SELLICK PARTNERSHIP LTD,106780
NEWARK AND SHERWOOD DISTRICT COUNCIL,HOUSING REVENUE ACCOUNT,G410,AGENCY STAFF,28/04/2023,417977,907.5,SELLICK PARTNERSHIP LTD,106780
NEWARK AND SHERWOOD DISTRICT COUNCIL,HOUSING REVENUE ACCOUNT,G410,AGENCY STAFF,28/04/2023,418160,907.5,SELLICK PARTNERSHIP LTD,106780
NEWARK AND SHERWOOD DISTRICT COUNCIL,HOUSING REVENUE ACCOUNT,G410,AGENCY STAFF,19/05/2023,419606,907.5,SELLICK PARTNERSHIP LTD,106780
NEWARK AND SHERWOOD DISTRICT COUNCIL,HOUSING REVENUE ACCOUNT,G410,CONTRACTUAL SERVICES,19/05/2023,419943,906.3,BELL GROUP UK,100039
NEWARK AND SHERWOOD DISTRICT COUNCIL,ECONOMIC DEVELOPMENT,G420,CLEANING CONTRACT,06/04/2023,416923,904.84,ATLAS FACILITIES MANAGEMENT LIMITED,106088
NEWARK AND SHERWOOD DISTRICT COUNCIL,POLICY & FINANCE,G450,CLEANING CONTRACT,06/04/2023,416923,904.84,ATLAS FACILITIES MANAGEMENT LIMITED,106088
NEWARK AND SHERWOOD DISTRICT COUNCIL,HOUSING REVENUE ACCOUNT,G410,CONTRACTUAL SERVICES,28/04/2023,418068,900.16,J WRIGHT ROOFING LTD,105753
NEWARK AND SHERWOOD DISTRICT COUNCIL,HOUSING REVENUE ACCOUNT,G410,CONTRACTUAL SERVICES,28/04/2023,418091,900,BRAYS PIPELINES LTD,105470
NEWARK AND SHERWOOD DISTRICT COUNCIL,CAPITAL,G997,CONSTRUCTION,30/06/2023,423320,900,BSP CONSULTING,104667
NEWARK AND SHERWOOD DISTRICT COUNCIL,HOUSING REVENUE ACCOUNT,G410,CONTRACTUAL SERVICES,23/06/2023,423062,900,METRO ROD LTD,106655
NEWARK AND SHERWOOD DISTRICT COUNCIL,HOMES & COMMUNITIES,G430,CONTRACTUAL SERVICES,21/04/2023,417543,900,NEWARK ORCHARD AREA SPECIAL SCHOOL,107922
NEWARK AND SHERWOOD DISTRICT COUNCIL,POLICY & FINANCE,G450,CTAX NSDC PARISH PRECEPT PYMTS,08/04/2023,417245,900,PERLETHORPE-CUM-BUDBY PARISH MEETING,100424
NEWARK AND SHERWOOD DISTRICT COUNCIL,HOUSING REVENUE ACCOUNT,G410,AGENCY STAFF,30/06/2023,423332,900,SELLICK PARTNERSHIP LTD,106780
NEWARK AND SHERWOOD DISTRICT COUNCIL,HOUSING REVENUE ACCOUNT,G410,CONTRACTUAL SERVICES,28/04/2023,418099,895.87,T & S HEATING LTD,105748
NEWARK AND SHERWOOD DISTRICT COUNCIL,POLICY & FINANCE,G450,LEGAL FEES,20/06/2023,422786,895,IHCS LTD,106095
NEWARK AND SHERWOOD DISTRICT COUNCIL,HOUSING REVENUE ACCOUNT,G410,ELECTRICITY,23/06/2023,422896,894.7,EON NEXT ENERGY LIMITED,107497
NEWARK AND SHERWOOD DISTRICT COUNCIL,LEISURE & ENVIRONMENT,G440,MATERIALS,06/04/2023,417000,893.87,DENNIS EAGLE LTD,100797
NEWARK AND SHERWOOD DISTRICT COUNCIL,ECONOMIC DEVELOPMENT,G420,GAS,06/04/2023,416327,893.62,TOTAL ENERGIES GAS & POWER LTD,107289
NEWARK AND SHERWOOD DISTRICT COUNCIL,POLICY & FINANCE,G450,CTAX NSDC PARISH PRECEPT PYMTS,08/04/2023,417244,893.5,NORTH CLIFTON PARISH MEETING,105995
NEWARK AND SHERWOOD DISTRICT COUNCIL,HOUSING REVENUE ACCOUNT,G410,CONTRACTUAL SERVICES,09/06/2023,421693,892.57,T & S HEATING LTD,105748
NEWARK AND SHERWOOD DISTRICT COUNCIL,HOUSING REVENUE ACCOUNT,G410,AGENCY STAFF,09/06/2023,420400,892.08,SELLICK PARTNERSHIP LTD,106780
NEWARK AND SHERWOOD DISTRICT COUNCIL,HOUSING REVENUE ACCOUNT,G410,SEWERAGE AND WATER CHARGES,05/05/2023,418615,890.28,WATER-PLUS,105929
NEWARK AND SHERWOOD DISTRICT COUNCIL,HOUSING REVENUE ACCOUNT,G410,AGENCY STAFF,09/06/2023,419610,889.96,SELLICK PARTNERSHIP LTD,106780
NEWARK AND SHERWOOD DISTRICT COUNCIL,HOUSING REVENUE ACCOUNT,G410,AGENCY STAFF,28/04/2023,418235,886.08,SELLICK PARTNERSHIP LTD,106780
NEWARK AND SHERWOOD DISTRICT COUNCIL,HOUSING REVENUE ACCOUNT,G410,AGENCY STAFF,16/06/2023,421001,882.24,SELLICK PARTNERSHIP LTD,106780
NEWARK AND SHERWOOD DISTRICT COUNCIL,HOUSING REVENUE ACCOUNT,G410,CONTRACTUAL SERVICES,02/06/2023,421110,881.73,PHOENIX GAS SERVICES LTD,107576
NEWARK AND SHERWOOD DISTRICT COUNCIL,HOUSING REVENUE ACCOUNT,G410,AGENCY STAFF,05/05/2023,418653,880.08,SELLICK PARTNERSHIP LTD,106780
NEWARK AND SHERWOOD DISTRICT COUNCIL,ECONOMIC DEVELOPMENT,G420,PROFESSIONAL SERVICES,06/04/2023,414234,875,INFLUENCE ENVIRONMENTAL LTD,105417
NEWARK AND SHERWOOD DISTRICT COUNCIL,POLICY & FINANCE,G450,OTHER EQUIPMENT AND TOOLS,09/06/2023,421543,875,TEST METER GROUP LTD,107923
NEWARK AND SHERWOOD DISTRICT COUNCIL,HOUSING REVENUE ACCOUNT,G410,CONTRACTUAL SERVICES,16/06/2023,422263,872,CHEMICAL DRY CENTRAL,100896
NEWARK AND SHERWOOD DISTRICT COUNCIL,POLICY & FINANCE,G450,POSTAGES,16/06/2023,422150,870.78,ROYAL MAIL GROUP LTD,100469
NEWARK AND SHERWOOD DISTRICT COUNCIL,HOUSING REVENUE ACCOUNT,G410,TELEPHONES,24/04/2023,417782,870.66,DIGITAL SPACE GROUP LTD,107235
NEWARK AND SHERWOOD DISTRICT COUNCIL,HOUSING REVENUE ACCOUNT,G410,TELEPHONES,22/05/2023,420338,870.66,DIGITAL SPACE GROUP LTD,107235
NEWARK AND SHERWOOD DISTRICT COUNCIL,HOUSING REVENUE ACCOUNT,G410,TELEPHONES,17/06/2023,422695,870.66,DIGITAL SPACE GROUP LTD,107235
NEWARK AND SHERWOOD DISTRICT COUNCIL,HOUSING REVENUE ACCOUNT,G410,AGENCY STAFF,12/05/2023,419273,870,SELLICK PARTNERSHIP LTD,106780
NEWARK AND SHERWOOD DISTRICT COUNCIL,ECONOMIC DEVELOPMENT,G420,ELECTRICITY,21/04/2023,417482,866.15,NPOWER BUSINESS SOLUTIONS - ELECTRIC,107725
NEWARK AND SHERWOOD DISTRICT COUNCIL,HOUSING REVENUE ACCOUNT,G410,STAIRLIFTS,28/04/2023,418176,866,CALANDINE LIFTS LTD,100068
NEWARK AND SHERWOOD DISTRICT COUNCIL,POLICY & FINANCE,G450,REFRESHMENTS AND CATERING,02/06/2023,421212,861.71,LYRECO UK LIMITED,101689
NEWARK AND SHERWOOD DISTRICT COUNCIL,ECONOMIC DEVELOPMENT,G420,CONTRACTUAL SERVICES,30/06/2023,423353,860,FREEDOM FIRE AND SECURITY MAINTENANCE LTD,107889
NEWARK AND SHERWOOD DISTRICT COUNCIL,POLICY & FINANCE,G450,POSTAGES,21/04/2023,417533,858.64,PRINT IMAGE FACILITIES LLP,101902
NEWARK AND SHERWOOD DISTRICT COUNCIL,ECONOMIC DEVELOPMENT,G420,CONTRACTUAL SERVICES,06/04/2023,416524,857.32,LOOKPRO.CO,102808
NEWARK AND SHERWOOD DISTRICT COUNCIL,POLICY & FINANCE,G450,POSTAGES,09/06/2023,421641,856.64,PRINT IMAGE FACILITIES LLP,101902
NEWARK AND SHERWOOD DISTRICT COUNCIL,CAPITAL,G997,PROFESSIONAL SERVICES,09/06/2023,421782,855.4,FREETHS LLP,106214
NEWARK AND SHERWOOD DISTRICT COUNCIL,POLICY & FINANCE,G450,CHAUFFEUR SERVICES,06/04/2023,416536,852.41,AURA JOURNEYS LTD,106614
NEWARK AND SHERWOOD DISTRICT COUNCIL,HOUSING REVENUE ACCOUNT,G410,MATERIALS,06/04/2023,416634,851.05,PTS - CITY PLUMBING SUPPLIES LTD,107157
NEWARK AND SHERWOOD DISTRICT COUNCIL,ECONOMIC DEVELOPMENT,G420,PROFESSIONAL SERVICES,19/05/2023,419968,850,FOXSTONE FORESTRY LTD,106901
NEWARK AND SHERWOOD DISTRICT COUNCIL,ECONOMIC DEVELOPMENT,G420,PROFESSIONAL SERVICES,23/06/2023,423053,850,FOXSTONE FORESTRY LTD,106901
NEWARK AND SHERWOOD DISTRICT COUNCIL,ECONOMIC DEVELOPMENT,G420,PROF SERV - EXTERNAL CONTRACTS,23/06/2023,423051,850,FOXSTONE FORESTRY LTD,106901
NEWARK AND SHERWOOD DISTRICT COUNCIL,HOUSING REVENUE ACCOUNT,G410,CLEANING MATERIALS,26/04/2023,417938,849.58,QUANTUM BILLING - INPROVA GROUP,106944
NEWARK AND SHERWOOD DISTRICT COUNCIL,HOUSING REVENUE ACCOUNT,G410,CONTRACTUAL SERVICES,23/06/2023,422923,845,PORTLAND SURVEYS,106860
NEWARK AND SHERWOOD DISTRICT COUNCIL,LEISURE & ENVIRONMENT,G440,MATERIALS,21/04/2023,417539,844.45,NORMANTON SCREENPRINT,101097
NEWARK AND SHERWOOD DISTRICT COUNCIL,HOUSING REVENUE ACCOUNT,G410,MATERIALS,26/05/2023,420625,843.48,PTS - CITY PLUMBING SUPPLIES LTD,107157
NEWARK AND SHERWOOD DISTRICT COUNCIL,HOUSING REVENUE ACCOUNT,G410,DISTURBANCE ALLOWANCE,05/05/2023,418743,840,WILKO RETAIL LTD,105562
NEWARK AND SHERWOOD DISTRICT COUNCIL,ECONOMIC DEVELOPMENT,G420,ELECTRICITY,06/04/2023,416309,839.66,EDF ENERGY 1 LTD,101140
NEWARK AND SHERWOOD DISTRICT COUNCIL,LEISURE & ENVIRONMENT,G440,MATERIALS,06/04/2023,416542,835,SIGN IMAGE,106781
NEWARK AND SHERWOOD DISTRICT COUNCIL,CAPITAL,G997,CONSTRUCTION,28/04/2023,417968,833.75,BELL GROUP UK,100039
NEWARK AND SHERWOOD DISTRICT COUNCIL,CAPITAL,G997,CONSTRUCTION,09/06/2023,421658,828.75,WILLIAM SAUNDERS PARTNERSHIP LLP,107133
NEWARK AND SHERWOOD DISTRICT COUNCIL,HOUSING REVENUE ACCOUNT,G410,CONTRACTUAL SERVICES,09/06/2023,421700,827.8,T & S HEATING LTD,105748
NEWARK AND SHERWOOD DISTRICT COUNCIL,HOUSING REVENUE ACCOUNT,G410,CONTRACTUAL SERVICES,02/06/2023,421074,825,DANNY WHEATCROFT CARPET CLEANING,107908
NEWARK AND SHERWOOD DISTRICT COUNCIL,LEISURE & ENVIRONMENT,G440,MATERIALS,16/06/2023,422176,822.7,DENNIS EAGLE LTD,100797
NEWARK AND SHERWOOD DISTRICT COUNCIL,LEISURE & ENVIRONMENT,G440,MATERIALS,30/06/2023,423285,822.7,DENNIS EAGLE LTD,100797
NEWARK AND SHERWOOD DISTRICT COUNCIL,ECONOMIC DEVELOPMENT,G420,CONTRACTUAL SERVICES,05/05/2023,418724,821.06,KINGS ARMOURED SECURITY SERVICES LTD,107694
NEWARK AND SHERWOOD DISTRICT COUNCIL,HOUSING REVENUE ACCOUNT,G410,AGENCY STAFF,05/05/2023,418651,818.75,SELLICK PARTNERSHIP LTD,106780
NEWARK AND SHERWOOD DISTRICT COUNCIL,LEISURE & ENVIRONMENT,G440,MATERIALS,26/05/2023,420330,812.53,PARTIC MOTOR SPARES LTD,100421
NEWARK AND SHERWOOD DISTRICT COUNCIL,HOUSING REVENUE ACCOUNT,G410,CONTRACTUAL SERVICES,28/04/2023,417858,812.25,DCR ELECTRICAL LTD,101799
NEWARK AND SHERWOOD DISTRICT COUNCIL,POLICY & FINANCE,G450,CTAX NSDC PARISH PRECEPT PYMTS,08/04/2023,417253,806,BATHLEY PARISH COUNCIL,100035
NEWARK AND SHERWOOD DISTRICT COUNCIL,POLICY & FINANCE,G450,REPAIRS AND MAINTENANCE,06/04/2023,416550,805,MITIE TF MANAGEMENT LTD,107698
NEWARK AND SHERWOOD DISTRICT COUNCIL,LEISURE & ENVIRONMENT,G440,CONTRACTUAL SERVICES,06/04/2023,416530,803.4,HAMPSHIRE COUNTY COUNCIL,107927
NEWARK AND SHERWOOD DISTRICT COUNCIL,ECONOMIC DEVELOPMENT,G420,REFRESHMENTS AND CATERING,28/04/2023,417805,802.94,WESTMINSTER FOODSERVICE,107657
NEWARK AND SHERWOOD DISTRICT COUNCIL,CAPITAL,G997,CONSTRUCTION,28/04/2023,417969,802.5,B & H CONSTRUCTION (NEWARK) LTD,101788
NEWARK AND SHERWOOD DISTRICT COUNCIL,HOUSING REVENUE ACCOUNT,G410,AGENCY STAFF,28/04/2023,418231,801.63,SELLICK PARTNERSHIP LTD,106780
NEWARK AND SHERWOOD DISTRICT COUNCIL,HOMES & COMMUNITIES,G430,CONTRACTUAL SERVICES,21/04/2023,417548,800,ABBOTT TOXICOLOGY LTD,107929
NEWARK AND SHERWOOD DISTRICT COUNCIL,ECONOMIC DEVELOPMENT,G420,CONTRACTUAL SERVICES,21/04/2023,417424,800,CLIPSTONE ANGLING CLUB,100096
NEWARK AND SHERWOOD DISTRICT COUNCIL,ECONOMIC DEVELOPMENT,G420,CONTRACTUAL SERVICES,23/06/2023,422180,800,FREEDOM FIRE AND SECURITY MAINTENANCE LTD,107889
NEWARK AND SHERWOOD DISTRICT COUNCIL,LEISURE & ENVIRONMENT,G440,FLY TIPPING REMOVAL,16/06/2023,422354,800,L J ANDERSON FACILITIES LIMITED,107695
NEWARK AND SHERWOOD DISTRICT COUNCIL,LEISURE & ENVIRONMENT,G440,PARISH CNCLS AND VOL BODIES,09/06/2023,421648,800,MARSHALLS OF SUTTON ON TRENT LTD,100752
NEWARK AND SHERWOOD DISTRICT COUNCIL,HOUSING REVENUE ACCOUNT,G410,CONTRACTUAL SERVICES,30/06/2023,423036,798.53,J WRIGHT ROOFING LTD,105753
NEWARK AND SHERWOOD DISTRICT COUNCIL,ECONOMIC DEVELOPMENT,G420,REPAIRS AND MAINTENANCE,30/06/2023,422871,792,LINDUM GROUP LTD,100651
NEWARK AND SHERWOOD DISTRICT COUNCIL,HOUSING REVENUE ACCOUNT,G410,REFRESHMENTS AND CATERING,28/04/2023,417855,790.95,NOTTINGHAMSHIRE COUNTY COUNCIL,100393
NEWARK AND SHERWOOD DISTRICT COUNCIL,POLICY & FINANCE,G450,REPAIRS AND MAINTENANCE,23/06/2023,422177,790,FREEDOM FIRE AND SECURITY MAINTENANCE LTD,107889
NEWARK AND SHERWOOD DISTRICT COUNCIL,ECONOMIC DEVELOPMENT,G420,ELECTRICITY,16/06/2023,422298,785.11,EDF ENERGY 1 LTD,101140
NEWARK AND SHERWOOD DISTRICT COUNCIL,HOMES & COMMUNITIES,G430,PROFESSIONAL SERVICES,05/05/2023,418813,784.9,NORMANTON SCREENPRINT,101097
NEWARK AND SHERWOOD DISTRICT COUNCIL,LEISURE & ENVIRONMENT,G440,MATERIALS,21/04/2023,417439,784.02,DENNIS EAGLE LTD,100797
NEWARK AND SHERWOOD DISTRICT COUNCIL,POLICY & FINANCE,G450,INTERNAL TRAINING,23/06/2023,422893,780,ASSOCIATION OF INDEPENDENT MUSEUMS,105811
NEWARK AND SHERWOOD DISTRICT COUNCIL,HOUSING REVENUE ACCOUNT,G410,CONTRACTUAL SERVICES,28/04/2023,417861,780,PORTLAND SURVEYS,106860
NEWARK AND SHERWOOD DISTRICT COUNCIL,HOUSING REVENUE ACCOUNT,G410,MATERIALS,30/06/2023,423492,768.5,JWL (ARCHITECTURAL IRONMONGERS) LTD,106647
NEWARK AND SHERWOOD DISTRICT COUNCIL,ECONOMIC DEVELOPMENT,G420,CONTRACTUAL SERVICES,09/06/2023,421706,764.4,NEWARK SECURITY SERVICES LTD,100371
NEWARK AND SHERWOOD DISTRICT COUNCIL,HOUSING REVENUE ACCOUNT,G410,CONTRACTUAL SERVICES,16/06/2023,422503,762.2,J WRIGHT ROOFING LTD,105753
NEWARK AND SHERWOOD DISTRICT COUNCIL,HOUSING REVENUE ACCOUNT,G410,CONTRACTUAL SERVICES,28/04/2023,418078,759.85,METRO ROD LTD,106655
NEWARK AND SHERWOOD DISTRICT COUNCIL,POLICY & FINANCE,G450,CONTRACTUAL SERVICES,12/05/2023,419168,757.12,STOR-A-FILE LTD,107932
NEWARK AND SHERWOOD DISTRICT COUNCIL,HOUSING REVENUE ACCOUNT,G410,MATERIALS,16/06/2023,422444,754.76,PTS - CITY PLUMBING SUPPLIES LTD,107157
NEWARK AND SHERWOOD DISTRICT COUNCIL,HOUSING REVENUE ACCOUNT,G410,CONTRACTUAL SERVICES,12/05/2023,419290,754.41,T & S HEATING LTD,105748
NEWARK AND SHERWOOD DISTRICT COUNCIL,LEISURE & ENVIRONMENT,G440,MATERIALS,16/06/2023,422252,753.29,DENNIS EAGLE LTD,100797
NEWARK AND SHERWOOD DISTRICT COUNCIL,LEISURE & ENVIRONMENT,G440,CLOTHING AND UNIFORMS,09/06/2023,421533,751.91,LOOKPRO.CO,102808
NEWARK AND SHERWOOD DISTRICT COUNCIL,HOUSING REVENUE ACCOUNT,G410,MATERIALS,05/05/2023,418765,751.77,PTS - CITY PLUMBING SUPPLIES LTD,107157
NEWARK AND SHERWOOD DISTRICT COUNCIL,ECONOMIC DEVELOPMENT,G420,PROFESSIONAL SERVICES,28/04/2023,416203,750,BANKS LONG & CO,101223
NEWARK AND SHERWOOD DISTRICT COUNCIL,ECONOMIC DEVELOPMENT,G420,CONTRACTUAL SERVICES,30/06/2023,423573,750,FOXSTONE FORESTRY LTD,106901
NEWARK AND SHERWOOD DISTRICT COUNCIL,ECONOMIC DEVELOPMENT,G420,PROFESSIONAL SERVICES,26/05/2023,420693,750,FOXSTONE FORESTRY LTD,106901
NEWARK AND SHERWOOD DISTRICT COUNCIL,ECONOMIC DEVELOPMENT,G420,PROF SERV - EXTERNAL CONTRACTS,05/05/2023,418958,750,FOXSTONE FORESTRY LTD,106901
NEWARK AND SHERWOOD DISTRICT COUNCIL,ECONOMIC DEVELOPMENT,G420,CONTRACTUAL SERVICES,30/06/2023,422182,750,FREEDOM FIRE AND SECURITY MAINTENANCE LTD,107889
NEWARK AND SHERWOOD DISTRICT COUNCIL,ECONOMIC DEVELOPMENT,G420,CONTRACTUAL SERVICES,30/06/2023,423095,750,FREEDOM FIRE AND SECURITY MAINTENANCE LTD,107889
NEWARK AND SHERWOOD DISTRICT COUNCIL,POLICY & FINANCE,G450,CONTRACTUAL SERVICES,23/06/2023,422184,750,FREEDOM FIRE AND SECURITY MAINTENANCE LTD,107889
NEWARK AND SHERWOOD DISTRICT COUNCIL,CAPITAL,G997,CONSTRUCTION,30/06/2023,423513,750,IHCS LTD,106095
NEWARK AND SHERWOOD DISTRICT COUNCIL,ECONOMIC DEVELOPMENT,G420,EMPLOYMENT & SKILLS,06/04/2023,416714,750,NOTTINGHAMSHIRE IN FOCUS LTD,103313
NEWARK AND SHERWOOD DISTRICT COUNCIL,HOUSING REVENUE ACCOUNT,G410,CONTRACTUAL SERVICES,30/06/2023,423417,749.7,METRO ROD LTD,106655
NEWARK AND SHERWOOD DISTRICT COUNCIL,HOMES & COMMUNITIES,G430,CCTV OPERATION,19/05/2023,419807,747,BAYDALE CONTROL SYSTEMS LTD,106617
NEWARK AND SHERWOOD DISTRICT COUNCIL,HOUSING REVENUE ACCOUNT,G410,MATERIALS,06/04/2023,416642,744.87,PTS - CITY PLUMBING SUPPLIES LTD,107157
NEWARK AND SHERWOOD DISTRICT COUNCIL,HOUSING REVENUE ACCOUNT,G410,CONTRACTUAL SERVICES,12/05/2023,419291,744.46,T & S HEATING LTD,105748
NEWARK AND SHERWOOD DISTRICT COUNCIL,ECONOMIC DEVELOPMENT,G420,ELECTRICITY,06/04/2023,416467,740.11,EDF ENERGY 1 LTD,101140
NEWARK AND SHERWOOD DISTRICT COUNCIL,POLICY & FINANCE,G450,REPAIRS AND MAINTENANCE,16/06/2023,422188,740,FREEDOM FIRE AND SECURITY MAINTENANCE LTD,107889
NEWARK AND SHERWOOD DISTRICT COUNCIL,POLICY & FINANCE,G450,CONTRACTUAL SERVICES,16/06/2023,422294,738.75,COMPLIANCE GROUP ELECTRICAL LTD,107935
NEWARK AND SHERWOOD DISTRICT COUNCIL,ECONOMIC DEVELOPMENT,G420,CLEANING CONTRACT,06/04/2023,416898,737.82,JPC SERVICES (GLOSSOP) LTD,105208
NEWARK AND SHERWOOD DISTRICT COUNCIL,ECONOMIC DEVELOPMENT,G420,CONTRACTUAL SERVICES,05/05/2023,418767,737.82,JPC SERVICES (GLOSSOP) LTD,105208
NEWARK AND SHERWOOD DISTRICT COUNCIL,ECONOMIC DEVELOPMENT,G420,CONTRACTUAL SERVICES,05/05/2023,418769,737.82,JPC SERVICES (GLOSSOP) LTD,105208
NEWARK AND SHERWOOD DISTRICT COUNCIL,ECONOMIC DEVELOPMENT,G420,CONTRACTUAL SERVICES,02/06/2023,421294,737.82,JPC SERVICES (GLOSSOP) LTD,105208
NEWARK AND SHERWOOD DISTRICT COUNCIL,HOMES & COMMUNITIES,G430,PREVENTION FUND,12/05/2023,419355,736.1,REDACTED PERSONAL DATA,107936
NEWARK AND SHERWOOD DISTRICT COUNCIL,HOUSING REVENUE ACCOUNT,G410,MATERIALS,28/04/2023,417876,735.4,JWL (ARCHITECTURAL IRONMONGERS) LTD,106647
NEWARK AND SHERWOOD DISTRICT COUNCIL,CAPITAL,G997,CONSTRUCTION,19/05/2023,419761,735,RUSKIN TREE CONSULTANCY,106947
NEWARK AND SHERWOOD DISTRICT COUNCIL,HOUSING REVENUE ACCOUNT,G410,CONTRACTUAL SERVICES,28/04/2023,418205,732,HD ELECTRICAL SYSTEMS LTD,105293
NEWARK AND SHERWOOD DISTRICT COUNCIL,HOUSING REVENUE ACCOUNT,G410,CONTRACTUAL SERVICES,28/04/2023,418301,732,HD ELECTRICAL SYSTEMS LTD,105293
NEWARK AND SHERWOOD DISTRICT COUNCIL,HOUSING REVENUE ACCOUNT,G410,CONTRACTUAL SERVICES,05/05/2023,418822,732,HD ELECTRICAL SYSTEMS LTD,105293
NEWARK AND SHERWOOD DISTRICT COUNCIL,HOUSING REVENUE ACCOUNT,G410,CONTRACTUAL SERVICES,05/05/2023,418863,732,HD ELECTRICAL SYSTEMS LTD,105293
NEWARK AND SHERWOOD DISTRICT COUNCIL,LEISURE & ENVIRONMENT,G440,REPAIRS AND MAINTENANCE,30/06/2023,423338,729,LINDUM GROUP LTD,100651
NEWARK AND SHERWOOD DISTRICT COUNCIL,POLICY & FINANCE,G450,PROFESSIONAL SERVICES,09/06/2023,418644,727.5,ADVANCED BUSINESS SOFTWARE AND SOLUTIONS LTD,107666
NEWARK AND SHERWOOD DISTRICT COUNCIL,ECONOMIC DEVELOPMENT,G420,ARTISTS FEES,09/06/2023,421707,727.48,LMS WORLDWIDE LTD,105510
NEWARK AND SHERWOOD DISTRICT COUNCIL,LEISURE & ENVIRONMENT,G440,MATERIALS,16/06/2023,422116,726.26,DENNIS EAGLE LTD,100797
NEWARK AND SHERWOOD DISTRICT COUNCIL,HOUSING REVENUE ACCOUNT,G410,AGENCY STAFF,28/04/2023,417978,725,SELLICK PARTNERSHIP LTD,106780
NEWARK AND SHERWOOD DISTRICT COUNCIL,HOUSING REVENUE ACCOUNT,G410,AGENCY STAFF,28/04/2023,418158,725,SELLICK PARTNERSHIP LTD,106780
NEWARK AND SHERWOOD DISTRICT COUNCIL,HOUSING REVENUE ACCOUNT,G410,STAIRLIFTS,28/04/2023,418169,724.9,CALANDINE LIFTS LTD,100068
NEWARK AND SHERWOOD DISTRICT COUNCIL,HOUSING REVENUE ACCOUNT,G410,SEWERAGE AND WATER CHARGES,05/05/2023,418616,722.84,WATER-PLUS,105929
NEWARK AND SHERWOOD DISTRICT COUNCIL,HOUSING REVENUE ACCOUNT,G410,STAIRLIFTS,28/04/2023,418168,721.8,CALANDINE LIFTS LTD,100068
NEWARK AND SHERWOOD DISTRICT COUNCIL,HOUSING REVENUE ACCOUNT,G410,MATERIALS,02/06/2023,421145,721.66,PTS - CITY PLUMBING SUPPLIES LTD,107157
NEWARK AND SHERWOOD DISTRICT COUNCIL,CAPITAL,G997,CONSTRUCTION,28/04/2023,417854,721,B & H CONSTRUCTION (NEWARK) LTD,101788
NEWARK AND SHERWOOD DISTRICT COUNCIL,HOUSING REVENUE ACCOUNT,G410,FIRE ALARM AND EMERGENCY LIGHT,12/05/2023,419214,720.9,HD ELECTRICAL SYSTEMS LTD,105293
NEWARK AND SHERWOOD DISTRICT COUNCIL,ECONOMIC DEVELOPMENT,G420,CONTRACTUAL SERVICES,06/04/2023,416819,720.3,WATCH-IT SECURITY SERVICES LTD,103618
NEWARK AND SHERWOOD DISTRICT COUNCIL,ECONOMIC DEVELOPMENT,G420,REPAIRS AND MAINTENANCE,06/04/2023,416487,720,BSP CONSULTING,104667
NEWARK AND SHERWOOD DISTRICT COUNCIL,ECONOMIC DEVELOPMENT,G420,COMPUTER SOFTWARE MAINTENANCE,05/05/2023,416942,720,BUILDING COST INFORMATION SERVICE LTD,107891
NEWARK AND SHERWOOD DISTRICT COUNCIL,HOUSING REVENUE ACCOUNT,G410,DISTURBANCE ALLOWANCE,06/04/2023,416743,720,WILKO RETAIL LTD,105562
NEWARK AND SHERWOOD DISTRICT COUNCIL,HOUSING REVENUE ACCOUNT,G410,MATERIALS,05/05/2023,418744,717,MAXAM DIRECT LTD,106982
NEWARK AND SHERWOOD DISTRICT COUNCIL,HOUSING REVENUE ACCOUNT,G410,AGENCY STAFF,19/05/2023,419609,715.92,SELLICK PARTNERSHIP LTD,106780
NEWARK AND SHERWOOD DISTRICT COUNCIL,HOUSING REVENUE ACCOUNT,G410,AGENCY STAFF,19/05/2023,419605,714,SELLICK PARTNERSHIP LTD,106780
NEWARK AND SHERWOOD DISTRICT COUNCIL,HOUSING REVENUE ACCOUNT,G410,AGENCY STAFF,16/06/2023,420685,714,SELLICK PARTNERSHIP LTD,106780
NEWARK AND SHERWOOD DISTRICT COUNCIL,ECONOMIC DEVELOPMENT,G420,CONTRACTUAL SERVICES,19/05/2023,419707,713.4,NEWARK SECURITY SERVICES LTD,100371
NEWARK AND SHERWOOD DISTRICT COUNCIL,HOUSING REVENUE ACCOUNT,G410,MATERIALS,16/06/2023,422445,712.01,PTS - CITY PLUMBING SUPPLIES LTD,107157
NEWARK AND SHERWOOD DISTRICT COUNCIL,ECONOMIC DEVELOPMENT,G420,INWARD INVESTMENT MARKETING,21/04/2023,417472,711,THE PUMPING HOUSE - OLLERTON,107938
NEWARK AND SHERWOOD DISTRICT COUNCIL,ECONOMIC DEVELOPMENT,G420,RECHARGE TP TECHNICAL,06/04/2023,416893,710,DRN THEATRE PRODUCTIONS,107491
NEWARK AND SHERWOOD DISTRICT COUNCIL,POLICY & FINANCE,G450,CONTRACTUAL SERVICES,16/06/2023,422187,710,FREEDOM FIRE AND SECURITY MAINTENANCE LTD,107889
NEWARK AND SHERWOOD DISTRICT COUNCIL,HOUSING REVENUE ACCOUNT,G410,CONTRACTUAL SERVICES,02/06/2023,421092,709.9,T & S HEATING LTD,105748
NEWARK AND SHERWOOD DISTRICT COUNCIL,HOUSING REVENUE ACCOUNT,G410,FIRE ALARM AND EMERGENCY LIGHT,12/05/2023,419216,708.4,HD ELECTRICAL SYSTEMS LTD,105293
NEWARK AND SHERWOOD DISTRICT COUNCIL,LEISURE & ENVIRONMENT,G440,RECYCLING,09/06/2023,421713,706.87,SOUTHWELL TOWN COUNCIL,100515
NEWARK AND SHERWOOD DISTRICT COUNCIL,HOUSING REVENUE ACCOUNT,G410,TENANT INVOLVEMENT,30/06/2023,422766,702.92,NOTICE BOARD COMPANY (UK) LTD,107884
NEWARK AND SHERWOOD DISTRICT COUNCIL,HOUSING REVENUE ACCOUNT,G410,MATERIALS,06/04/2023,416637,702.58,PTS - CITY PLUMBING SUPPLIES LTD,107157
NEWARK AND SHERWOOD DISTRICT COUNCIL,HOUSING REVENUE ACCOUNT,G410,MATERIALS,16/06/2023,422497,700,WILKO RETAIL LTD,105562
NEWARK AND SHERWOOD DISTRICT COUNCIL,HOUSING REVENUE ACCOUNT,G410,MATERIALS,12/05/2023,418012,697.9,PREMIERE KITCHENS,107197
NEWARK AND SHERWOOD DISTRICT COUNCIL,POLICY & FINANCE,G450,SEWERAGE AND WATER CHARGES,23/06/2023,422793,695.49,SMARTA WATER LTD,107280
NEWARK AND SHERWOOD DISTRICT COUNCIL,LEISURE & ENVIRONMENT,G440,CLOTHING AND UNIFORMS,30/06/2023,423356,695.08,LOOKPRO.CO,102808
NEWARK AND SHERWOOD DISTRICT COUNCIL,LEISURE & ENVIRONMENT,G440,MATERIALS,28/04/2023,417999,694.38,DENNIS EAGLE LTD,100797
NEWARK AND SHERWOOD DISTRICT COUNCIL,LEISURE & ENVIRONMENT,G440,MATERIALS,28/04/2023,418208,694.38,DENNIS EAGLE LTD,100797
NEWARK AND SHERWOOD DISTRICT COUNCIL,HOUSING REVENUE ACCOUNT,G410,AGENCY STAFF,30/06/2023,423334,692.13,SELLICK PARTNERSHIP LTD,106780
NEWARK AND SHERWOOD DISTRICT COUNCIL,POLICY & FINANCE,G450,POSTAGES,26/05/2023,420580,690.26,ROYAL MAIL GROUP LTD,100469
NEWARK AND SHERWOOD DISTRICT COUNCIL,ECONOMIC DEVELOPMENT,G420,REPAIRS AND MAINTENANCE,19/05/2023,419797,685,NEWARK HEATING SERVICES LTD,107542
NEWARK AND SHERWOOD DISTRICT COUNCIL,ECONOMIC DEVELOPMENT,G420,CONTRACTUAL SERVICES,30/06/2023,423096,680,FREEDOM FIRE AND SECURITY MAINTENANCE LTD,107889
NEWARK AND SHERWOOD DISTRICT COUNCIL,ECONOMIC DEVELOPMENT,G420,CONTRACTUAL SERVICES,12/05/2023,419257,679.04,METRIC GROUP LTD,100306
NEWARK AND SHERWOOD DISTRICT COUNCIL,ECONOMIC DEVELOPMENT,G420,CONTRACTUAL SERVICES,16/06/2023,422100,679.04,METRIC GROUP LTD,100306
NEWARK AND SHERWOOD DISTRICT COUNCIL,HOUSING REVENUE ACCOUNT,G410,CONTRACTUAL SERVICES,28/04/2023,417928,677.93,T & S HEATING LTD,105748
NEWARK AND SHERWOOD DISTRICT COUNCIL,HOUSING REVENUE ACCOUNT,G410,CONTRACTUAL SERVICES,26/04/2023,417938,676.56,QUANTUM BILLING - INPROVA GROUP,106944
NEWARK AND SHERWOOD DISTRICT COUNCIL,HOUSING REVENUE ACCOUNT,G410,AGENCY STAFF,26/05/2023,420399,675,SELLICK PARTNERSHIP LTD,106780
NEWARK AND SHERWOOD DISTRICT COUNCIL,HOUSING REVENUE ACCOUNT,G410,AGENCY STAFF,30/06/2023,422141,675,SELLICK PARTNERSHIP LTD,106780
NEWARK AND SHERWOOD DISTRICT COUNCIL,ECONOMIC DEVELOPMENT,G420,REPAIRS AND MAINTENANCE,21/04/2023,417526,675,VIKING ELECTRICAL LTD,107743
NEWARK AND SHERWOOD DISTRICT COUNCIL,POLICY & FINANCE,G450,SEWERAGE AND WATER CHARGES,26/05/2023,420486,674.13,SMARTA WATER LTD,107280
NEWARK AND SHERWOOD DISTRICT COUNCIL,LEISURE & ENVIRONMENT,G440,OIL AND LUBRICANTS,28/04/2023,418324,673.31,WITHAM OIL & PAINT LTD,105620
NEWARK AND SHERWOOD DISTRICT COUNCIL,ECONOMIC DEVELOPMENT,G420,PROFESSIONAL SERVICES,30/06/2023,423386,672.45,REDACTED PERSONAL DATA,106398
NEWARK AND SHERWOOD DISTRICT COUNCIL,ECONOMIC DEVELOPMENT,G420,REFRESHMENTS AND CATERING,06/04/2023,416925,669.1,WESTMINSTER FOODSERVICE,107657
NEWARK AND SHERWOOD DISTRICT COUNCIL,HOMES & COMMUNITIES,G430,COMMUNICATION CAMPAIGNS,26/05/2023,420661,668,GRANICUS-FIRMSTEP LTD,107187
NEWARK AND SHERWOOD DISTRICT COUNCIL,HOUSING REVENUE ACCOUNT,G410,MATERIALS,19/05/2023,419584,667.5,WHEATCROFTS FLOORING,106882
NEWARK AND SHERWOOD DISTRICT COUNCIL,LEISURE & ENVIRONMENT,G440,CLOTHING AND UNIFORMS,06/04/2023,416527,666.12,LOOKPRO.CO,102808
NEWARK AND SHERWOOD DISTRICT COUNCIL,HOUSING REVENUE ACCOUNT,G410,CONTRACTUAL SERVICES,19/05/2023,419786,663.42,RENUVO LIMITED,107076
NEWARK AND SHERWOOD DISTRICT COUNCIL,HOUSING REVENUE ACCOUNT,G410,AGENCY STAFF,30/06/2023,422771,662.5,SELLICK PARTNERSHIP LTD,106780
NEWARK AND SHERWOOD DISTRICT COUNCIL,HOUSING REVENUE ACCOUNT,G410,WINDOW CLEANING,16/06/2023,422227,661.6,HANDS CLEANERS LTD,106975
NEWARK AND SHERWOOD DISTRICT COUNCIL,HOUSING REVENUE ACCOUNT,G410,WINDOW CLEANING,16/06/2023,422236,661.6,HANDS CLEANERS LTD,106975
NEWARK AND SHERWOOD DISTRICT COUNCIL,HOUSING REVENUE ACCOUNT,G410,WINDOW CLEANING,30/06/2023,423568,661.6,HANDS CLEANERS LTD,106975
NEWARK AND SHERWOOD DISTRICT COUNCIL,POLICY & FINANCE,G450,POSTAGES,12/05/2023,419346,661.14,ROYAL MAIL GROUP LTD,100469
NEWARK AND SHERWOOD DISTRICT COUNCIL,ECONOMIC DEVELOPMENT,G420,ELECTRICITY,21/04/2023,417494,659.35,NPOWER BUSINESS SOLUTIONS - ELECTRIC,107725
NEWARK AND SHERWOOD DISTRICT COUNCIL,POLICY & FINANCE,G450,WORLDPAY PROCESS CHARGES,22/06/2023,422858,658.39,WORLDPAY,105893
NEWARK AND SHERWOOD DISTRICT COUNCIL,POLICY & FINANCE,G450,PROFESSIONAL SERVICES,26/05/2023,420503,657.75,AMBITIONS PERSONNEL LTD,105324
NEWARK AND SHERWOOD DISTRICT COUNCIL,POLICY & FINANCE,G450,WORLDPAY PROCESS CHARGES,22/05/2023,420349,657.57,WORLDPAY,105893
NEWARK AND SHERWOOD DISTRICT COUNCIL,POLICY & FINANCE,G450,PREMISES SECURITY,28/04/2023,418321,656.68,WATCH-IT SECURITY SERVICES LTD,103618
NEWARK AND SHERWOOD DISTRICT COUNCIL,CAPITAL,G997,CONSTRUCTION,26/05/2023,420314,655,REDACTED PERSONAL DATA,107942
NEWARK AND SHERWOOD DISTRICT COUNCIL,HOUSING REVENUE ACCOUNT,G410,REFRESHMENTS AND CATERING,09/06/2023,418801,654.85,NOTTINGHAMSHIRE COUNTY COUNCIL,100393
NEWARK AND SHERWOOD DISTRICT COUNCIL,HOUSING REVENUE ACCOUNT,G410,REFRESHMENTS AND CATERING,16/06/2023,422313,654.07,BRAKE BROS LTD,106562
NEWARK AND SHERWOOD DISTRICT COUNCIL,HOUSING REVENUE ACCOUNT,G410,REFRESHMENTS AND CATERING,02/06/2023,421277,652.6,NOTTINGHAMSHIRE COUNTY COUNCIL,100393
NEWARK AND SHERWOOD DISTRICT COUNCIL,HOUSING REVENUE ACCOUNT,G410,CONTRACTUAL SERVICES,19/05/2023,419772,650.96,T & S HEATING LTD,105748
NEWARK AND SHERWOOD DISTRICT COUNCIL,HOUSING REVENUE ACCOUNT,G410,CONTRACTUAL SERVICES,06/04/2023,416493,650.72,DCR ELECTRICAL LTD,101799
NEWARK AND SHERWOOD DISTRICT COUNCIL,HOUSING REVENUE ACCOUNT,G410,PREMISES SECURITY,23/06/2023,422917,650,BLOOM DEMOLITION & EXCAVATION LIMITED,107298
NEWARK AND SHERWOOD DISTRICT COUNCIL,ECONOMIC DEVELOPMENT,G420,PROFESSIONAL SERVICES,23/06/2023,423052,650,FOXSTONE FORESTRY LTD,106901
NEWARK AND SHERWOOD DISTRICT COUNCIL,ECONOMIC DEVELOPMENT,G420,PROFESSIONAL SERVICES,30/06/2023,423572,650,FOXSTONE FORESTRY LTD,106901
NEWARK AND SHERWOOD DISTRICT COUNCIL,POLICY & FINANCE,G450,CONTRACTUAL SERVICES,16/06/2023,422189,650,FREEDOM FIRE AND SECURITY MAINTENANCE LTD,107889
NEWARK AND SHERWOOD DISTRICT COUNCIL,ECONOMIC DEVELOPMENT,G420,PROFESSIONAL SERVICES,21/04/2023,417510,650,MARLOWE FIRE & SECURITY LTD,107943
NEWARK AND SHERWOOD DISTRICT COUNCIL,CAPITAL,G997,CONSTRUCTION,21/04/2023,417453,650,MITIE TF MANAGEMENT LTD,107698
NEWARK AND SHERWOOD DISTRICT COUNCIL,CAPITAL,G997,CONSTRUCTION,21/04/2023,417457,650,MITIE TF MANAGEMENT LTD,107698
NEWARK AND SHERWOOD DISTRICT COUNCIL,POLICY & FINANCE,G450,REPAIRS AND MAINTENANCE,06/04/2023,416551,650,MITIE TF MANAGEMENT LTD,107698
NEWARK AND SHERWOOD DISTRICT COUNCIL,HOUSING REVENUE ACCOUNT,G410,CONTRACTUAL SERVICES,19/05/2023,419757,650,PORTLAND SURVEYS,106860
NEWARK AND SHERWOOD DISTRICT COUNCIL,CAPITAL,G997,CONSTRUCTION,19/05/2023,419808,650,WILLIAM SAUNDERS PARTNERSHIP LLP,107133
NEWARK AND SHERWOOD DISTRICT COUNCIL,CAPITAL,G997,CONSTRUCTION,19/05/2023,419812,650,WILLIAM SAUNDERS PARTNERSHIP LLP,107133
NEWARK AND SHERWOOD DISTRICT COUNCIL,HOUSING REVENUE ACCOUNT,G410,CLOTHING AND UNIFORMS,12/05/2023,419227,649.6,ARDEN WINCH & CO LTD,102291
NEWARK AND SHERWOOD DISTRICT COUNCIL,HOUSING REVENUE ACCOUNT,G410,CONTRACTUAL SERVICES,23/05/2023,420390,647.23,QUANTUM BILLING - INPROVA GROUP,106944
NEWARK AND SHERWOOD DISTRICT COUNCIL,HOUSING REVENUE ACCOUNT,G410,CONTRACTUAL SERVICES,28/04/2023,418098,646.55,T & S HEATING LTD,105748
NEWARK AND SHERWOOD DISTRICT COUNCIL,POLICY & FINANCE,G450,STATIONERY,02/06/2023,421212,640.44,LYRECO UK LIMITED,101689
NEWARK AND SHERWOOD DISTRICT COUNCIL,POLICY & FINANCE,G450,COMPUTER SOFTWARE,02/06/2023,421495,640,M-FILES CORPORATION,106656
NEWARK AND SHERWOOD DISTRICT COUNCIL,HOUSING REVENUE ACCOUNT,G410,AGENCY STAFF,05/05/2023,418652,635.25,SELLICK PARTNERSHIP LTD,106780
NEWARK AND SHERWOOD DISTRICT COUNCIL,ECONOMIC DEVELOPMENT,G420,CONTRACTUAL SERVICES,06/04/2023,416571,634.6,NEWARK SECURITY SERVICES LTD,100371
NEWARK AND SHERWOOD DISTRICT COUNCIL,LEISURE & ENVIRONMENT,G440,MATERIALS,26/05/2023,420414,634.35,RH COMMERCIAL VEHICLES,107463
NEWARK AND SHERWOOD DISTRICT COUNCIL,ECONOMIC DEVELOPMENT,G420,REPAIRS AND MAINTENANCE,19/05/2023,419665,631,RENASCOR,101733
NEWARK AND SHERWOOD DISTRICT COUNCIL,HOMES & COMMUNITIES,G430,CCTV OPERATION,23/06/2023,422830,630,BAYDALE CONTROL SYSTEMS LTD,106617
NEWARK AND SHERWOOD DISTRICT COUNCIL,ECONOMIC DEVELOPMENT,G420,CONTRACTUAL SERVICES,16/06/2023,422218,630,CAMTRAK (UK) LTD,101999
NEWARK AND SHERWOOD DISTRICT COUNCIL,CAPITAL,G997,LEGAL FEES,02/06/2023,418717,630,GELDARDS LLP,106822
NEWARK AND SHERWOOD DISTRICT COUNCIL,POLICY & FINANCE,G450,PROFESSIONAL SERVICES,19/05/2023,419855,630,INFORM CPI LIMITED,104513
NEWARK AND SHERWOOD DISTRICT COUNCIL,HOUSING REVENUE ACCOUNT,G410,CONTRACTUAL SERVICES,23/06/2023,423274,629.29,QUANTUM BILLING - INPROVA GROUP,106944
NEWARK AND SHERWOOD DISTRICT COUNCIL,POLICY & FINANCE,G450,PREMISES SECURITY,26/05/2023,420495,627.28,WATCH-IT SECURITY SERVICES LTD,103618
NEWARK AND SHERWOOD DISTRICT COUNCIL,POLICY & FINANCE,G450,CTAX NSDC PARISH PRECEPT PYMTS,08/04/2023,417241,625,HAWTON PARISH COUNCIL,100199
NEWARK AND SHERWOOD DISTRICT COUNCIL,ECONOMIC DEVELOPMENT,G420,PROFESSIONAL SERVICES,05/05/2023,418953,625,ROBERT MARSHALL & SONS LTD,105315
NEWARK AND SHERWOOD DISTRICT COUNCIL,ECONOMIC DEVELOPMENT,G420,CONTRACTUAL SERVICES,21/04/2023,417507,622.96,METRIC GROUP LTD,100306
NEWARK AND SHERWOOD DISTRICT COUNCIL,POLICY & FINANCE,G450,PREMISES SECURITY,30/06/2023,423346,620.06,WATCH-IT SECURITY SERVICES LTD,103618
NEWARK AND SHERWOOD DISTRICT COUNCIL,POLICY & FINANCE,G450,LEGAL FEES OUTSOURCED,23/06/2023,423090,619.5,GELDARDS LLP,106822
NEWARK AND SHERWOOD DISTRICT COUNCIL,HOUSING REVENUE ACCOUNT,G410,STAIRLIFTS,28/04/2023,418184,618,CALANDINE LIFTS LTD,100068
NEWARK AND SHERWOOD DISTRICT COUNCIL,HOMES & COMMUNITIES,G430,CONTRIBUTION TO HOUSING BOND,28/04/2023,418305,615,REDACTED PERSONAL DATA,107946
NEWARK AND SHERWOOD DISTRICT COUNCIL,CAPITAL,G997,CONSTRUCTION,28/04/2023,417951,615,PREMIER MOBILITY (UK) LIMITED,106576
NEWARK AND SHERWOOD DISTRICT COUNCIL,CAPITAL,G997,CONSTRUCTION,02/06/2023,421285,615,STUDIO G ASSOCIATES,104539
NEWARK AND SHERWOOD DISTRICT COUNCIL,CAPITAL,G997,ICT HARDWARE AQUISITION,26/05/2023,420504,612.5,VOHKUS LTD,106071
NEWARK AND SHERWOOD DISTRICT COUNCIL,POLICY & FINANCE,G450,LEGAL FEES COURTS,28/04/2023,418042,611,HMCTS,101145
NEWARK AND SHERWOOD DISTRICT COUNCIL,CAPITAL,G997,CONSTRUCTION,28/04/2023,418065,610,COUNTY SIGN AGENCY,100115
NEWARK AND SHERWOOD DISTRICT COUNCIL,POLICY & FINANCE,G450,SUBSCRIPTIONS,06/04/2023,416928,610,LAWYERS IN LOCAL GOVERNMENT,102780
NEWARK AND SHERWOOD DISTRICT COUNCIL,ECONOMIC DEVELOPMENT,G420,AGENCY STAFF,19/05/2023,419836,609.18,WATCH-IT SECURITY SERVICES LTD,103618
NEWARK AND SHERWOOD DISTRICT COUNCIL,ECONOMIC DEVELOPMENT,G420,CONTRACTUAL SERVICES,16/06/2023,422101,606.67,NEWARK VEHICLE HIRE,106935
NEWARK AND SHERWOOD DISTRICT COUNCIL,ECONOMIC DEVELOPMENT,G420,CONTRACTUAL SERVICES,23/06/2023,422779,606.67,NEWARK VEHICLE HIRE,106935
NEWARK AND SHERWOOD DISTRICT COUNCIL,HOUSING REVENUE ACCOUNT,G410,CONTRACTUAL SERVICES,28/04/2023,417935,604.61,DCR ELECTRICAL LTD,101799
NEWARK AND SHERWOOD DISTRICT COUNCIL,POLICY & FINANCE,G450,POSTAGES,30/06/2023,423291,604.58,ROYAL MAIL GROUP LTD,100469
NEWARK AND SHERWOOD DISTRICT COUNCIL,HOUSING REVENUE ACCOUNT,G410,CONTRACTUAL SERVICES,16/06/2023,422262,604,CHEMICAL DRY CENTRAL,100896
NEWARK AND SHERWOOD DISTRICT COUNCIL,POLICY & FINANCE,G450,WORLDPAY PROCESS CHARGES,24/04/2023,417778,603.1,WORLDPAY,105893
NEWARK AND SHERWOOD DISTRICT COUNCIL,POLICY & FINANCE,G450,CONTRACTUAL SERVICES,12/05/2023,419169,601.78,QUADIENT FINANCE UK LIMITED,106774
NEWARK AND SHERWOOD DISTRICT COUNCIL,POLICY & FINANCE,G450,CONTRACTUAL SERVICES,23/06/2023,422951,601.78,QUADIENT FINANCE UK LIMITED,106774
NEWARK AND SHERWOOD DISTRICT COUNCIL,POLICY & FINANCE,G450,CTAX NSDC PARISH PRECEPT PYMTS,08/04/2023,417249,601,GIRTON AND MEERING PARISH MEETING,107771
NEWARK AND SHERWOOD DISTRICT COUNCIL,HOUSING REVENUE ACCOUNT,G410,SEWERAGE AND WATER CHARGES,05/05/2023,418614,600.13,WATER-PLUS,105929
NEWARK AND SHERWOOD DISTRICT COUNCIL,POLICY & FINANCE,G450,COMPUTER SOFTWARE MAINTENANCE,23/06/2023,422341,600,CONCERTO SUPPORT SERVICES LIMITED,106492
NEWARK AND SHERWOOD DISTRICT COUNCIL,CAPITAL,G997,CONSTRUCTION,21/04/2023,416516,600,JACKSON DESIGN ASSOCIATES LIMITED,106431
NEWARK AND SHERWOOD DISTRICT COUNCIL,HOMES & COMMUNITIES,G430,MISCELLANEOUS EXPENSES,30/06/2023,423517,600,REDACTED PERSONAL DATA,107644
NEWARK AND SHERWOOD DISTRICT COUNCIL,CAPITAL,G997,CONSTRUCTION,26/05/2023,420505,600,RG+P LIMITED,105755
NEWARK AND SHERWOOD DISTRICT COUNCIL,ECONOMIC DEVELOPMENT,G420,LOCAL HISTORY PURCHASES,06/04/2023,416521,600,THE BRITISH MUSEUM GREAT COURT LTD,100979
NEWARK AND SHERWOOD DISTRICT COUNCIL,LEISURE & ENVIRONMENT,G440,PROMOTION OF EVENTS,19/05/2023,419627,599,GIANT DECKCHAIRS LIMITED,107947
NEWARK AND SHERWOOD DISTRICT COUNCIL,POLICY & FINANCE,G450,ELECTRICITY,12/05/2023,419323,597.22,EDF ENERGY 1 LTD,101140
NEWARK AND SHERWOOD DISTRICT COUNCIL,HOMES & COMMUNITIES,G430,MISCELLANEOUS EXPENSES,28/04/2023,418053,595,NEW STAR RENOVATIONS & LETTINGS,107721
NEWARK AND SHERWOOD DISTRICT COUNCIL,ECONOMIC DEVELOPMENT,G420,REFRESHMENTS AND CATERING,19/05/2023,419805,594.03,WESTMINSTER FOODSERVICE,107657
NEWARK AND SHERWOOD DISTRICT COUNCIL,POLICY & FINANCE,G992,LLOYDS PAYMENTS ACCOUNT,30/06/2023,423715,594,QUANTUM BILLING - INPROVA GROUP,106944
NEWARK AND SHERWOOD DISTRICT COUNCIL,LEISURE & ENVIRONMENT,G440,MATERIALS,06/04/2023,416606,592.93,AUTOSMART,106504
NEWARK AND SHERWOOD DISTRICT COUNCIL,POLICY & FINANCE,G450,REPAIRS AND MAINTENANCE,16/06/2023,422142,592.3,DERRY BUILDING SERVICES LTD,100125
NEWARK AND SHERWOOD DISTRICT COUNCIL,ECONOMIC DEVELOPMENT,G420,RENT,09/06/2023,421250,591.75,THE WELBECK ESTATES COMPANY LTD,101113
NEWARK AND SHERWOOD DISTRICT COUNCIL,POLICY & FINANCE,G450,LEGAL FEES OUTSOURCED,23/06/2023,422804,589.5,GELDARDS LLP,106822
NEWARK AND SHERWOOD DISTRICT COUNCIL,CAPITAL,G997,CONSTRUCTION,12/05/2023,419207,586.68,TERSUS CONSULTANCY LIMITED,101057
NEWARK AND SHERWOOD DISTRICT COUNCIL,ECONOMIC DEVELOPMENT,G420,PROFESSIONAL SERVICES,19/05/2023,419969,585,FOXSTONE FORESTRY LTD,106901
NEWARK AND SHERWOOD DISTRICT COUNCIL,ECONOMIC DEVELOPMENT,G420,REPAIRS AND MAINTENANCE,19/05/2023,419973,585,ROBERT MARSHALL & SONS LTD,105315
NEWARK AND SHERWOOD DISTRICT COUNCIL,HOUSING REVENUE ACCOUNT,G410,MATERIALS,26/05/2023,420616,584.6,JWL (ARCHITECTURAL IRONMONGERS) LTD,106647
NEWARK AND SHERWOOD DISTRICT COUNCIL,HOUSING REVENUE ACCOUNT,G410,MATERIALS,05/05/2023,418774,584.38,PTS - CITY PLUMBING SUPPLIES LTD,107157
NEWARK AND SHERWOOD DISTRICT COUNCIL,ECONOMIC DEVELOPMENT,G420,ELECTRICITY,21/04/2023,417492,583.76,NPOWER BUSINESS SOLUTIONS - ELECTRIC,107725
NEWARK AND SHERWOOD DISTRICT COUNCIL,POLICY & FINANCE,G450,REFRESHMENTS AND CATERING,06/04/2023,416721,583.51,LYRECO UK LIMITED,101689
NEWARK AND SHERWOOD DISTRICT COUNCIL,LEISURE & ENVIRONMENT,G440,MATERIALS,06/04/2023,416544,582.5,TURNBULL & CO LTD,106877
NEWARK AND SHERWOOD DISTRICT COUNCIL,HOUSING REVENUE ACCOUNT,G410,MISCELLANEOUS EXPENSES,26/05/2023,420670,581.64,STL BUSINESS COMMUNICATIONS LIMITED,106373
NEWARK AND SHERWOOD DISTRICT COUNCIL,HOUSING REVENUE ACCOUNT,G410,MATERIALS,30/06/2023,423499,579.36,PTS - CITY PLUMBING SUPPLIES LTD,107157
NEWARK AND SHERWOOD DISTRICT COUNCIL,ECONOMIC DEVELOPMENT,G420,ELECTRICITY,06/04/2023,416673,579.09,ROYAL AIRFORCES ASSOCIATION,107948
NEWARK AND SHERWOOD DISTRICT COUNCIL,LEISURE & ENVIRONMENT,G440,MATERIALS,14/04/2023,417343,578.36,AUTOSMART,106504
NEWARK AND SHERWOOD DISTRICT COUNCIL,ECONOMIC DEVELOPMENT,G420,OTHER EQUIPMENT AND TOOLS,14/04/2023,417224,576.38,RUSSELLS (KIRBYMOORSIDE) LTD,106779
NEWARK AND SHERWOOD DISTRICT COUNCIL,HOUSING REVENUE ACCOUNT,G410,REFRESHMENTS AND CATERING,16/06/2023,422361,574.75,BRAKE BROS LTD,106562
NEWARK AND SHERWOOD DISTRICT COUNCIL,HOUSING REVENUE ACCOUNT,G410,MATERIALS,26/05/2023,420612,573.52,JWL (ARCHITECTURAL IRONMONGERS) LTD,106647
NEWARK AND SHERWOOD DISTRICT COUNCIL,HOMES & COMMUNITIES,G430,CCTV OPERATION,30/06/2023,423556,573,BAYDALE CONTROL SYSTEMS LTD,106617
NEWARK AND SHERWOOD DISTRICT COUNCIL,ECONOMIC DEVELOPMENT,G420,DILAPIDATIONS OUTLAY,19/05/2023,419689,573,VIKING ELECTRICAL LTD,107743
NEWARK AND SHERWOOD DISTRICT COUNCIL,HOUSING REVENUE ACCOUNT,G410,CONTRACTUAL SERVICES,19/05/2023,419661,572.94,T & S HEATING LTD,105748
NEWARK AND SHERWOOD DISTRICT COUNCIL,ECONOMIC DEVELOPMENT,G420,CONTRACTUAL SERVICES,09/06/2023,421709,570.26,KINGS ARMOURED SECURITY SERVICES LTD,107694
NEWARK AND SHERWOOD DISTRICT COUNCIL,HOUSING REVENUE ACCOUNT,G410,CONTRACTUAL SERVICES,19/05/2023,419751,568.99,J WRIGHT ROOFING LTD,105753
NEWARK AND SHERWOOD DISTRICT COUNCIL,LEISURE & ENVIRONMENT,G440,MATERIALS,05/05/2023,418868,568.18,DENNIS EAGLE LTD,100797
NEWARK AND SHERWOOD DISTRICT COUNCIL,HOUSING REVENUE ACCOUNT,G410,CONTRACTUAL SERVICES,23/06/2023,423081,567,H & H FLOORING LIMITED,106826
NEWARK AND SHERWOOD DISTRICT COUNCIL,ECONOMIC DEVELOPMENT,G420,REPAIRS AND MAINTENANCE,02/06/2023,421056,567,JCP POWER & DATA CONTRACTORS LTD,100243
NEWARK AND SHERWOOD DISTRICT COUNCIL,HOUSING REVENUE ACCOUNT,G410,CONTRACTUAL SERVICES,28/04/2023,417857,566.5,DCR ELECTRICAL LTD,101799
NEWARK AND SHERWOOD DISTRICT COUNCIL,ECONOMIC DEVELOPMENT,G420,ELECTRICITY,21/04/2023,417483,563.02,NPOWER BUSINESS SOLUTIONS - ELECTRIC,107725
NEWARK AND SHERWOOD DISTRICT COUNCIL,HOUSING REVENUE ACCOUNT,G410,MATERIALS,19/05/2023,419783,561.13,SAINT-GOBAIN BUILDING DISTRIBUTION LTD,106865
NEWARK AND SHERWOOD DISTRICT COUNCIL,ECONOMIC DEVELOPMENT,G420,CONTRACTUAL SERVICES,09/06/2023,421561,561.12,METRIC GROUP LTD,100306
NEWARK AND SHERWOOD DISTRICT COUNCIL,HOUSING REVENUE ACCOUNT,G410,TENANT INVOLVEMENT,16/06/2023,422376,561,BROXAP LTD,101567
NEWARK AND SHERWOOD DISTRICT COUNCIL,HOUSING REVENUE ACCOUNT,G410,MATERIALS,09/06/2023,421739,560.03,SAINT-GOBAIN BUILDING DISTRIBUTION LTD,106865
NEWARK AND SHERWOOD DISTRICT COUNCIL,ECONOMIC DEVELOPMENT,G420,CONTRACTUAL SERVICES,05/05/2023,418557,560,MODES USERS ASSOCIATION,102913
NEWARK AND SHERWOOD DISTRICT COUNCIL,POLICY & FINANCE,G450,ELECTION EXPENSES,26/05/2023,420241,560,RAINWORTH VILLAGE HALL,101565
NEWARK AND SHERWOOD DISTRICT COUNCIL,POLICY & FINANCE,G450,MOBILE PHONES,12/05/2023,419401,559.84,EE LIMITED,106527
NEWARK AND SHERWOOD DISTRICT COUNCIL,HOUSING REVENUE ACCOUNT,G410,MATERIALS,23/06/2023,422954,559.57,SAINT-GOBAIN BUILDING DISTRIBUTION LTD,106865
NEWARK AND SHERWOOD DISTRICT COUNCIL,HOUSING REVENUE ACCOUNT,G410,APPLIANCE SERVICING,30/06/2023,423413,559.13,MORGAN LAMBERT LTD,106838
NEWARK AND SHERWOOD DISTRICT COUNCIL,HOUSING REVENUE ACCOUNT,G410,MATERIALS,28/04/2023,417912,558.15,PTS - CITY PLUMBING SUPPLIES LTD,107157
NEWARK AND SHERWOOD DISTRICT COUNCIL,ECONOMIC DEVELOPMENT,G420,PROF SERV - EXTERNAL CONTRACTS,30/06/2023,423358,557,WEED MANAGEMENT LTD,107569
NEWARK AND SHERWOOD DISTRICT COUNCIL,POLICY & FINANCE,G450,PROFESSIONAL SERVICES,30/06/2023,423376,556.9,AMBITIONS PERSONNEL LTD,105324
NEWARK AND SHERWOOD DISTRICT COUNCIL,POLICY & FINANCE,G450,CONTRACTUAL SERVICES,19/05/2023,419814,555.75,NOMINET,107200
NEWARK AND SHERWOOD DISTRICT COUNCIL,ECONOMIC DEVELOPMENT,G420,CONTRACTUAL SERVICES,06/04/2023,416548,550,FOXSTONE FORESTRY LTD,106901
NEWARK AND SHERWOOD DISTRICT COUNCIL,ECONOMIC DEVELOPMENT,G420,PROFESSIONAL SERVICES,19/05/2023,419964,550,FOXSTONE FORESTRY LTD,106901
NEWARK AND SHERWOOD DISTRICT COUNCIL,HOUSING REVENUE ACCOUNT,G410,INSURANCE,16/06/2023,422506,549.08,ARTHUR J GALLAGHER INSURANCE BROKERS LIMITED,106423
NEWARK AND SHERWOOD DISTRICT COUNCIL,HOUSING REVENUE ACCOUNT,G410,MATERIALS,26/05/2023,420622,549.08,PTS - CITY PLUMBING SUPPLIES LTD,107157
NEWARK AND SHERWOOD DISTRICT COUNCIL,HOUSING REVENUE ACCOUNT,G410,CONTRACTUAL SERVICES,23/06/2023,423087,546,METRO ROD LTD,106655
NEWARK AND SHERWOOD DISTRICT COUNCIL,HOUSING REVENUE ACCOUNT,G410,CONTRACTUAL SERVICES,28/04/2023,417984,542.41,J WRIGHT ROOFING LTD,105753
NEWARK AND SHERWOOD DISTRICT COUNCIL,HOUSING REVENUE ACCOUNT,G410,PERIODIC ELECTRICAL TESTING,06/04/2023,416659,540,CERTSURE LLP,106625
NEWARK AND SHERWOOD DISTRICT COUNCIL,POLICY & FINANCE,G450,CONTRACTUAL SERVICES,05/05/2023,418701,540,GDUK DOOR SOLUTIONS LIMITED,106904
NEWARK AND SHERWOOD DISTRICT COUNCIL,LEISURE & ENVIRONMENT,G440,MATERIALS,26/05/2023,420312,540,MAUN MOTORS SELF DRIVE,105142
NEWARK AND SHERWOOD DISTRICT COUNCIL,LEISURE & ENVIRONMENT,G440,AGENCY STAFF,09/06/2023,420502,539.42,AMBITIONS PERSONNEL LTD,105324
NEWARK AND SHERWOOD DISTRICT COUNCIL,LEISURE & ENVIRONMENT,G440,MATERIALS,06/04/2023,416994,538.15,TERBERG MATEC UK LTD,100541
NEWARK AND SHERWOOD DISTRICT COUNCIL,POLICY & FINANCE,G450,CHAUFFEUR SERVICES,09/06/2023,421525,536.67,AURA JOURNEYS LTD,106614
NEWARK AND SHERWOOD DISTRICT COUNCIL,LEISURE & ENVIRONMENT,G440,MATERIALS,02/06/2023,420992,533.34,DENNIS EAGLE LTD,100797
NEWARK AND SHERWOOD DISTRICT COUNCIL,ECONOMIC DEVELOPMENT,G420,CONTRACTUAL SERVICES,16/06/2023,422160,532.51,KINGS ARMOURED SECURITY SERVICES LTD,107694
NEWARK AND SHERWOOD DISTRICT COUNCIL,LEISURE & ENVIRONMENT,G440,MATERIALS,30/06/2023,422108,531.25,PARTS PLUS,107073
NEWARK AND SHERWOOD DISTRICT COUNCIL,HOUSING REVENUE ACCOUNT,G410,LIFT MAINTENANCE,12/05/2023,419298,530.5,CALANDINE LIFTS LTD,100068
NEWARK AND SHERWOOD DISTRICT COUNCIL,HOUSING REVENUE ACCOUNT,G410,MATERIALS,30/06/2023,423496,530.5,JWL (ARCHITECTURAL IRONMONGERS) LTD,106647
NEWARK AND SHERWOOD DISTRICT COUNCIL,POLICY & FINANCE,G450,REFRESHMENTS AND CATERING,12/05/2023,419171,527.42,LYRECO UK LIMITED,101689
NEWARK AND SHERWOOD DISTRICT COUNCIL,ECONOMIC DEVELOPMENT,G420,TELEPHONES,06/04/2023,416465,527.05,VIRGIN MEDIA BUSINESS,100593
NEWARK AND SHERWOOD DISTRICT COUNCIL,LEISURE & ENVIRONMENT,G440,MATERIALS,28/04/2023,417985,526.34,BUNCE (ASHBURY) LTD,106963
NEWARK AND SHERWOOD DISTRICT COUNCIL,POLICY & FINANCE,G450,PROFESSIONAL SERVICES,09/06/2023,421038,526.2,AMBITIONS PERSONNEL LTD,105324
NEWARK AND SHERWOOD DISTRICT COUNCIL,POLICY & FINANCE,G450,CTAX NSDC PARISH PRECEPT PYMTS,08/04/2023,417300,525,CROMWELL PARISH MEETING,102442
NEWARK AND SHERWOOD DISTRICT COUNCIL,HOMES & COMMUNITIES,G430,PREVENTION FUND,26/05/2023,420560,525,REDACTED PERSONAL DATA,107644
NEWARK AND SHERWOOD DISTRICT COUNCIL,HOUSING REVENUE ACCOUNT,G410,AGENCY STAFF,19/05/2023,419608,525,SELLICK PARTNERSHIP LTD,106780
NEWARK AND SHERWOOD DISTRICT COUNCIL,HOUSING REVENUE ACCOUNT,G410,AGENCY STAFF,23/06/2023,421552,525,SELLICK PARTNERSHIP LTD,106780
NEWARK AND SHERWOOD DISTRICT COUNCIL,HOUSING REVENUE ACCOUNT,G410,MATERIALS,02/06/2023,421135,523.4,JWL (ARCHITECTURAL IRONMONGERS) LTD,106647
NEWARK AND SHERWOOD DISTRICT COUNCIL,HOUSING REVENUE ACCOUNT,G410,MATERIALS,09/06/2023,421813,522.42,PTS - CITY PLUMBING SUPPLIES LTD,107157
NEWARK AND SHERWOOD DISTRICT COUNCIL,POLICY & FINANCE,G450,POSTAGES,09/06/2023,421553,521.81,ROYAL MAIL GROUP LTD,100469
NEWARK AND SHERWOOD DISTRICT COUNCIL,HOUSING REVENUE ACCOUNT,G410,CONTRACTUAL SERVICES,09/06/2023,421696,520.83,CARPET BARGAIN CENTRE,107232
NEWARK AND SHERWOOD DISTRICT COUNCIL,POLICY & FINANCE,G450,ELECTION EXPENSES,26/05/2023,420246,520,BLIDWORTH METHODIST CHURCH,102330
NEWARK AND SHERWOOD DISTRICT COUNCIL,HOMES & COMMUNITIES,G430,PREVENTION FUND,28/04/2023,418307,520,REDACTED PERSONAL DATA,107952
NEWARK AND SHERWOOD DISTRICT COUNCIL,ECONOMIC DEVELOPMENT,G420,REPAIRS AND MAINTENANCE,26/05/2023,420336,520,HILLBILLY MIDLANDS LTD,107689
NEWARK AND SHERWOOD DISTRICT COUNCIL,LEISURE & ENVIRONMENT,G440,HIRE OF VEHICLES,23/06/2023,423030,520,MAUN MOTORS SELF DRIVE,105142
NEWARK AND SHERWOOD DISTRICT COUNCIL,HOUSING REVENUE ACCOUNT,G410,CONTRACTUAL SERVICES,23/06/2023,423028,519.6,P J LILLEY LTD,100418
NEWARK AND SHERWOOD DISTRICT COUNCIL,HOUSING REVENUE ACCOUNT,G410,PERIODIC ELECTRICAL TESTING,06/04/2023,416852,519.08,AARON SERVICES,107225
NEWARK AND SHERWOOD DISTRICT COUNCIL,POLICY & FINANCE,G450,ELECTRICITY,12/05/2023,419324,518.59,EDF ENERGY 1 LTD,101140
NEWARK AND SHERWOOD DISTRICT COUNCIL,POLICY & FINANCE,G450,CLEANING MATERIALS,23/06/2023,422384,516.37,ATLAS FACILITIES MANAGEMENT LIMITED,106088
NEWARK AND SHERWOOD DISTRICT COUNCIL,ECONOMIC DEVELOPMENT,G420,ELECTRICITY,23/06/2023,422751,514.35,EDF ENERGY 1 LTD,101140
NEWARK AND SHERWOOD DISTRICT COUNCIL,ECONOMIC DEVELOPMENT,G420,REPAIRS AND MAINTENANCE,06/04/2023,416706,514.15,NEWARK HEATING SERVICES LTD,107542
NEWARK AND SHERWOOD DISTRICT COUNCIL,HOUSING REVENUE ACCOUNT,G410,AGENCY STAFF,28/04/2023,418233,512.5,SELLICK PARTNERSHIP LTD,106780
NEWARK AND SHERWOOD DISTRICT COUNCIL,HOUSING REVENUE ACCOUNT,G410,AGENCY STAFF,19/05/2023,419604,512.5,SELLICK PARTNERSHIP LTD,106780
NEWARK AND SHERWOOD DISTRICT COUNCIL,POLICY & FINANCE,G450,CLEANING MATERIALS,19/05/2023,419656,509.73,ATLAS FACILITIES MANAGEMENT LIMITED,106088
NEWARK AND SHERWOOD DISTRICT COUNCIL,POLICY & FINANCE,G450,CONTRACTUAL SERVICES,14/04/2023,417320,509.73,R J WILSON FIRE & SECURITY,107817
NEWARK AND SHERWOOD DISTRICT COUNCIL,HOUSING REVENUE ACCOUNT,G410,CONTRACTUAL SERVICES,28/04/2023,417860,509.5,DCR ELECTRICAL LTD,101799
NEWARK AND SHERWOOD DISTRICT COUNCIL,POLICY & FINANCE,G450,CONTRACTUAL SERVICES,28/04/2023,417800,505,AES CONTROL SYSTEMS,106536
NEWARK AND SHERWOOD DISTRICT COUNCIL,HOUSING REVENUE ACCOUNT,G410,CONTRACTUAL SERVICES,05/05/2023,418663,502.58,NOVUS PROPERTY SOLUTIONS LTD,107362
NEWARK AND SHERWOOD DISTRICT COUNCIL,LEISURE & ENVIRONMENT,G440,MATERIALS,28/04/2023,417959,501.39,DENNIS EAGLE LTD,100797
NEWARK AND SHERWOOD DISTRICT COUNCIL,HOUSING REVENUE ACCOUNT,G410,STAIRLIFTS,28/04/2023,418166,500.6,CALANDINE LIFTS LTD,100068
NEWARK AND SHERWOOD DISTRICT COUNCIL,LEISURE & ENVIRONMENT,G440,PROMOTION OF EVENTS,05/05/2023,418916,500,BALDERTON PARISH COUNCIL,100029
NEWARK AND SHERWOOD DISTRICT COUNCIL,LEISURE & ENVIRONMENT,G440,MISCELLANEOUS EXPENSES,06/04/2023,416959,500,BRIDGE COMMUNITY CENTRE ASSOCIATION,106117
NEWARK AND SHERWOOD DISTRICT COUNCIL,CAPITAL,G997,CONSTRUCTION,05/05/2023,418688,500,BSP CONSULTING,104667
NEWARK AND SHERWOOD DISTRICT COUNCIL,CAPITAL,G997,CONSTRUCTION,19/05/2023,419702,500,BSP CONSULTING,104667
NEWARK AND SHERWOOD DISTRICT COUNCIL,CAPITAL,G997,CONSTRUCTION,19/05/2023,419703,500,BSP CONSULTING,104667
NEWARK AND SHERWOOD DISTRICT COUNCIL,CAPITAL,G997,CONSTRUCTION,16/06/2023,422159,500,BSP CONSULTING,104667
NEWARK AND SHERWOOD DISTRICT COUNCIL,CAPITAL,G997,CONSTRUCTION,16/06/2023,422405,500,BSP CONSULTING,104667
NEWARK AND SHERWOOD DISTRICT COUNCIL,POLICY & FINANCE,G450,ELECTION EXPENSES,26/05/2023,420205,500,CHARLES STREET METHODIST CHURCH,102386
NEWARK AND SHERWOOD DISTRICT COUNCIL,POLICY & FINANCE,G450,ELECTION EXPENSES,26/05/2023,420206,500,CODDINGTON COMMUNITY ASSOCIATION,102425
NEWARK AND SHERWOOD DISTRICT COUNCIL,LEISURE & ENVIRONMENT,G440,MATERIALS,09/06/2023,421541,500,CREATIVE VEHICLE WRAPPING LIMITED,107233
NEWARK AND SHERWOOD DISTRICT COUNCIL,POLICY & FINANCE,G450,ELECTION EXPENSES,26/05/2023,420225,500,FERNWOOD PARISH COUNCIL,100164
NEWARK AND SHERWOOD DISTRICT COUNCIL,ECONOMIC DEVELOPMENT,G420,REPAIRS AND MAINTENANCE,05/05/2023,418945,500,FOXSTONE FORESTRY LTD,106901
NEWARK AND SHERWOOD DISTRICT COUNCIL,POLICY & FINANCE,G450,ELECTION EXPENSES,26/05/2023,420212,500,HOLY TRINITY FOUNDATION,105981
NEWARK AND SHERWOOD DISTRICT COUNCIL,HOMES & COMMUNITIES,G430,MISCELLANEOUS EXPENSES,21/04/2023,417546,500,NEWARK EMMAUS TRUST,102167
NEWARK AND SHERWOOD DISTRICT COUNCIL,ECONOMIC DEVELOPMENT,G420,EMPLOYMENT & SKILLS,06/04/2023,416713,500,NOTTINGHAMSHIRE IN FOCUS LTD,103313
NEWARK AND SHERWOOD DISTRICT COUNCIL,CAPITAL,G997,CONSTRUCTION,26/04/2023,417938,500,QUANTUM BILLING - INPROVA GROUP,106944
NEWARK AND SHERWOOD DISTRICT COUNCIL,HOUSING REVENUE ACCOUNT,G410,AGENCY STAFF,28/04/2023,418232,500,SELLICK PARTNERSHIP LTD,106780
NEWARK AND SHERWOOD DISTRICT COUNCIL,HOUSING REVENUE ACCOUNT,G410,CONTRACTUAL SERVICES,06/04/2023,416732,498.42,DCR ELECTRICAL LTD,101799
NEWARK AND SHERWOOD DISTRICT COUNCIL,POLICY & FINANCE,G450,ELECTION EXPENSES,19/05/2023,419802,498,PRINT IMAGE NETWORK LTD,100431
NEWARK AND SHERWOOD DISTRICT COUNCIL,ECONOMIC DEVELOPMENT,G420,REPAIRS AND MAINTENANCE,28/04/2023,417962,495,ROBERT MARSHALL & SONS LTD,105315
NEWARK AND SHERWOOD DISTRICT COUNCIL,POLICY & FINANCE,G450,PROFESSIONAL SERVICES,16/06/2023,422342,491.12,AMBITIONS PERSONNEL LTD,105324
NEWARK AND SHERWOOD DISTRICT COUNCIL,POLICY & FINANCE,G450,POSTAGES,28/04/2023,417841,489.9,ROYAL MAIL GROUP LTD,100469
NEWARK AND SHERWOOD DISTRICT COUNCIL,HOMES & COMMUNITIES,G430,CCTV OPERATION,23/06/2023,422117,487.89,VIA EAST MIDLANDS LTD,105795
NEWARK AND SHERWOOD DISTRICT COUNCIL,HOUSING REVENUE ACCOUNT,G410,ELECTRICITY,09/06/2023,421684,487.5,KEY MANAGEMENT SYSTEMS LTD,107512
NEWARK AND SHERWOOD DISTRICT COUNCIL,CAPITAL,G997,CONSTRUCTION,19/05/2023,419695,486.66,LOC-BOX SELF STORAGE NEWARK,107516
NEWARK AND SHERWOOD DISTRICT COUNCIL,HOUSING REVENUE ACCOUNT,G410,CONTRACTUAL SERVICES,26/05/2023,420511,483.14,TERSUS CONSULTANCY LIMITED,101057
NEWARK AND SHERWOOD DISTRICT COUNCIL,POLICY & FINANCE,G450,PROFESSIONAL SERVICES,06/04/2023,416668,483,SHL GROUP LTD,106394
NEWARK AND SHERWOOD DISTRICT COUNCIL,HOUSING REVENUE ACCOUNT,G410,TENANT INVOLVEMENT,19/05/2023,418723,482,ALPHA FURNISHINGS LTD,107475
NEWARK AND SHERWOOD DISTRICT COUNCIL,POLICY & FINANCE,G450,PROFESSIONAL SERVICES,21/04/2023,417581,481.25,NCC PENSION FUND,101894
NEWARK AND SHERWOOD DISTRICT COUNCIL,HOUSING REVENUE ACCOUNT,G410,MATERIALS,28/04/2023,418265,480,JWL (ARCHITECTURAL IRONMONGERS) LTD,106647
NEWARK AND SHERWOOD DISTRICT COUNCIL,LEISURE & ENVIRONMENT,G440,MATERIALS,26/05/2023,420304,480,MAUN MOTORS SELF DRIVE,105142
NEWARK AND SHERWOOD DISTRICT COUNCIL,CAPITAL,G997,CONSTRUCTION,19/05/2023,419573,480,PARKIN CONTRACTORS LTD,102009
NEWARK AND SHERWOOD DISTRICT COUNCIL,HOUSING REVENUE ACCOUNT,G410,WASHING MACHINE AND DRIER,05/04/2023,416835,480,SIEMENS FINANCIAL SERVICES LTD,100502
NEWARK AND SHERWOOD DISTRICT COUNCIL,HOUSING REVENUE ACCOUNT,G410,WASHING MACHINE AND DRIER,02/05/2023,418544,480,SIEMENS FINANCIAL SERVICES LTD,100502
NEWARK AND SHERWOOD DISTRICT COUNCIL,HOUSING REVENUE ACCOUNT,G410,WASHING MACHINE AND DRIER,09/06/2023,422081,480,SIEMENS FINANCIAL SERVICES LTD,100502
NEWARK AND SHERWOOD DISTRICT COUNCIL,HOUSING REVENUE ACCOUNT,G410,TENANT INVOLVEMENT,05/05/2023,418907,477.5,POSITIVE MEDIA PROMOTIONS LTD,101715
NEWARK AND SHERWOOD DISTRICT COUNCIL,POLICY & FINANCE,G450,CONTRACTUAL SERVICES,02/06/2023,419625,477,TVR HIGH RISE CONSERVATION LTD,107163
NEWARK AND SHERWOOD DISTRICT COUNCIL,LEISURE & ENVIRONMENT,G440,MATERIALS,14/04/2023,417346,475.55,SHERWOOD TRUCK AND VAN LTD,100497
NEWARK AND SHERWOOD DISTRICT COUNCIL,ECONOMIC DEVELOPMENT,G420,REPAIRS AND MAINTENANCE,05/05/2023,418947,475,ROBERT MARSHALL & SONS LTD,105315
NEWARK AND SHERWOOD DISTRICT COUNCIL,LEISURE & ENVIRONMENT,G440,MATERIALS,05/05/2023,418875,473.46,DENNIS EAGLE LTD,100797
NEWARK AND SHERWOOD DISTRICT COUNCIL,POLICY & FINANCE,G450,POSTAGES,09/06/2023,421555,473.09,ROYAL MAIL GROUP LTD,100469
NEWARK AND SHERWOOD DISTRICT COUNCIL,HOUSING REVENUE ACCOUNT,G410,MATERIALS,28/04/2023,418269,472.92,JWL (ARCHITECTURAL IRONMONGERS) LTD,106647
NEWARK AND SHERWOOD DISTRICT COUNCIL,LEISURE & ENVIRONMENT,G440,CLOTHING AND UNIFORMS,26/05/2023,420470,472.05,LOOKPRO.CO,102808
NEWARK AND SHERWOOD DISTRICT COUNCIL,ECONOMIC DEVELOPMENT,G420,REPAIRS AND MAINTENANCE,09/06/2023,421491,470,VIKING ELECTRICAL LTD,107743
NEWARK AND SHERWOOD DISTRICT COUNCIL,HOUSING REVENUE ACCOUNT,G410,MATERIALS,28/04/2023,418015,469.44,PTS - CITY PLUMBING SUPPLIES LTD,107157
NEWARK AND SHERWOOD DISTRICT COUNCIL,HOUSING REVENUE ACCOUNT,G410,MATERIALS,26/05/2023,420623,468.82,PTS - CITY PLUMBING SUPPLIES LTD,107157
NEWARK AND SHERWOOD DISTRICT COUNCIL,POLICY & FINANCE,G450,POSTAGES,23/06/2023,422949,465.2,ROYAL MAIL GROUP LTD,100469
NEWARK AND SHERWOOD DISTRICT COUNCIL,ECONOMIC DEVELOPMENT,G420,WINDOW CLEANING,05/05/2023,418699,465,WALTERS CLEANING SERVICES,106228
NEWARK AND SHERWOOD DISTRICT COUNCIL,LEISURE & ENVIRONMENT,G440,MATERIALS,30/06/2023,423287,461.55,AUTOSMART,106504
NEWARK AND SHERWOOD DISTRICT COUNCIL,LEISURE & ENVIRONMENT,G440,NON GOV GRANT EXPENDITURE,12/05/2023,419189,461.12,SMITHS TIMBER MERCHANTS LTD,104417
NEWARK AND SHERWOOD DISTRICT COUNCIL,ECONOMIC DEVELOPMENT,G420,TELEPHONES,19/05/2023,419918,455.64,VIRGIN MEDIA BUSINESS,100593
NEWARK AND SHERWOOD DISTRICT COUNCIL,POLICY & FINANCE,G450,REPAIRS AND MAINTENANCE,06/04/2023,416556,455,MITIE TF MANAGEMENT LTD,107698
NEWARK AND SHERWOOD DISTRICT COUNCIL,HOUSING REVENUE ACCOUNT,G410,AGENCY STAFF,05/05/2023,418647,453.75,SELLICK PARTNERSHIP LTD,106780
NEWARK AND SHERWOOD DISTRICT COUNCIL,HOUSING REVENUE ACCOUNT,G410,LIFT MAINTENANCE,12/05/2023,419209,453,CALANDINE LIFTS LTD,100068
NEWARK AND SHERWOOD DISTRICT COUNCIL,ECONOMIC DEVELOPMENT,G420,CLOTHING AND UNIFORMS,21/04/2023,417517,450.88,LOOKPRO.CO,102808
NEWARK AND SHERWOOD DISTRICT COUNCIL,CAPITAL,G997,CONSTRUCTION,26/05/2023,420508,450,BSP CONSULTING,104667
NEWARK AND SHERWOOD DISTRICT COUNCIL,HOUSING REVENUE ACCOUNT,G410,MISCELLANEOUS EXPENSES,09/06/2023,421006,450,COUNTY SIGN AGENCY,100115
NEWARK AND SHERWOOD DISTRICT COUNCIL,ECONOMIC DEVELOPMENT,G420,PROFESSIONAL SERVICES,19/05/2023,419966,450,FOXSTONE FORESTRY LTD,106901
NEWARK AND SHERWOOD DISTRICT COUNCIL,ECONOMIC DEVELOPMENT,G420,PROFESSIONAL SERVICES,23/06/2023,423050,450,FOXSTONE FORESTRY LTD,106901
NEWARK AND SHERWOOD DISTRICT COUNCIL,CAPITAL,G997,CONSTRUCTION,21/04/2023,417455,450,MITIE TF MANAGEMENT LTD,107698
NEWARK AND SHERWOOD DISTRICT COUNCIL,POLICY & FINANCE,G450,REPAIRS AND MAINTENANCE,06/04/2023,416555,450,MITIE TF MANAGEMENT LTD,107698
NEWARK AND SHERWOOD DISTRICT COUNCIL,HOUSING REVENUE ACCOUNT,G410,PRINTING,02/06/2023,418341,450,NOTTINGHAMSHIRE COUNTY COUNCIL,100393
NEWARK AND SHERWOOD DISTRICT COUNCIL,ECONOMIC DEVELOPMENT,G420,TELEPHONES,26/05/2023,420701,448.37,VIRGIN MEDIA BUSINESS,100593
NEWARK AND SHERWOOD DISTRICT COUNCIL,HOMES & COMMUNITIES,G430,ADVERTISING,19/05/2023,419602,447.56,TMP UK LTD,102103
NEWARK AND SHERWOOD DISTRICT COUNCIL,ECONOMIC DEVELOPMENT,G420,CONTRACTUAL SERVICES,26/05/2023,420299,447.16,INITIAL WASHROOM HYGIENE,104769
NEWARK AND SHERWOOD DISTRICT COUNCIL,LEISURE & ENVIRONMENT,G440,OTHER EQUIPMENT AND TOOLS,06/04/2023,416574,442.81,AIRQUICK (NEWARK) LTD,104546
NEWARK AND SHERWOOD DISTRICT COUNCIL,HOUSING REVENUE ACCOUNT,G410,MATERIALS,19/05/2023,419813,441.08,PTS - CITY PLUMBING SUPPLIES LTD,107157
NEWARK AND SHERWOOD DISTRICT COUNCIL,ECONOMIC DEVELOPMENT,G420,CONTRACTUAL SERVICES,30/06/2023,423473,440,WEED MANAGEMENT LTD,107569
NEWARK AND SHERWOOD DISTRICT COUNCIL,HOUSING REVENUE ACCOUNT,G410,AGENCY STAFF,28/04/2023,418087,438.63,SELLICK PARTNERSHIP LTD,106780
NEWARK AND SHERWOOD DISTRICT COUNCIL,LEISURE & ENVIRONMENT,G440,PLASTIC SACKS,30/06/2023,423375,437.5,CROMWELL POLYTHENE LIMITED,101445
NEWARK AND SHERWOOD DISTRICT COUNCIL,LEISURE & ENVIRONMENT,G440,PROFESSIONAL SERVICES,06/04/2023,416610,437,DH PEOPLE PLUS LIMITED,105629
NEWARK AND SHERWOOD DISTRICT COUNCIL,HOUSING REVENUE ACCOUNT,G410,LIFT MAINTENANCE,12/05/2023,419292,436.7,CALANDINE LIFTS LTD,100068
NEWARK AND SHERWOOD DISTRICT COUNCIL,ECONOMIC DEVELOPMENT,G420,IS INTERNET CHARGES,25/04/2023,417804,436.05,STL BUSINESS COMMUNICATIONS LIMITED,106373
NEWARK AND SHERWOOD DISTRICT COUNCIL,ECONOMIC DEVELOPMENT,G420,IS INTERNET CHARGES,25/05/2023,420301,436.05,STL BUSINESS COMMUNICATIONS LIMITED,106373
NEWARK AND SHERWOOD DISTRICT COUNCIL,ECONOMIC DEVELOPMENT,G420,IS INTERNET CHARGES,27/06/2023,422697,436.05,STL BUSINESS COMMUNICATIONS LIMITED,106373
NEWARK AND SHERWOOD DISTRICT COUNCIL,LEISURE & ENVIRONMENT,G440,PETROL AND DIESEL,05/05/2023,418909,432.37,UK FUELS LTD,103594
NEWARK AND SHERWOOD DISTRICT COUNCIL,ECONOMIC DEVELOPMENT,G420,CLOTHING AND UNIFORMS,09/06/2023,421533,429.62,LOOKPRO.CO,102808
NEWARK AND SHERWOOD DISTRICT COUNCIL,LEISURE & ENVIRONMENT,G440,MATERIALS,14/04/2023,417306,428.18,DENNIS EAGLE LTD,100797
NEWARK AND SHERWOOD DISTRICT COUNCIL,HOUSING REVENUE ACCOUNT,G410,CONTRACTUAL SERVICES,26/04/2023,417893,426,HD ELECTRICAL SYSTEMS LTD,105293
NEWARK AND SHERWOOD DISTRICT COUNCIL,ECONOMIC DEVELOPMENT,G420,CONTRACTUAL SERVICES,16/06/2023,422398,422.47,KONE PLC,106281
NEWARK AND SHERWOOD DISTRICT COUNCIL,ECONOMIC DEVELOPMENT,G420,CLEANING CONTRACT,09/06/2023,421629,418.04,CRYSTAL CLEAN SERVICE LTD,106324
NEWARK AND SHERWOOD DISTRICT COUNCIL,ECONOMIC DEVELOPMENT,G420,REPAIRS AND MAINTENANCE,16/06/2023,422097,418,HATHERLEY COMMERCIAL SERVICES LTD,101235
NEWARK AND SHERWOOD DISTRICT COUNCIL,ECONOMIC DEVELOPMENT,G420,CONTRACTUAL SERVICES,26/05/2023,420699,417.92,ATLAS FACILITIES MANAGEMENT LIMITED,106088
NEWARK AND SHERWOOD DISTRICT COUNCIL,ECONOMIC DEVELOPMENT,G420,TELEPHONES,30/06/2023,423529,417.36,VIRGIN MEDIA BUSINESS,100593
NEWARK AND SHERWOOD DISTRICT COUNCIL,HOUSING REVENUE ACCOUNT,G410,MATERIALS,06/04/2023,416761,416.67,WHEATCROFTS FLOORING,106882
NEWARK AND SHERWOOD DISTRICT COUNCIL,HOUSING REVENUE ACCOUNT,G410,MATERIALS,19/05/2023,419574,416.67,WHEATCROFTS FLOORING,106882
NEWARK AND SHERWOOD DISTRICT COUNCIL,HOUSING REVENUE ACCOUNT,G410,MATERIALS,19/05/2023,419575,416.67,WHEATCROFTS FLOORING,106882
NEWARK AND SHERWOOD DISTRICT COUNCIL,HOUSING REVENUE ACCOUNT,G410,MATERIALS,19/05/2023,419576,416.67,WHEATCROFTS FLOORING,106882
NEWARK AND SHERWOOD DISTRICT COUNCIL,HOUSING REVENUE ACCOUNT,G410,MATERIALS,19/05/2023,419578,416.67,WHEATCROFTS FLOORING,106882
NEWARK AND SHERWOOD DISTRICT COUNCIL,HOUSING REVENUE ACCOUNT,G410,MATERIALS,19/05/2023,419579,416.67,WHEATCROFTS FLOORING,106882
NEWARK AND SHERWOOD DISTRICT COUNCIL,HOUSING REVENUE ACCOUNT,G410,MATERIALS,19/05/2023,419583,416.67,WHEATCROFTS FLOORING,106882
NEWARK AND SHERWOOD DISTRICT COUNCIL,HOUSING REVENUE ACCOUNT,G410,MATERIALS,19/05/2023,419585,416.67,WHEATCROFTS FLOORING,106882
NEWARK AND SHERWOOD DISTRICT COUNCIL,HOUSING REVENUE ACCOUNT,G410,MATERIALS,19/05/2023,419603,416.67,WHEATCROFTS FLOORING,106882
NEWARK AND SHERWOOD DISTRICT COUNCIL,HOUSING REVENUE ACCOUNT,G410,MATERIALS,02/06/2023,419586,416.67,WHEATCROFTS FLOORING,106882
NEWARK AND SHERWOOD DISTRICT COUNCIL,HOUSING REVENUE ACCOUNT,G410,MATERIALS,02/06/2023,419587,416.67,WHEATCROFTS FLOORING,106882
NEWARK AND SHERWOOD DISTRICT COUNCIL,HOUSING REVENUE ACCOUNT,G410,MATERIALS,09/06/2023,419589,416.67,WHEATCROFTS FLOORING,106882
NEWARK AND SHERWOOD DISTRICT COUNCIL,HOUSING REVENUE ACCOUNT,G410,MATERIALS,09/06/2023,419590,416.67,WHEATCROFTS FLOORING,106882
NEWARK AND SHERWOOD DISTRICT COUNCIL,HOUSING REVENUE ACCOUNT,G410,MATERIALS,09/06/2023,419591,416.67,WHEATCROFTS FLOORING,106882
NEWARK AND SHERWOOD DISTRICT COUNCIL,HOUSING REVENUE ACCOUNT,G410,MATERIALS,09/06/2023,419594,416.67,WHEATCROFTS FLOORING,106882
NEWARK AND SHERWOOD DISTRICT COUNCIL,HOUSING REVENUE ACCOUNT,G410,MATERIALS,09/06/2023,419597,416.67,WHEATCROFTS FLOORING,106882
NEWARK AND SHERWOOD DISTRICT COUNCIL,POLICY & FINANCE,G450,PROFESSIONAL SERVICES,06/04/2023,416947,0,JACOBS,100238
NEWARK AND SHERWOOD DISTRICT COUNCIL,POLICY & FINANCE,G450,PROFESSIONAL SERVICES,21/04/2023,417576,0,JACOBS,100238
NEWARK AND SHERWOOD DISTRICT COUNCIL,POLICY & FINANCE,G450,PROFESSIONAL SERVICES,05/05/2023,418914,0,JACOBS,100238
NEWARK AND SHERWOOD DISTRICT COUNCIL,POLICY & FINANCE,G450,PROFESSIONAL SERVICES,19/05/2023,419922,0,JACOBS,100238
NEWARK AND SHERWOOD DISTRICT COUNCIL,POLICY & FINANCE,G450,PROFESSIONAL SERVICES,16/06/2023,422421,0,JACOBS,100238
NEWARK AND SHERWOOD DISTRICT COUNCIL,POLICY & FINANCE,G450,PROFESSIONAL SERVICES,23/06/2023,423075,0,JACOBS,100238
NEWARK AND SHERWOOD DISTRICT COUNCIL,POLICY & FINANCE,G450,PROFESSIONAL SERVICES,30/06/2023,423427,0,JACOBS,100238
NEWARK AND SHERWOOD DISTRICT COUNCIL,ECONOMIC DEVELOPMENT,G420,MARKETING COSTS RECOVERED,30/06/2023,423544,-429,PRESTIGE PRODUCTIONS LTD,105060
NEWARK AND SHERWOOD DISTRICT COUNCIL,ECONOMIC DEVELOPMENT,G420,STAFFING COSTS RECOVERED,30/06/2023,423550,-432.5,STEVE STEINMAN PRODUCTIONS,106581
NEWARK AND SHERWOOD DISTRICT COUNCIL,ECONOMIC DEVELOPMENT,G420,AGENCY COMMISSION,06/04/2023,416983,-440,STRICTLY THEATRE CO,107853
NEWARK AND SHERWOOD DISTRICT COUNCIL,ECONOMIC DEVELOPMENT,G420,CREDIT CARD/PRS&PPL FEES REC'D,06/04/2023,416983,-498.67,STRICTLY THEATRE CO,107853
NEWARK AND SHERWOOD DISTRICT COUNCIL,ECONOMIC DEVELOPMENT,G420,CONTRACTUAL SERVICES,21/04/2023,417505,-500,METRIC GROUP LTD,100306
NEWARK AND SHERWOOD DISTRICT COUNCIL,ECONOMIC DEVELOPMENT,G420,STAFFING COSTS RECOVERED,09/06/2023,421747,-531.5,COLE MUSIC PRODUCTIONS (UK) LTD,107300
NEWARK AND SHERWOOD DISTRICT COUNCIL,ECONOMIC DEVELOPMENT,G420,CREDIT CARD/PRS&PPL FEES REC'D,26/05/2023,420474,-573.35,RARE PRODUCTIONS (UK) LTD,107847
NEWARK AND SHERWOOD DISTRICT COUNCIL,CAPITAL,G997,CONSTRUCTION,30/06/2023,423714,-594,QUANTUM BILLING - INPROVA GROUP,106944
NEWARK AND SHERWOOD DISTRICT COUNCIL,LEISURE & ENVIRONMENT,G440,MATERIALS,26/05/2023,420688,-694.38,DENNIS EAGLE LTD,100797
NEWARK AND SHERWOOD DISTRICT COUNCIL,ECONOMIC DEVELOPMENT,G420,AGENCY COMMISSION,26/05/2023,420474,-708.48,RARE PRODUCTIONS (UK) LTD,107847
NEWARK AND SHERWOOD DISTRICT COUNCIL,HOUSING REVENUE ACCOUNT,G410,AGENCY STAFF,26/05/2023,420686,-714,SELLICK PARTNERSHIP LTD,106780
NEWARK AND SHERWOOD DISTRICT COUNCIL,ECONOMIC DEVELOPMENT,G420,MARKETING COSTS RECOVERED,30/06/2023,423548,-720,PHIL ALDRIDGE PRODUCTIONS LTD,107856
NEWARK AND SHERWOOD DISTRICT COUNCIL,HOUSING REVENUE ACCOUNT,G410,CONTRACTUAL SERVICES,26/04/2023,417891,-732,HD ELECTRICAL SYSTEMS LTD,105293
NEWARK AND SHERWOOD DISTRICT COUNCIL,ECONOMIC DEVELOPMENT,G420,AGENCY COMMISSION,12/05/2023,419269,-747.9,LIVE PROMOTIONS EVENTS LTD,107855
NEWARK AND SHERWOOD DISTRICT COUNCIL,CAPITAL,G997,PROFESSIONAL FEES,02/06/2023,418201,-765,BANKS LONG & CO,101223
NEWARK AND SHERWOOD DISTRICT COUNCIL,ECONOMIC DEVELOPMENT,G420,MARKETING COSTS RECOVERED,30/06/2023,423550,-780,STEVE STEINMAN PRODUCTIONS,106581
NEWARK AND SHERWOOD DISTRICT COUNCIL,POLICY & FINANCE,G450,STANDING CHARGES TELEPHONES,21/04/2023,417527,-855.69,8X8 UK LIMITED,106958
NEWARK AND SHERWOOD DISTRICT COUNCIL,ECONOMIC DEVELOPMENT,G420,STAFFING COSTS RECOVERED,26/05/2023,420474,-876,RARE PRODUCTIONS (UK) LTD,107847
NEWARK AND SHERWOOD DISTRICT COUNCIL,ECONOMIC DEVELOPMENT,G420,CREDIT CARD/PRS&PPL FEES REC'D,14/04/2023,417323,-964.17,NEWARK AMATEUR OPERATIC SOCIETY,100365
NEWARK AND SHERWOOD DISTRICT COUNCIL,ECONOMIC DEVELOPMENT,G420,HIRE OF THEATRE,06/04/2023,416983,-1050,STRICTLY THEATRE CO,107853
NEWARK AND SHERWOOD DISTRICT COUNCIL,HOUSING REVENUE ACCOUNT,G410,AGENCY STAFF,23/06/2023,422821,-1066.31,SELLICK PARTNERSHIP LTD,106780
NEWARK AND SHERWOOD DISTRICT COUNCIL,POLICY & FINANCE,G450,ELECTRICITY,19/06/2023,422693,-1375.69,EDF ENERGY 1 LTD,101140
NEWARK AND SHERWOOD DISTRICT COUNCIL,POLICY & FINANCE,G450,COMPUTER SOFTWARE MAINTENANCE,16/06/2023,422155,-1538.5,VIRGIN MEDIA BUSINESS,100934
NEWARK AND SHERWOOD DISTRICT COUNCIL,ECONOMIC DEVELOPMENT,G420,HIRE OF THEATRE,06/04/2023,416987,-1660,NEW YOUTH THEATRE (GRANTHAM),106573
NEWARK AND SHERWOOD DISTRICT COUNCIL,ECONOMIC DEVELOPMENT,G420,HIRE OF THEATRE,12/05/2023,419269,-2040,LIVE PROMOTIONS EVENTS LTD,107855
NEWARK AND SHERWOOD DISTRICT COUNCIL,POLICY & FINANCE,G450,REPAIRS AND MAINTENANCE,30/06/2023,423553,-2192.5,LINDUM GROUP LTD,100651
NEWARK AND SHERWOOD DISTRICT COUNCIL,POLICY & FINANCE,G450,COMPUTER SOFTWARE MAINTENANCE,16/06/2023,419146,-2200,VIRGIN MEDIA BUSINESS,100934
NEWARK AND SHERWOOD DISTRICT COUNCIL,ECONOMIC DEVELOPMENT,G420,TECHNICAL COSTS RECOVERED,14/04/2023,417323,-3300.73,NEWARK AMATEUR OPERATIC SOCIETY,100365
NEWARK AND SHERWOOD DISTRICT COUNCIL,CORPORATE,G998,NDR PRIOR YEAR & CTAX FIRE ADJ,17/04/2023,417406,-4007,NOTTINGHAMSHIRE FIRE AUTHORITY,101572
NEWARK AND SHERWOOD DISTRICT COUNCIL,CORPORATE,G998,NDR PRIOR YEAR & CTAX FIRE ADJ,23/05/2023,420421,-4007,NOTTINGHAMSHIRE FIRE AUTHORITY,101572
NEWARK AND SHERWOOD DISTRICT COUNCIL,CORPORATE,G998,NDR PRIOR YEAR & CTAX FIRE ADJ,28/06/2023,423432,-4007,NOTTINGHAMSHIRE FIRE AUTHORITY,101572
NEWARK AND SHERWOOD DISTRICT COUNCIL,ECONOMIC DEVELOPMENT,G420,HIRE OF THEATRE,14/04/2023,417323,-4200,NEWARK AMATEUR OPERATIC SOCIETY,100365
NEWARK AND SHERWOOD DISTRICT COUNCIL,POLICY & FINANCE,G450,COMPUTER SOFTWARE,24/04/2023,417775,-5000,M-FILES CORPORATION,106656
NEWARK AND SHERWOOD DISTRICT COUNCIL,CAPITAL,G997,CONSTRUCTION,30/06/2023,423381,-5260.55,LINDUM GROUP LTD,100651
NEWARK AND SHERWOOD DISTRICT COUNCIL,HOMES & COMMUNITIES,G430,ELECTRICITY,31/05/2023,421020,-5273.84,SCOTTISH & SOUTHERN ENERGY GROUP,103454
NEWARK AND SHERWOOD DISTRICT COUNCIL,ECONOMIC DEVELOPMENT,G420,HIRE OF THEATRE,26/05/2023,420474,-5940,RARE PRODUCTIONS (UK) LTD,107847
NEWARK AND SHERWOOD DISTRICT COUNCIL,ECONOMIC DEVELOPMENT,G420,STAFFING COSTS RECOVERED,14/04/2023,417323,-6551.99,NEWARK AMATEUR OPERATIC SOCIETY,100365
NEWARK AND SHERWOOD DISTRICT COUNCIL,CORPORATE,G998,CTAX PRECEPT SURP/DEF POLICE,17/04/2023,417405,-13085,NOTTS POLICE AND CRIME COMMISSIONER,101784
